Publisher Label,Publisher URI,"Directorate code","Directorate","Service code","Service","Revenue or capital code","Revenue capital","Cost centre","Cost centre description","Bvsub Category","Bvsub description","Bvsum code","Bvsum description","Account code","Account description","Transaction No","Period","Transaction Date","Amount","Classification code","Classification description","Supplier ID","Supplier description","Company registration number","Company registration number Uri","VAT registration number"
"London Borough of Redbridge","http://opendatacommunities.org/doc/london-borough-council/redbridge","6BADULTSOCIA","Adult Social Care","6CADPHYSDIS","Adults Under 65 with Phys Disab or Sensory Impair","REV","Revenue","R4138","Integrated Community Equipment Services (ICES)","04-SUPPLIES","Supplies And Services","04K","Miscellaneous expenses","6239","Occupational Therapy Equip","60135663","201110",31/12/2010 00:00:00,-30212,"51520","Mobility Equipment","REDACTED DATA","MILLBROOK HEALTHCARE LTD","833987","http://opencorporates.com/companies/gb/833987","675991080"
"London Borough of Redbridge","http://opendatacommunities.org/doc/london-borough-council/redbridge","3BLEACENTFND","LEA Centrally Held School Funds","3CSCHSTRATMG","Schools Strategic Management","REV","Revenue","R3013","School Causing Concern","04-SUPPLIES","Supplies And Services","04H","Grants and subscriptions","5950","Grants","3169294","201110",14/01/2011 00:00:00,-27759,"67981","Schools - Local Authority","REDACTED DATA","MAYESPARK PRIMARY","",,""
"London Borough of Redbridge","http://opendatacommunities.org/doc/london-borough-council/redbridge","9BNONBVO","Outside the BVACOP Objective Structure","9CNONBVO","Outside the BVACOP Objective Structure","CAP","Capital","C9036","R and R Capital Exp DSO Leases","99-NONBV","Capital, Balance Sheet and Control","50F","Capital - Equipment, Furniture & Fittings","9172","Vehicles","625191","201110",31/12/2010 00:00:00,255,"20370","Commercial Vehicle Dealers","REDACTED DATA","HAYNES BROS LTD- (HAYNES TRUCKS LTD)","48511","http://opencorporates.com/companies/gb/48511","203084901"
"London Borough of Redbridge","http://opendatacommunities.org/doc/london-borough-council/redbridge","9BNONBVO","Outside the BVACOP Objective Structure","9CNONBVO","Outside the BVACOP Objective Structure","CAP","Capital","C9036","R and R Capital Exp DSO Leases","99-NONBV","Capital, Balance Sheet and Control","50F","Capital - Equipment, Furniture & Fittings","9172","Vehicles","625191","201110",31/12/2010 00:00:00,10556,"20370","Commercial Vehicle Dealers","REDACTED DATA","HAYNES BROS LTD- (HAYNES TRUCKS LTD)","48511","http://opencorporates.com/companies/gb/48511","203084901"
"London Borough of Redbridge","http://opendatacommunities.org/doc/london-borough-council/redbridge","6BADULTSOCIA","Adult Social Care","6CADLEARNDIS","Adults Under 65 with Learning Disabilities","REV","Revenue","R4185","LD - Supported Living","06-TRANSFER","Transfer Payments","06B","Social Services Clients","7066","Supportive Lodgings (Transfer Payments)","90188070","201110",13/12/2010 00:00:00,-5328,"64710","Residential Care Homes","REDACTED DATA","CARETECH COMMUNITY SERVICES LTD","2804415","http://opencorporates.com/companies/gb/2804415",""
"London Borough of Redbridge","http://opendatacommunities.org/doc/london-borough-council/redbridge","6BADULTSOCIA","Adult Social Care","6CADLEARNDIS","Adults Under 65 with Learning Disabilities","REV","Revenue","R4215","LD Direct Payments","06-TRANSFER","Transfer Payments","06B","Social Services Clients","7053","Direct Payments","90196569","201110",24/01/2011 00:00:00,-3107,"56800","Payroll Services","REDACTED DATA","HUMAN MANAGEMENT ASSISTANCE-CLIENT ACCOUNT","4752026","http://opencorporates.com/companies/gb/4752026","815230071"
"London Borough of Redbridge","http://opendatacommunities.org/doc/london-borough-council/redbridge","6BADULTSOCIA","Adult Social Care","6CADLEARNDIS","Adults Under 65 with Learning Disabilities","REV","Revenue","R4215","LD Direct Payments","06-TRANSFER","Transfer Payments","06B","Social Services Clients","7053","Direct Payments","90196569","201110",24/01/2011 00:00:00,-1360,"56800","Payroll Services","REDACTED DATA","HUMAN MANAGEMENT ASSISTANCE-CLIENT ACCOUNT","4752026","http://opencorporates.com/companies/gb/4752026","815230071"
"London Borough of Redbridge","http://opendatacommunities.org/doc/london-borough-council/redbridge","6BADULTSOCIA","Adult Social Care","6COLDINCMENT","Older People (65 or over) incl. Older Mentally Ill","REV","Revenue","R4435","Sanctuary Care Residential Contracts","05-THIRD","Third Party Payments","05G","Other establishments","6851","Housing Association Payments","70022489","201110",01/01/2011 00:00:00,-3884,"53350","Nursing Homes","REDACTED DATA","SANCTUARY CARE (ENTERPRISE HOUSE)","4231521","http://opencorporates.com/companies/gb/4231521","732012487"
"London Borough of Redbridge","http://opendatacommunities.org/doc/london-borough-council/redbridge","6BSOCIALSERV","Social Services","6CCHILLOOKED","Children Looked After","REV","Revenue","R2132","CLAFH - Asylum Seekers Non Grant Funded","06-TRANSFER","Transfer Payments","06B","Social Services Clients","7055","Habitual Residents","60135259","201110",13/11/2009 00:00:00,-3839,"79980","Training Services","REDACTED DATA","LONDON SOUTH BANK UNIVERSITY","986761","http://opencorporates.com/companies/gb/986761","778111617"
"London Borough of Redbridge","http://opendatacommunities.org/doc/london-borough-council/redbridge","4BMANGT&SUPP","Management & Support Services","4CHIGHRDROUT","Highways/Roads (Routine)","REV","Revenue","R7061","Lighting Energy","05-THIRD","Third Party Payments","05H","Private contractors","6915","Contractor Payments","70021999","201110",26/04/2010 00:00:00,-3024,"39564","Gas Companies","REDACTED DATA","KENT COUNTY COUNCIL (GAS & ELECTRIC)","",,"204269191"
"London Borough of Redbridge","http://opendatacommunities.org/doc/london-borough-council/redbridge","9BNONBVO","Outside the BVACOP Objective Structure","9CNONBVO","Outside the BVACOP Objective Structure","BAL","Balance Sheet","B0095","CLOSED - PO Holding Account","99-NONBV","Capital, Balance Sheet and Control","50Q","Other Balances & Reserves","9995","AP / PO Holding Account","70021794","201110",11/11/2011 00:00:00,-3092,"30586","Electricity Companies","REDACTED DATA","EDF ENERGY 1 LTD (PO BOX 3956 PLYMOUTH)","",,"523041202"
"London Borough of Redbridge","http://opendatacommunities.org/doc/london-borough-council/redbridge","2BCULTUR&REL","Cultural & Related Services","2CLIBRARY","Library Service","REV","Revenue","R2518","Fullwell X Branch Lib","02-PREMISES","Premises","02A","Repairs, alteration and maintenance of buildings","3016","General Premises Costs","60133956","201110",04/01/2011 00:00:00,-2875,"53400","Office Equipment Servicing & Maintenance","REDACTED DATA","UNITED TECHNOLOGIES UK LTD(UTL)","3805286","http://opencorporates.com/companies/gb/3805286","740173460"
"London Borough of Redbridge","http://opendatacommunities.org/doc/london-borough-council/redbridge","6BADULTSOCIA","Adult Social Care","6CADLEARNDIS","Adults Under 65 with Learning Disabilities","REV","Revenue","R4185","LD - Supported Living","06-TRANSFER","Transfer Payments","06B","Social Services Clients","7066","Supportive Lodgings (Transfer Payments)","90188069","201110",13/12/2010 00:00:00,-2625,"64710","Residential Care Homes","REDACTED DATA","CARETECH COMMUNITY SERVICES LTD","2804415","http://opencorporates.com/companies/gb/2804415",""
"London Borough of Redbridge","http://opendatacommunities.org/doc/london-borough-council/redbridge","6BADULTSOCIA","Adult Social Care","6CADLEARNDIS","Adults Under 65 with Learning Disabilities","REV","Revenue","R4296","Mulberry Lodge","02-PREMISES","Premises","02B","Energy costs","4000","Electricity","70021793","201110",27/11/2011 00:00:00,-1775,"30586","Electricity Companies","REDACTED DATA","EDF ENERGY 1 LTD (PO BOX 3956 PLYMOUTH)","",,"523041202"
"London Borough of Redbridge","http://opendatacommunities.org/doc/london-borough-council/redbridge","9BNONBVO","Outside the BVACOP Objective Structure","9CNONBVO","Outside the BVACOP Objective Structure","REV","Revenue","R7702","Vehicle Workshop","04-SUPPLIES","Supplies And Services","04A","Equipment, furniture and materials","5510","Materials","625316","201110",13/01/2011 00:00:00,-1772,"20390","Commercial Vehicle Servicing, Repairs, Parts & Acc","REDACTED DATA","S & B COMMERCIALS PLC","1635078","http://opencorporates.com/companies/gb/1635078",""
"London Borough of Redbridge","http://opendatacommunities.org/doc/london-borough-council/redbridge","6BSOCIALSERV","Social Services","","","REV","Revenue","R2127","CLAFH - Fostering and Adoption","05-THIRD","Third Party Payments","05H","Private contractors","6917","Fostering Costs - Agency","60135258","201110",31/12/2010 00:00:00,-1925,"1880","Adoption & Fostering","REDACTED DATA","GREATER LONDON FOSTERING","",,""
"London Borough of Redbridge","http://opendatacommunities.org/doc/london-borough-council/redbridge","6BADULTSOCIA","Adult Social Care","6COLDINCMENT","Older People (65 or over) incl. Older Mentally Ill","REV","Revenue","R4385","OP Nursing","05-THIRD","Third Party Payments","05H","Private contractors","6909","Nursing Homes","90192705","201110",06/01/2011 00:00:00,-2047,"53350","Nursing Homes","REDACTED DATA","JEWISH CARE (MERIT HOUSE)","2447900","http://opencorporates.com/companies/gb/2447900","587033133"
"London Borough of Redbridge","http://opendatacommunities.org/doc/london-borough-council/redbridge","6BADULTSOCIA","Adult Social Care","6COLDINCMENT","Older People (65 or over) incl. Older Mentally Ill","REV","Revenue","R4385","OP Nursing","05-THIRD","Third Party Payments","05H","Private contractors","6909","Nursing Homes","90192705","201110",06/01/2011 00:00:00,310,"53350","Nursing Homes","REDACTED DATA","JEWISH CARE (MERIT HOUSE)","2447900","http://opencorporates.com/companies/gb/2447900","587033133"
"London Borough of Redbridge","http://opendatacommunities.org/doc/london-borough-council/redbridge","6BADULTSOCIA","Adult Social Care","6CADPHYSDIS","Adults Under 65 with Phys Disab or Sensory Impair","REV","Revenue","R4206","PCT Physical Disability and Sensory Home Care","05-THIRD","Third Party Payments","05A","Independent units within the council","6502","Agency Homecare (Payments To Independent Units)","90190567","201110",05/01/2011 00:00:00,-1461,"53280","Nursing Agencies","REDACTED DATA","IMMACULATE HEALTHCARE SERVICES LIMITED","",,""
"London Borough of Redbridge","http://opendatacommunities.org/doc/london-borough-council/redbridge","6BADULTSOCIA","Adult Social Care","6CADMENHLTH","Adults Under 65 with Mental Health Needs","REV","Revenue","R4190","MH - Care Purch Bud","05-THIRD","Third Party Payments","05F","Voluntary associations","6802","Residential Homes","90192564","201110",06/01/2011 00:00:00,-1414,"64710","Residential Care Homes","REDACTED DATA","ASHWOOD HOUSE LIMITED","3581014","http://opencorporates.com/companies/gb/3581014",""
"London Borough of Redbridge","http://opendatacommunities.org/doc/london-borough-council/redbridge","6BADULTSOCIA","Adult Social Care","6COLDINCMENT","Older People (65 or over) incl. Older Mentally Ill","REV","Revenue","R4378","OP - Care Purchasing","05-THIRD","Third Party Payments","05F","Voluntary associations","6802","Residential Homes","90188074","201110",13/12/2010 00:00:00,-2406,"53350","Nursing Homes","REDACTED DATA","MEERA NURSING HOME LTD","2888267","http://opencorporates.com/companies/gb/2888267",""
"London Borough of Redbridge","http://opendatacommunities.org/doc/london-borough-council/redbridge","6BADULTSOCIA","Adult Social Care","6COLDINCMENT","Older People (65 or over) incl. Older Mentally Ill","REV","Revenue","R4378","OP - Care Purchasing","09-INCOME","Income","09C","Customer & Client Receipts","8555","Accommodation Charges","90188074","201110",13/12/2010 00:00:00,-268,"53350","Nursing Homes","REDACTED DATA","MEERA NURSING HOME LTD","2888267","http://opencorporates.com/companies/gb/2888267",""
"London Borough of Redbridge","http://opendatacommunities.org/doc/london-borough-council/redbridge","6BADULTSOCIA","Adult Social Care","6COLDINCMENT","Older People (65 or over) incl. Older Mentally Ill","REV","Revenue","R4378","OP - Care Purchasing","05-THIRD","Third Party Payments","05F","Voluntary associations","6802","Residential Homes","90188074","201110",13/12/2010 00:00:00,316,"53350","Nursing Homes","REDACTED DATA","MEERA NURSING HOME LTD","2888267","http://opencorporates.com/companies/gb/2888267",""
"London Borough of Redbridge","http://opendatacommunities.org/doc/london-borough-council/redbridge","6BADULTSOCIA","Adult Social Care","6COLDINCMENT","Older People (65 or over) incl. Older Mentally Ill","REV","Revenue","R4378","OP - Care Purchasing","05-THIRD","Third Party Payments","05F","Voluntary associations","6802","Residential Homes","90188074","201110",13/12/2010 00:00:00,1076,"53350","Nursing Homes","REDACTED DATA","MEERA NURSING HOME LTD","2888267","http://opencorporates.com/companies/gb/2888267",""
"London Borough of Redbridge","http://opendatacommunities.org/doc/london-borough-council/redbridge","6BADULTSOCIA","Adult Social Care","6COLDINCMENT","Older People (65 or over) incl. Older Mentally Ill","REV","Revenue","R4385","OP Nursing","05-THIRD","Third Party Payments","05H","Private contractors","6909","Nursing Homes","90195253","201110",06/01/2011 00:00:00,-1218,"53350","Nursing Homes","REDACTED DATA","SOUTHERN CROSS HEALTHCARE-FORMERLY LIFESTYLE PLC","5328138","http://opencorporates.com/companies/gb/5328138",""
"London Borough of Redbridge","http://opendatacommunities.org/doc/london-borough-council/redbridge","6BADULTSOCIA","Adult Social Care","6COLDINCMENT","Older People (65 or over) incl. Older Mentally Ill","REV","Revenue","R4378","OP - Care Purchasing","05-THIRD","Third Party Payments","05F","Voluntary associations","6802","Residential Homes","90192732","201110",06/01/2011 00:00:00,-1522,"53350","Nursing Homes","REDACTED DATA","JEWISH CARE (MERIT HOUSE)","2447900","http://opencorporates.com/companies/gb/2447900","587033133"
"London Borough of Redbridge","http://opendatacommunities.org/doc/london-borough-council/redbridge","6BADULTSOCIA","Adult Social Care","6COLDINCMENT","Older People (65 or over) incl. Older Mentally Ill","REV","Revenue","R4378","OP - Care Purchasing","05-THIRD","Third Party Payments","05F","Voluntary associations","6802","Residential Homes","90192732","201110",06/01/2011 00:00:00,324,"53350","Nursing Homes","REDACTED DATA","JEWISH CARE (MERIT HOUSE)","2447900","http://opencorporates.com/companies/gb/2447900","587033133"
"London Borough of Redbridge","http://opendatacommunities.org/doc/london-borough-council/redbridge","9BNONBVO","Outside the BVACOP Objective Structure","9CNONBVO","Outside the BVACOP Objective Structure","BAL","Balance Sheet","B0095","CLOSED - PO Holding Account","99-NONBV","Capital, Balance Sheet and Control","50Q","Other Balances & Reserves","9995","AP / PO Holding Account","70022485","201110",25/11/2010 00:00:00,-1179,"90005","Home Care Services DP","REDACTED DATA","REDACTED DATA","",,""
"London Borough of Redbridge","http://opendatacommunities.org/doc/london-borough-council/redbridge","9BNONBVO","Outside the BVACOP Objective Structure","9CNONBVO","Outside the BVACOP Objective Structure","BAL","Balance Sheet","B0095","CLOSED - PO Holding Account","99-NONBV","Capital, Balance Sheet and Control","50Q","Other Balances & Reserves","9995","AP / PO Holding Account","70022486","201110",25/11/2010 00:00:00,-1179,"90005","Home Care Services DP","REDACTED DATA","REDACTED DATA","",,""
"London Borough of Redbridge","http://opendatacommunities.org/doc/london-borough-council/redbridge","6BADULTSOCIA","Adult Social Care","6CADLEARNDIS","Adults Under 65 with Learning Disabilities","REV","Revenue","R4383","LD - External Day Care","05-THIRD","Third Party Payments","05H","Private contractors","6904","Day Centres","90192490","201110",06/01/2011 00:00:00,-1099,"29360","Educational Services","REDACTED DATA","ST MARK�S SOCIAL EDUCATION SERVICES","342972","http://opencorporates.com/companies/gb/342972","761453629"
"London Borough of Redbridge","http://opendatacommunities.org/doc/london-borough-council/redbridge","6BADULTSOCIA","Adult Social Care","6COLDINCMENT","Older People (65 or over) incl. Older Mentally Ill","REV","Revenue","R4378","OP - Care Purchasing","09-INCOME","Income","09C","Customer & Client Receipts","8555","Accommodation Charges","90192625","201110",06/01/2011 00:00:00,-3485,"64760","Rest & Retirement Homes","REDACTED DATA","EASTWOOD LODGE","",,""
"London Borough of Redbridge","http://opendatacommunities.org/doc/london-borough-council/redbridge","6BADULTSOCIA","Adult Social Care","6COLDINCMENT","Older People (65 or over) incl. Older Mentally Ill","REV","Revenue","R4378","OP - Care Purchasing","05-THIRD","Third Party Payments","05F","Voluntary associations","6802","Residential Homes","90192625","201110",06/01/2011 00:00:00,-1049,"64760","Rest & Retirement Homes","REDACTED DATA","EASTWOOD LODGE","",,""
"London Borough of Redbridge","http://opendatacommunities.org/doc/london-borough-council/redbridge","6BADULTSOCIA","Adult Social Care","6COLDINCMENT","Older People (65 or over) incl. Older Mentally Ill","REV","Revenue","R4378","OP - Care Purchasing","05-THIRD","Third Party Payments","05F","Voluntary associations","6802","Residential Homes","90192625","201110",06/01/2011 00:00:00,3485,"64760","Rest & Retirement Homes","REDACTED DATA","EASTWOOD LODGE","",,""
"London Borough of Redbridge","http://opendatacommunities.org/doc/london-borough-council/redbridge","1BOTHEROPI&E","Other Operating Income & Expenditure","1CTRADSURDEF","Trading Account Surpluses & Deficits","REV","Revenue","R9609","Queen Victoria House","02-PREMISES","Premises","02B","Energy costs","4002","Gas","70022836","201110",18/01/2011 00:00:00,-883,"39564","Gas Companies","REDACTED DATA","KENT COUNTY COUNCIL (GAS & ELECTRIC)","",,"204269191"
"London Borough of Redbridge","http://opendatacommunities.org/doc/london-borough-council/redbridge","6BADULTSOCIA","Adult Social Care","6CADLEARNDIS","Adults Under 65 with Learning Disabilities","REV","Revenue","R4241","RPCT - Continuing Care - Spots","05-THIRD","Third Party Payments","05A","Independent units within the council","6502","Agency Homecare (Payments To Independent Units)","90189744","201110",17/12/2010 00:00:00,-946,"43419","Home Care Services","REDACTED DATA","FASTFLOW DE VERE CARE","",,""
"London Borough of Redbridge","http://opendatacommunities.org/doc/london-borough-council/redbridge","6BADULTSOCIA","Adult Social Care","6COLDINCMENT","Older People (65 or over) incl. Older Mentally Ill","REV","Revenue","R4385","OP Nursing","05-THIRD","Third Party Payments","05H","Private contractors","6909","Nursing Homes","90192802","201110",06/01/2011 00:00:00,-1206,"53350","Nursing Homes","REDACTED DATA","QUEENS COURT NURSING HOME","",,""
"London Borough of Redbridge","http://opendatacommunities.org/doc/london-borough-council/redbridge","6BADULTSOCIA","Adult Social Care","6COLDINCMENT","Older People (65 or over) incl. Older Mentally Ill","REV","Revenue","R4385","OP Nursing","05-THIRD","Third Party Payments","05H","Private contractors","6909","Nursing Homes","90192802","201110",06/01/2011 00:00:00,284,"53350","Nursing Homes","REDACTED DATA","QUEENS COURT NURSING HOME","",,""
"London Borough of Redbridge","http://opendatacommunities.org/doc/london-borough-council/redbridge","6BADULTSOCIA","Adult Social Care","6COLDINCMENT","Older People (65 or over) incl. Older Mentally Ill","REV","Revenue","R4211","Older People Direct Payments","06-TRANSFER","Transfer Payments","06B","Social Services Clients","7053","Direct Payments","90196528","201110",24/01/2011 00:00:00,-890,"56800","Payroll Services","REDACTED DATA","HUMAN MANAGEMENT ASSISTANCE-CLIENT ACCOUNT","4752026","http://opencorporates.com/companies/gb/4752026","815230071"
"London Borough of Redbridge","http://opendatacommunities.org/doc/london-borough-council/redbridge","6BADULTSOCIA","Adult Social Care","6COLDINCMENT","Older People (65 or over) incl. Older Mentally Ill","REV","Revenue","R4211","Older People Direct Payments","06-TRANSFER","Transfer Payments","06B","Social Services Clients","7053","Direct Payments","90196528","201110",24/01/2011 00:00:00,-566,"56800","Payroll Services","REDACTED DATA","HUMAN MANAGEMENT ASSISTANCE-CLIENT ACCOUNT","4752026","http://opencorporates.com/companies/gb/4752026","815230071"
"London Borough of Redbridge","http://opendatacommunities.org/doc/london-borough-council/redbridge","6BADULTSOCIA","Adult Social Care","6COLDINCMENT","Older People (65 or over) incl. Older Mentally Ill","REV","Revenue","R4211","Older People Direct Payments","09-INCOME","Income","09C","Customer & Client Receipts","8553","Care Package Charges","90196528","201110",24/01/2011 00:00:00,-100,"56800","Payroll Services","REDACTED DATA","HUMAN MANAGEMENT ASSISTANCE-CLIENT ACCOUNT","4752026","http://opencorporates.com/companies/gb/4752026","815230071"
"London Borough of Redbridge","http://opendatacommunities.org/doc/london-borough-council/redbridge","6BADULTSOCIA","Adult Social Care","6COLDINCMENT","Older People (65 or over) incl. Older Mentally Ill","REV","Revenue","R4211","Older People Direct Payments","06-TRANSFER","Transfer Payments","06B","Social Services Clients","7053","Direct Payments","90196528","201110",24/01/2011 00:00:00,650,"56800","Payroll Services","REDACTED DATA","HUMAN MANAGEMENT ASSISTANCE-CLIENT ACCOUNT","4752026","http://opencorporates.com/companies/gb/4752026","815230071"
"London Borough of Redbridge","http://opendatacommunities.org/doc/london-borough-council/redbridge","6BADULTSOCIA","Adult Social Care","6CADLEARNDIS","Adults Under 65 with Learning Disabilities","REV","Revenue","R4241","RPCT - Continuing Care - Spots","05-THIRD","Third Party Payments","05A","Independent units within the council","6502","Agency Homecare (Payments To Independent Units)","90190581","201110",05/01/2011 00:00:00,-899,"53280","Nursing Agencies","REDACTED DATA","IMMACULATE HEALTHCARE SERVICES LIMITED","",,""
"London Borough of Redbridge","http://opendatacommunities.org/doc/london-borough-council/redbridge","6BADULTSOCIA","Adult Social Care","6COTHADSERV","Other Adult Services","REV","Revenue","R4389","PCT Older Person Home Care","05-THIRD","Third Party Payments","05A","Independent units within the council","6502","Agency Homecare (Payments To Independent Units)","90190535","201110",05/01/2011 00:00:00,-875,"53280","Nursing Agencies","REDACTED DATA","IMMACULATE HEALTHCARE SERVICES LIMITED","",,""
"London Borough of Redbridge","http://opendatacommunities.org/doc/london-borough-council/redbridge","9BNONBVO","Outside the BVACOP Objective Structure","9CNONBVO","Outside the BVACOP Objective Structure","BAL","Balance Sheet","B0095","CLOSED - PO Holding Account","99-NONBV","Capital, Balance Sheet and Control","50Q","Other Balances & Reserves","9995","AP / PO Holding Account","70022364","201110",17/01/2011 00:00:00,-744,"57614","Photocopiers","REDACTED DATA","CANON UK LTD","1264300","http://opencorporates.com/companies/gb/1264300","523797128"
"London Borough of Redbridge","http://opendatacommunities.org/doc/london-borough-council/redbridge","6BSOCIALSERV","Social Services","","","REV","Revenue","R2176","Ray Lodge (N) - Integrated Team Social Care","01-EMPLOYEES","Employees","01A","Direct employee expenses","4","Agency Staff - Pay","60133958","201110",11/11/2010 00:00:00,-735,"42200","Health Authorities","REDACTED DATA","REDBRIDGE PRIMARY CARE TRUST","",,""
"London Borough of Redbridge","http://opendatacommunities.org/doc/london-borough-council/redbridge","6BADULTSOCIA","Adult Social Care","6CADLEARNDIS","Adults Under 65 with Learning Disabilities","REV","Revenue","R4215","LD Direct Payments","09-INCOME","Income","09C","Customer & Client Receipts","8553","Care Package Charges","3167218","201110",17/01/2011 00:00:00,-2000,"56800","Payroll Services","REDACTED DATA","HUMAN MANAGEMENT ASSISTANCE-CLIENT ACCOUNT","4752026","http://opencorporates.com/companies/gb/4752026","815230071"
"London Borough of Redbridge","http://opendatacommunities.org/doc/london-borough-council/redbridge","6BADULTSOCIA","Adult Social Care","6CADLEARNDIS","Adults Under 65 with Learning Disabilities","REV","Revenue","R4215","LD Direct Payments","06-TRANSFER","Transfer Payments","06B","Social Services Clients","7053","Direct Payments","3167218","201110",17/01/2011 00:00:00,1142,"56800","Payroll Services","REDACTED DATA","HUMAN MANAGEMENT ASSISTANCE-CLIENT ACCOUNT","4752026","http://opencorporates.com/companies/gb/4752026","815230071"
"London Borough of Redbridge","http://opendatacommunities.org/doc/london-borough-council/redbridge","2BENVIRONMEN","Environmental Services","2CENVTLHEALT","Environmental Health","REV","Revenue","R6765","Pest Control","04-SUPPLIES","Supplies And Services","04K","Miscellaneous expenses","6212","Clearing Blocked Sewers","60134264","201110",30/05/2008 00:00:00,-719,"1961","Advertising -Agencies","REDACTED DATA","PENNA PLC (PENNA COMMUNICATIONS)","1918150","http://opencorporates.com/companies/gb/1918150","605849719"
"London Borough of Redbridge","http://opendatacommunities.org/doc/london-borough-council/redbridge","6BADULTSOCIA","Adult Social Care","6COLDINCMENT","Older People (65 or over) incl. Older Mentally Ill","REV","Revenue","R4385","OP Nursing","05-THIRD","Third Party Payments","05H","Private contractors","6909","Nursing Homes","90192647","201110",06/01/2011 00:00:00,-778,"53350","Nursing Homes","REDACTED DATA","BUPA CARE HOMES(GABLE COURT)","",,"239731641"
"London Borough of Redbridge","http://opendatacommunities.org/doc/london-borough-council/redbridge","1BOTHEROPI&E","Other Operating Income & Expenditure","1CTRADSURDEF","Trading Account Surpluses & Deficits","REV","Revenue","R9611","114-126 High Rd Wdfd","02-PREMISES","Premises","02B","Energy costs","4002","Gas","70022837","201110",14/01/2011 00:00:00,-721,"39564","Gas Companies","REDACTED DATA","KENT COUNTY COUNCIL (GAS & ELECTRIC)","",,"204269191"
"London Borough of Redbridge","http://opendatacommunities.org/doc/london-borough-council/redbridge","6BADULTSOCIA","Adult Social Care","6COLDINCMENT","Older People (65 or over) incl. Older Mentally Ill","REV","Revenue","R4211","Older People Direct Payments","06-TRANSFER","Transfer Payments","06B","Social Services Clients","7053","Direct Payments","90192489","201110",12/01/2011 00:00:00,-717,"56800","Payroll Services","REDACTED DATA","HUMAN MANAGEMENT ASSISTANCE-CLIENT ACCOUNT","4752026","http://opencorporates.com/companies/gb/4752026","815230071"
"London Borough of Redbridge","http://opendatacommunities.org/doc/london-borough-council/redbridge","6BADULTSOCIA","Adult Social Care","6COLDINCMENT","Older People (65 or over) incl. Older Mentally Ill","REV","Revenue","R4385","OP Nursing","05-THIRD","Third Party Payments","05H","Private contractors","6909","Nursing Homes","90192591","201110",11/01/2011 00:00:00,-994,"53350","Nursing Homes","REDACTED DATA","CAMBRIDGE NURSING HOME","",,""
"London Borough of Redbridge","http://opendatacommunities.org/doc/london-borough-council/redbridge","6BADULTSOCIA","Adult Social Care","6COLDINCMENT","Older People (65 or over) incl. Older Mentally Ill","REV","Revenue","R4385","OP Nursing","05-THIRD","Third Party Payments","05H","Private contractors","6909","Nursing Homes","90192591","201110",11/01/2011 00:00:00,279,"53350","Nursing Homes","REDACTED DATA","CAMBRIDGE NURSING HOME","",,""
"London Borough of Redbridge","http://opendatacommunities.org/doc/london-borough-council/redbridge","6BADULTSOCIA","Adult Social Care","6CADLEARNDIS","Adults Under 65 with Learning Disabilities","REV","Revenue","R4394","LD - Homecare","05-THIRD","Third Party Payments","05A","Independent units within the council","6502","Agency Homecare (Payments To Independent Units)","90193000","201110",12/01/2011 00:00:00,-693,"31230","Employment & Recruitment Agencies","REDACTED DATA","SHARED CARE SERVICES LTD","4704680","http://opencorporates.com/companies/gb/4704680",""
"London Borough of Redbridge","http://opendatacommunities.org/doc/london-borough-council/redbridge","6BADULTSOCIA","Adult Social Care","6CADLEARNDIS","Adults Under 65 with Learning Disabilities","REV","Revenue","R4394","LD - Homecare","05-THIRD","Third Party Payments","05A","Independent units within the council","6502","Agency Homecare (Payments To Independent Units)","90193008","201110",12/01/2011 00:00:00,-693,"31230","Employment & Recruitment Agencies","REDACTED DATA","SHARED CARE SERVICES LTD","4704680","http://opencorporates.com/companies/gb/4704680",""
"London Borough of Redbridge","http://opendatacommunities.org/doc/london-borough-council/redbridge","6BADULTSOCIA","Adult Social Care","6CADLEARNDIS","Adults Under 65 with Learning Disabilities","REV","Revenue","R4394","LD - Homecare","05-THIRD","Third Party Payments","05A","Independent units within the council","6502","Agency Homecare (Payments To Independent Units)","90193004","201110",12/01/2011 00:00:00,-693,"31230","Employment & Recruitment Agencies","REDACTED DATA","SHARED CARE SERVICES LTD","4704680","http://opencorporates.com/companies/gb/4704680",""
"London Borough of Redbridge","http://opendatacommunities.org/doc/london-borough-council/redbridge","6BADULTSOCIA","Adult Social Care","6CADLEARNDIS","Adults Under 65 with Learning Disabilities","REV","Revenue","R4394","LD - Homecare","05-THIRD","Third Party Payments","05A","Independent units within the council","6502","Agency Homecare (Payments To Independent Units)","90193006","201110",12/01/2011 00:00:00,-693,"31230","Employment & Recruitment Agencies","REDACTED DATA","SHARED CARE SERVICES LTD","4704680","http://opencorporates.com/companies/gb/4704680",""
"London Borough of Redbridge","http://opendatacommunities.org/doc/london-borough-council/redbridge","6BADULTSOCIA","Adult Social Care","6CADLEARNDIS","Adults Under 65 with Learning Disabilities","REV","Revenue","R4394","LD - Homecare","05-THIRD","Third Party Payments","05A","Independent units within the council","6502","Agency Homecare (Payments To Independent Units)","90192996","201110",12/01/2011 00:00:00,-693,"31230","Employment & Recruitment Agencies","REDACTED DATA","SHARED CARE SERVICES LTD","4704680","http://opencorporates.com/companies/gb/4704680",""
"London Borough of Redbridge","http://opendatacommunities.org/doc/london-borough-council/redbridge","6BADULTSOCIA","Adult Social Care","6CADLEARNDIS","Adults Under 65 with Learning Disabilities","REV","Revenue","R4394","LD - Homecare","05-THIRD","Third Party Payments","05A","Independent units within the council","6502","Agency Homecare (Payments To Independent Units)","90192998","201110",12/01/2011 00:00:00,-693,"31230","Employment & Recruitment Agencies","REDACTED DATA","SHARED CARE SERVICES LTD","4704680","http://opencorporates.com/companies/gb/4704680",""
"London Borough of Redbridge","http://opendatacommunities.org/doc/london-borough-council/redbridge","6BADULTSOCIA","Adult Social Care","6CADLEARNDIS","Adults Under 65 with Learning Disabilities","REV","Revenue","R4394","LD - Homecare","05-THIRD","Third Party Payments","05A","Independent units within the council","6502","Agency Homecare (Payments To Independent Units)","90192994","201110",12/01/2011 00:00:00,-693,"31230","Employment & Recruitment Agencies","REDACTED DATA","SHARED CARE SERVICES LTD","4704680","http://opencorporates.com/companies/gb/4704680",""
"London Borough of Redbridge","http://opendatacommunities.org/doc/london-borough-council/redbridge","6BADULTSOCIA","Adult Social Care","6CADLEARNDIS","Adults Under 65 with Learning Disabilities","REV","Revenue","R4394","LD - Homecare","05-THIRD","Third Party Payments","05A","Independent units within the council","6502","Agency Homecare (Payments To Independent Units)","90192985","201110",12/01/2011 00:00:00,-693,"31230","Employment & Recruitment Agencies","REDACTED DATA","SHARED CARE SERVICES LTD","4704680","http://opencorporates.com/companies/gb/4704680",""
"London Borough of Redbridge","http://opendatacommunities.org/doc/london-borough-council/redbridge","6BADULTSOCIA","Adult Social Care","6CADLEARNDIS","Adults Under 65 with Learning Disabilities","REV","Revenue","R4394","LD - Homecare","05-THIRD","Third Party Payments","05A","Independent units within the council","6502","Agency Homecare (Payments To Independent Units)","90192987","201110",12/01/2011 00:00:00,-693,"31230","Employment & Recruitment Agencies","REDACTED DATA","SHARED CARE SERVICES LTD","4704680","http://opencorporates.com/companies/gb/4704680",""
"London Borough of Redbridge","http://opendatacommunities.org/doc/london-borough-council/redbridge","6BADULTSOCIA","Adult Social Care","6CADLEARNDIS","Adults Under 65 with Learning Disabilities","REV","Revenue","R4394","LD - Homecare","05-THIRD","Third Party Payments","05A","Independent units within the council","6502","Agency Homecare (Payments To Independent Units)","90192991","201110",12/01/2011 00:00:00,-693,"31230","Employment & Recruitment Agencies","REDACTED DATA","SHARED CARE SERVICES LTD","4704680","http://opencorporates.com/companies/gb/4704680",""
"London Borough of Redbridge","http://opendatacommunities.org/doc/london-borough-council/redbridge","6BADULTSOCIA","Adult Social Care","6CADPHYSDIS","Adults Under 65 with Phys Disab or Sensory Impair","REV","Revenue","R4393","PD Home Care","05-THIRD","Third Party Payments","05A","Independent units within the council","6502","Agency Homecare (Payments To Independent Units)","90196147","201110",14/01/2011 00:00:00,-678,"43419","Home Care Services","REDACTED DATA","CAREWATCH CARE SERVVICES LTD","2949558","http://opencorporates.com/companies/gb/2949558","927457005"
"London Borough of Redbridge","http://opendatacommunities.org/doc/london-borough-council/redbridge","6BADULTSOCIA","Adult Social Care","6CADPHYSDIS","Adults Under 65 with Phys Disab or Sensory Impair","REV","Revenue","R4393","PD Home Care","05-THIRD","Third Party Payments","05A","Independent units within the council","6502","Agency Homecare (Payments To Independent Units)","90194461","201110",11/01/2011 00:00:00,-674,"43419","Home Care Services","REDACTED DATA","CAREWATCH CARE SERVVICES LTD","2949558","http://opencorporates.com/companies/gb/2949558","927457005"
"London Borough of Redbridge","http://opendatacommunities.org/doc/london-borough-council/redbridge","6BADULTSOCIA","Adult Social Care","6CADLEARNDIS","Adults Under 65 with Learning Disabilities","REV","Revenue","R4394","LD - Homecare","05-THIRD","Third Party Payments","05A","Independent units within the council","6502","Agency Homecare (Payments To Independent Units)","90192989","201110",12/01/2011 00:00:00,-672,"31230","Employment & Recruitment Agencies","REDACTED DATA","SHARED CARE SERVICES LTD","4704680","http://opencorporates.com/companies/gb/4704680",""
"London Borough of Redbridge","http://opendatacommunities.org/doc/london-borough-council/redbridge","6BADULTSOCIA","Adult Social Care","6CADPHYSDIS","Adults Under 65 with Phys Disab or Sensory Impair","REV","Revenue","R4393","PD Home Care","05-THIRD","Third Party Payments","05A","Independent units within the council","6502","Agency Homecare (Payments To Independent Units)","90191395","201110",20/12/2010 00:00:00,-668,"43419","Home Care Services","REDACTED DATA","CAREWATCH CARE SERVVICES LTD","2949558","http://opencorporates.com/companies/gb/2949558","927457005"
"London Borough of Redbridge","http://opendatacommunities.org/doc/london-borough-council/redbridge","6BADULTSOCIA","Adult Social Care","6CADPHYSDIS","Adults Under 65 with Phys Disab or Sensory Impair","REV","Revenue","R4393","PD Home Care","05-THIRD","Third Party Payments","05A","Independent units within the council","6502","Agency Homecare (Payments To Independent Units)","90194270","201110",20/12/2010 00:00:00,-666,"43419","Home Care Services","REDACTED DATA","CAREWATCH CARE SERVVICES LTD","2949558","http://opencorporates.com/companies/gb/2949558","927457005"
"London Borough of Redbridge","http://opendatacommunities.org/doc/london-borough-council/redbridge","6BADULTSOCIA","Adult Social Care","6CADLEARNDIS","Adults Under 65 with Learning Disabilities","REV","Revenue","R4394","LD - Homecare","05-THIRD","Third Party Payments","05A","Independent units within the council","6502","Agency Homecare (Payments To Independent Units)","90193002","201110",12/01/2011 00:00:00,-665,"31230","Employment & Recruitment Agencies","REDACTED DATA","SHARED CARE SERVICES LTD","4704680","http://opencorporates.com/companies/gb/4704680",""
"London Borough of Redbridge","http://opendatacommunities.org/doc/london-borough-council/redbridge","6BADULTSOCIA","Adult Social Care","6COLDINCMENT","Older People (65 or over) incl. Older Mentally Ill","REV","Revenue","R4391","OP Home Care","05-THIRD","Third Party Payments","05A","Independent units within the council","6502","Agency Homecare (Payments To Independent Units)","90191405","201110",20/12/2010 00:00:00,-639,"43419","Home Care Services","REDACTED DATA","CAREWATCH CARE SERVVICES LTD","2949558","http://opencorporates.com/companies/gb/2949558","927457005"
"London Borough of Redbridge","http://opendatacommunities.org/doc/london-borough-council/redbridge","6BADULTSOCIA","Adult Social Care","6COLDINCMENT","Older People (65 or over) incl. Older Mentally Ill","REV","Revenue","R4391","OP Home Care","05-THIRD","Third Party Payments","05A","Independent units within the council","6502","Agency Homecare (Payments To Independent Units)","90194278","201110",20/12/2010 00:00:00,-634,"43419","Home Care Services","REDACTED DATA","CAREWATCH CARE SERVVICES LTD","2949558","http://opencorporates.com/companies/gb/2949558","927457005"
"London Borough of Redbridge","http://opendatacommunities.org/doc/london-borough-council/redbridge","6BADULTSOCIA","Adult Social Care","6COLDINCMENT","Older People (65 or over) incl. Older Mentally Ill","REV","Revenue","R4391","OP Home Care","05-THIRD","Third Party Payments","05A","Independent units within the council","6502","Agency Homecare (Payments To Independent Units)","90194555","201110",12/01/2011 00:00:00,-621,"43419","Home Care Services","REDACTED DATA","CAREWATCH CARE SERVVICES LTD","2949558","http://opencorporates.com/companies/gb/2949558","927457005"
"London Borough of Redbridge","http://opendatacommunities.org/doc/london-borough-council/redbridge","6BADULTSOCIA","Adult Social Care","6COLDINCMENT","Older People (65 or over) incl. Older Mentally Ill","REV","Revenue","R4391","OP Home Care","05-THIRD","Third Party Payments","05A","Independent units within the council","6502","Agency Homecare (Payments To Independent Units)","90190000","201110",30/12/2010 00:00:00,-541,"43419","Home Care Services","REDACTED DATA","FASTFLOW DE VERE CARE","",,""
"London Borough of Redbridge","http://opendatacommunities.org/doc/london-borough-council/redbridge","6BADULTSOCIA","Adult Social Care","6COLDINCMENT","Older People (65 or over) incl. Older Mentally Ill","REV","Revenue","R4391","OP Home Care","05-THIRD","Third Party Payments","05A","Independent units within the council","6502","Agency Homecare (Payments To Independent Units)","90191343","201110",06/12/2010 00:00:00,-506,"43419","Home Care Services","REDACTED DATA","CAREWATCH CARE SERVVICES LTD","2949558","http://opencorporates.com/companies/gb/2949558","927457005"
"London Borough of Redbridge","http://opendatacommunities.org/doc/london-borough-council/redbridge","2BENVIRONMEN","Environmental Services","2CENVTLHEALT","Environmental Health","REV","Revenue","R6777","Community Protection","04-SUPPLIES","Supplies And Services","04D","Printing, stationery and general office expenses","5700","Books","60135939","201110",20/01/2011 00:00:00,-464,"45170","Information Services","REDACTED DATA","LEXISNEXIS BUTTERWORTHS","2746621","http://opencorporates.com/companies/gb/2746621","730859520"
"London Borough of Redbridge","http://opendatacommunities.org/doc/london-borough-council/redbridge","6BADULTSOCIA","Adult Social Care","6COLDINCMENT","Older People (65 or over) incl. Older Mentally Ill","REV","Revenue","R4391","OP Home Care","05-THIRD","Third Party Payments","05A","Independent units within the council","6502","Agency Homecare (Payments To Independent Units)","90194323","201110",04/01/2011 00:00:00,-505,"43419","Home Care Services","REDACTED DATA","CAREWATCH CARE SERVVICES LTD","2949558","http://opencorporates.com/companies/gb/2949558","927457005"
"London Borough of Redbridge","http://opendatacommunities.org/doc/london-borough-council/redbridge","6BADULTSOCIA","Adult Social Care","6COLDINCMENT","Older People (65 or over) incl. Older Mentally Ill","REV","Revenue","R4391","OP Home Care","05-THIRD","Third Party Payments","05A","Independent units within the council","6502","Agency Homecare (Payments To Independent Units)","90194274","201110",20/12/2010 00:00:00,-501,"43419","Home Care Services","REDACTED DATA","CAREWATCH CARE SERVVICES LTD","2949558","http://opencorporates.com/companies/gb/2949558","927457005"
"London Borough of Redbridge","http://opendatacommunities.org/doc/london-borough-council/redbridge","6BADULTSOCIA","Adult Social Care","6CADLEARNDIS","Adults Under 65 with Learning Disabilities","REV","Revenue","R4394","LD - Homecare","05-THIRD","Third Party Payments","05A","Independent units within the council","6502","Agency Homecare (Payments To Independent Units)","90193052","201110",17/01/2011 00:00:00,501,"31230","Employment & Recruitment Agencies","REDACTED DATA","SHARED CARE SERVICES LTD","4704680","http://opencorporates.com/companies/gb/4704680",""
"London Borough of Redbridge","http://opendatacommunities.org/doc/london-borough-council/redbridge","6BADULTSOCIA","Adult Social Care","6CADLEARNDIS","Adults Under 65 with Learning Disabilities","REV","Revenue","R4394","LD - Homecare","05-THIRD","Third Party Payments","05A","Independent units within the council","6502","Agency Homecare (Payments To Independent Units)","90193051","201110",17/01/2011 00:00:00,501,"31230","Employment & Recruitment Agencies","REDACTED DATA","SHARED CARE SERVICES LTD","4704680","http://opencorporates.com/companies/gb/4704680",""
"London Borough of Redbridge","http://opendatacommunities.org/doc/london-borough-council/redbridge","6BADULTSOCIA","Adult Social Care","6CADLEARNDIS","Adults Under 65 with Learning Disabilities","REV","Revenue","R4394","LD - Homecare","05-THIRD","Third Party Payments","05A","Independent units within the council","6502","Agency Homecare (Payments To Independent Units)","90192962","201110",10/01/2011 00:00:00,501,"31230","Employment & Recruitment Agencies","REDACTED DATA","SHARED CARE SERVICES LTD","4704680","http://opencorporates.com/companies/gb/4704680",""
"London Borough of Redbridge","http://opendatacommunities.org/doc/london-borough-council/redbridge","6BADULTSOCIA","Adult Social Care","6CADLEARNDIS","Adults Under 65 with Learning Disabilities","REV","Revenue","R4394","LD - Homecare","05-THIRD","Third Party Payments","05A","Independent units within the council","6502","Agency Homecare (Payments To Independent Units)","90192963","201110",10/01/2011 00:00:00,501,"31230","Employment & Recruitment Agencies","REDACTED DATA","SHARED CARE SERVICES LTD","4704680","http://opencorporates.com/companies/gb/4704680",""
"London Borough of Redbridge","http://opendatacommunities.org/doc/london-borough-council/redbridge","6BADULTSOCIA","Adult Social Care","6CADLEARNDIS","Adults Under 65 with Learning Disabilities","REV","Revenue","R4394","LD - Homecare","05-THIRD","Third Party Payments","05A","Independent units within the council","6502","Agency Homecare (Payments To Independent Units)","90192961","201110",10/01/2011 00:00:00,501,"31230","Employment & Recruitment Agencies","REDACTED DATA","SHARED CARE SERVICES LTD","4704680","http://opencorporates.com/companies/gb/4704680",""
"London Borough of Redbridge","http://opendatacommunities.org/doc/london-borough-council/redbridge","2BENVIRONMEN","Environmental Services","2CSTCLEANS","Street Cleansing (not chargeable to Highways)","REV","Revenue","R6061","Impounded Vehicles","05-THIRD","Third Party Payments","05H","Private contractors","6915","Contractor Payments","60136233","201110",31/12/2010 00:00:00,426,"13450","Car Breakers & Dismantlers","REDACTED DATA","BRANTWOOD AUTO RECYCLING LTD","40673871","http://opencorporates.com/companies/gb/40673871","589849450"
"London Borough of Redbridge","http://opendatacommunities.org/doc/london-borough-council/redbridge","9BNONBVO","Outside the BVACOP Objective Structure","9CNONBVO","Outside the BVACOP Objective Structure","REV","Revenue","R7702","Vehicle Workshop","04-SUPPLIES","Supplies And Services","04A","Equipment, furniture and materials","5502","Equipment Purchase","625284","201110",13/01/2011 00:00:00,8,"39070","Garage Equipment","REDACTED DATA","WRIGHT PARTS","1152891860","http://opencorporates.com/companies/gb/1152891860","367766792"
"London Borough of Redbridge","http://opendatacommunities.org/doc/london-borough-council/redbridge","9BNONBVO","Outside the BVACOP Objective Structure","9CNONBVO","Outside the BVACOP Objective Structure","REV","Revenue","R7702","Vehicle Workshop","04-SUPPLIES","Supplies And Services","04A","Equipment, furniture and materials","5502","Equipment Purchase","625284","201110",13/01/2011 00:00:00,10,"39070","Garage Equipment","REDACTED DATA","WRIGHT PARTS","1152891860","http://opencorporates.com/companies/gb/1152891860","367766792"
"London Borough of Redbridge","http://opendatacommunities.org/doc/london-borough-council/redbridge","9BNONBVO","Outside the BVACOP Objective Structure","9CNONBVO","Outside the BVACOP Objective Structure","REV","Revenue","R7702","Vehicle Workshop","04-SUPPLIES","Supplies And Services","04A","Equipment, furniture and materials","5502","Equipment Purchase","625284","201110",13/01/2011 00:00:00,15,"39070","Garage Equipment","REDACTED DATA","WRIGHT PARTS","1152891860","http://opencorporates.com/companies/gb/1152891860","367766792"
"London Borough of Redbridge","http://opendatacommunities.org/doc/london-borough-council/redbridge","9BNONBVO","Outside the BVACOP Objective Structure","9CNONBVO","Outside the BVACOP Objective Structure","REV","Revenue","R7702","Vehicle Workshop","04-SUPPLIES","Supplies And Services","04A","Equipment, furniture and materials","5502","Equipment Purchase","625284","201110",13/01/2011 00:00:00,15,"39070","Garage Equipment","REDACTED DATA","WRIGHT PARTS","1152891860","http://opencorporates.com/companies/gb/1152891860","367766792"
"London Borough of Redbridge","http://opendatacommunities.org/doc/london-borough-council/redbridge","9BNONBVO","Outside the BVACOP Objective Structure","9CNONBVO","Outside the BVACOP Objective Structure","REV","Revenue","R7702","Vehicle Workshop","04-SUPPLIES","Supplies And Services","04A","Equipment, furniture and materials","5502","Equipment Purchase","625284","201110",13/01/2011 00:00:00,22,"39070","Garage Equipment","REDACTED DATA","WRIGHT PARTS","1152891860","http://opencorporates.com/companies/gb/1152891860","367766792"
"London Borough of Redbridge","http://opendatacommunities.org/doc/london-borough-council/redbridge","9BNONBVO","Outside the BVACOP Objective Structure","9CNONBVO","Outside the BVACOP Objective Structure","REV","Revenue","R7702","Vehicle Workshop","04-SUPPLIES","Supplies And Services","04A","Equipment, furniture and materials","5502","Equipment Purchase","625284","201110",13/01/2011 00:00:00,52,"39070","Garage Equipment","REDACTED DATA","WRIGHT PARTS","1152891860","http://opencorporates.com/companies/gb/1152891860","367766792"
"London Borough of Redbridge","http://opendatacommunities.org/doc/london-borough-council/redbridge","9BNONBVO","Outside the BVACOP Objective Structure","9CNONBVO","Outside the BVACOP Objective Structure","REV","Revenue","R7702","Vehicle Workshop","04-SUPPLIES","Supplies And Services","04A","Equipment, furniture and materials","5502","Equipment Purchase","625284","201110",13/01/2011 00:00:00,56,"39070","Garage Equipment","REDACTED DATA","WRIGHT PARTS","1152891860","http://opencorporates.com/companies/gb/1152891860","367766792"
"London Borough of Redbridge","http://opendatacommunities.org/doc/london-borough-council/redbridge","9BNONBVO","Outside the BVACOP Objective Structure","9CNONBVO","Outside the BVACOP Objective Structure","REV","Revenue","R7702","Vehicle Workshop","04-SUPPLIES","Supplies And Services","04A","Equipment, furniture and materials","5502","Equipment Purchase","625284","201110",13/01/2011 00:00:00,63,"39070","Garage Equipment","REDACTED DATA","WRIGHT PARTS","1152891860","http://opencorporates.com/companies/gb/1152891860","367766792"
"London Borough of Redbridge","http://opendatacommunities.org/doc/london-borough-council/redbridge","9BNONBVO","Outside the BVACOP Objective Structure","9CNONBVO","Outside the BVACOP Objective Structure","REV","Revenue","R7702","Vehicle Workshop","04-SUPPLIES","Supplies And Services","04A","Equipment, furniture and materials","5502","Equipment Purchase","625284","201110",13/01/2011 00:00:00,80,"39070","Garage Equipment","REDACTED DATA","WRIGHT PARTS","1152891860","http://opencorporates.com/companies/gb/1152891860","367766792"
"London Borough of Redbridge","http://opendatacommunities.org/doc/london-borough-council/redbridge","9BNONBVO","Outside the BVACOP Objective Structure","9CNONBVO","Outside the BVACOP Objective Structure","REV","Revenue","R7702","Vehicle Workshop","04-SUPPLIES","Supplies And Services","04A","Equipment, furniture and materials","5502","Equipment Purchase","625284","201110",13/01/2011 00:00:00,97,"39070","Garage Equipment","REDACTED DATA","WRIGHT PARTS","1152891860","http://opencorporates.com/companies/gb/1152891860","367766792"
"London Borough of Redbridge","http://opendatacommunities.org/doc/london-borough-council/redbridge","6BSOCIALSERV","Social Services","","","REV","Revenue","R2164","Albert Road - Assessment and Contact","03-TRANSPORT","Transport","03C","Contract hire and operating leases","5204","Taxis - General","60134425","201110",27/12/2010 00:00:00,426,"51180","Mini Buses - Hire & Leasing","REDACTED DATA","DILSHAN TRANSPORT GROUP LIMITED","5880601","http://opencorporates.com/companies/gb/5880601","832974502"
"London Borough of Redbridge","http://opendatacommunities.org/doc/london-borough-council/redbridge","6BADULTSOCIA","Adult Social Care","6COLDINCMENT","Older People (65 or over) incl. Older Mentally Ill","REV","Revenue","R4391","OP Home Care","05-THIRD","Third Party Payments","05A","Independent units within the council","6502","Agency Homecare (Payments To Independent Units)","90194273","201110",20/12/2010 00:00:00,501,"43419","Home Care Services","REDACTED DATA","CAREWATCH CARE SERVVICES LTD","2949558","http://opencorporates.com/companies/gb/2949558","927457005"
"London Borough of Redbridge","http://opendatacommunities.org/doc/london-borough-council/redbridge","6BADULTSOCIA","Adult Social Care","6CADPHYSDIS","Adults Under 65 with Phys Disab or Sensory Impair","REV","Revenue","R4214","PD Direct Payments","09-INCOME","Income","09C","Customer & Client Receipts","8553","Care Package Charges","3167201","201110",17/01/2011 00:00:00,-41,"56800","Payroll Services","REDACTED DATA","HUMAN MANAGEMENT ASSISTANCE-CLIENT ACCOUNT","4752026","http://opencorporates.com/companies/gb/4752026","815230071"
"London Borough of Redbridge","http://opendatacommunities.org/doc/london-borough-council/redbridge","6BADULTSOCIA","Adult Social Care","6CADPHYSDIS","Adults Under 65 with Phys Disab or Sensory Impair","REV","Revenue","R4214","PD Direct Payments","06-TRANSFER","Transfer Payments","06B","Social Services Clients","7053","Direct Payments","3167201","201110",17/01/2011 00:00:00,542,"56800","Payroll Services","REDACTED DATA","HUMAN MANAGEMENT ASSISTANCE-CLIENT ACCOUNT","4752026","http://opencorporates.com/companies/gb/4752026","815230071"
"London Borough of Redbridge","http://opendatacommunities.org/doc/london-borough-council/redbridge","2BCULTUR&REL","Cultural & Related Services","2CREC&SPORT","Recreation & Sport","REV","Revenue","R6283","Fullwell X Baths Swmg","02-PREMISES","Premises","02A","Repairs, alteration and maintenance of buildings","3026","Minor Maintenance","782597","201110",14/12/2010 00:00:00,427,"35290","Fire Alarm Systems","REDACTED DATA","MULTI-ALARM SYSTEMS (GB) LTD","1020755","http://opencorporates.com/companies/gb/1020755","358056637"
"London Borough of Redbridge","http://opendatacommunities.org/doc/london-borough-council/redbridge","2BCULTUR&REL","Cultural & Related Services","2CLIBRARY","Library Service","REV","Revenue","R2518","Fullwell X Branch Lib","01-EMPLOYEES","Employees","01A","Direct employee expenses","409","Agency Staff Pay","60135008","201110",09/01/2011 00:00:00,419,"31230","Employment & Recruitment Agencies","REDACTED DATA","EXTRASTAFF LIMITED","4063881","http://opencorporates.com/companies/gb/4063881","804797700"
"London Borough of Redbridge","http://opendatacommunities.org/doc/london-borough-council/redbridge","3BLEACENTFND","LEA Centrally Held School Funds","3CSUPPORTSEN","Supporting Special Education Needs","REV","Revenue","R3022","Home Tuition","01-EMPLOYEES","Employees","01A","Direct employee expenses","4","Agency Staff - Pay","60133979","201110",16/12/2010 00:00:00,428,"31230","Employment & Recruitment Agencies","REDACTED DATA","OFFICE ANGELS","1985032","http://opencorporates.com/companies/gb/1985032","524020109"
"London Borough of Redbridge","http://opendatacommunities.org/doc/london-borough-council/redbridge","6BADULTSOCIA","Adult Social Care","6COLDINCMENT","Older People (65 or over) incl. Older Mentally Ill","REV","Revenue","R4391","OP Home Care","05-THIRD","Third Party Payments","05A","Independent units within the council","6502","Agency Homecare (Payments To Independent Units)","90190437","201110",07/01/2011 00:00:00,502,"17580","Childcare Services","REDACTED DATA","DIGNITY CARE PLUS LTD (SURECARE ILFORD)","7342446","http://opencorporates.com/companies/gb/7342446",""
"London Borough of Redbridge","http://opendatacommunities.org/doc/london-borough-council/redbridge","1BOTHEROPI&E","Other Operating Income & Expenditure","1CTRADSURDEF","Trading Account Surpluses & Deficits","REV","Revenue","R9351","Environment And Litigation","01-EMPLOYEES","Employees","01B","Indirect employee expenses","2403","External Training","60135826","201110",13/01/2011 00:00:00,420,"45255","Institutes - Professional","REDACTED DATA","SOLACE LTD T/AS SOLACE","2271210","http://opencorporates.com/companies/gb/2271210","875480390"
"London Borough of Redbridge","http://opendatacommunities.org/doc/london-borough-council/redbridge","3BOPTIONHLDG","Optional Holding Accounts","3CYOUTH","Youth Service","REV","Revenue","R3427","Fairlop Sailing Centre","04-SUPPLIES","Supplies And Services","04A","Equipment, furniture and materials","5504","Equipment Repairs & Maintenance","60135990","201110",11/01/2011 00:00:00,420,"11210","Builders' Merchants","REDACTED DATA","SELCO TRADE CENTRES LTD","2182671","http://opencorporates.com/companies/gb/2182671","110412150"
"London Borough of Redbridge","http://opendatacommunities.org/doc/london-borough-council/redbridge","6BADULTSOCIA","Adult Social Care","6COLDINCMENT","Older People (65 or over) incl. Older Mentally Ill","REV","Revenue","R4391","OP Home Care","05-THIRD","Third Party Payments","05A","Independent units within the council","6502","Agency Homecare (Payments To Independent Units)","90196087","201110",15/01/2011 00:00:00,505,"53350","Nursing Homes","REDACTED DATA","ELEANOR NURSING & HOMECARE LTD","4393038","http://opencorporates.com/companies/gb/4393038",""
"London Borough of Redbridge","http://opendatacommunities.org/doc/london-borough-council/redbridge","9BNONBVO","Outside the BVACOP Objective Structure","9CNONBVO","Outside the BVACOP Objective Structure","CAP","Capital","C9036","R and R Capital Exp DSO Leases","99-NONBV","Capital, Balance Sheet and Control","50F","Capital - Equipment, Furniture & Fittings","9172","Vehicles","625050","201110",23/12/2010 00:00:00,70,"13330","Car Body Repairs","REDACTED DATA","BARKING PANELCRAFT","",,""
"London Borough of Redbridge","http://opendatacommunities.org/doc/london-borough-council/redbridge","9BNONBVO","Outside the BVACOP Objective Structure","9CNONBVO","Outside the BVACOP Objective Structure","CAP","Capital","C9036","R and R Capital Exp DSO Leases","99-NONBV","Capital, Balance Sheet and Control","50F","Capital - Equipment, Furniture & Fittings","9172","Vehicles","625051","201110",23/12/2010 00:00:00,70,"13330","Car Body Repairs","REDACTED DATA","BARKING PANELCRAFT","",,""
"London Borough of Redbridge","http://opendatacommunities.org/doc/london-borough-council/redbridge","9BNONBVO","Outside the BVACOP Objective Structure","9CNONBVO","Outside the BVACOP Objective Structure","CAP","Capital","C9036","R and R Capital Exp DSO Leases","99-NONBV","Capital, Balance Sheet and Control","50F","Capital - Equipment, Furniture & Fittings","9172","Vehicles","625050","201110",23/12/2010 00:00:00,360,"13330","Car Body Repairs","REDACTED DATA","BARKING PANELCRAFT","",,""
"London Borough of Redbridge","http://opendatacommunities.org/doc/london-borough-council/redbridge","9BNONBVO","Outside the BVACOP Objective Structure","9CNONBVO","Outside the BVACOP Objective Structure","CAP","Capital","C9036","R and R Capital Exp DSO Leases","99-NONBV","Capital, Balance Sheet and Control","50F","Capital - Equipment, Furniture & Fittings","9172","Vehicles","625051","201110",23/12/2010 00:00:00,360,"13330","Car Body Repairs","REDACTED DATA","BARKING PANELCRAFT","",,""
"London Borough of Redbridge","http://opendatacommunities.org/doc/london-borough-council/redbridge","6BADULTSOCIA","Adult Social Care","6COLDINCMENT","Older People (65 or over) incl. Older Mentally Ill","REV","Revenue","R4391","OP Home Care","05-THIRD","Third Party Payments","05A","Independent units within the council","6502","Agency Homecare (Payments To Independent Units)","90194322","201110",04/01/2011 00:00:00,505,"43419","Home Care Services","REDACTED DATA","CAREWATCH CARE SERVVICES LTD","2949558","http://opencorporates.com/companies/gb/2949558","927457005"
"London Borough of Redbridge","http://opendatacommunities.org/doc/london-borough-council/redbridge","1BOTHEROPI&E","Other Operating Income & Expenditure","1CTRADSURDEF","Trading Account Surpluses & Deficits","REV","Revenue","R9571","98-100 Ilford Lane","02-PREMISES","Premises","02B","Energy costs","4002","Gas","70022266","201110",08/12/2010 00:00:00,430,"39564","Gas Companies","REDACTED DATA","KENT COUNTY COUNCIL (GAS & ELECTRIC)","",,"204269191"
"London Borough of Redbridge","http://opendatacommunities.org/doc/london-borough-council/redbridge","6BADULTSOCIA","Adult Social Care","6COLDINCMENT","Older People (65 or over) incl. Older Mentally Ill","REV","Revenue","R4391","OP Home Care","05-THIRD","Third Party Payments","05A","Independent units within the council","6502","Agency Homecare (Payments To Independent Units)","90191342","201110",06/12/2010 00:00:00,506,"43419","Home Care Services","REDACTED DATA","CAREWATCH CARE SERVVICES LTD","2949558","http://opencorporates.com/companies/gb/2949558","927457005"
"London Borough of Redbridge","http://opendatacommunities.org/doc/london-borough-council/redbridge","3BNONSCHFUND","Non-School Funding","","","REV","Revenue","R2075","Woodford TLC DSG","01-EMPLOYEES","Employees","01A","Direct employee expenses","4","Agency Staff - Pay","60134212","201110",15/12/2010 00:00:00,430,"31230","Employment & Recruitment Agencies","REDACTED DATA","PROTOCOL EDUCATION LTD","2926583","http://opencorporates.com/companies/gb/2926583","764390315"
"London Borough of Redbridge","http://opendatacommunities.org/doc/london-borough-council/redbridge","6BADULTSOCIA","Adult Social Care","6COLDINCMENT","Older People (65 or over) incl. Older Mentally Ill","REV","Revenue","R4211","Older People Direct Payments","09-INCOME","Income","09C","Customer & Client Receipts","8553","Care Package Charges","3167078","201110",17/01/2011 00:00:00,-127,"56800","Payroll Services","REDACTED DATA","HUMAN MANAGEMENT ASSISTANCE-CLIENT ACCOUNT","4752026","http://opencorporates.com/companies/gb/4752026","815230071"
"London Borough of Redbridge","http://opendatacommunities.org/doc/london-borough-council/redbridge","6BADULTSOCIA","Adult Social Care","6COLDINCMENT","Older People (65 or over) incl. Older Mentally Ill","REV","Revenue","R4211","Older People Direct Payments","06-TRANSFER","Transfer Payments","06B","Social Services Clients","7053","Direct Payments","3167078","201110",17/01/2011 00:00:00,633,"56800","Payroll Services","REDACTED DATA","HUMAN MANAGEMENT ASSISTANCE-CLIENT ACCOUNT","4752026","http://opencorporates.com/companies/gb/4752026","815230071"
"London Borough of Redbridge","http://opendatacommunities.org/doc/london-borough-council/redbridge","3BLEACENTFND","LEA Centrally Held School Funds","3CASSURACCES","Assuring Access to Schools","REV","Revenue","R3290","Mus Sch - Delegated","04-SUPPLIES","Supplies And Services","04A","Equipment, furniture and materials","5501","Equipment Provision","60135030","201110",12/01/2011 00:00:00,422,"52435","Music Shops","REDACTED DATA","ADVANCE MUSIC LTD","3160431","http://opencorporates.com/companies/gb/3160431","674903019"
"London Borough of Redbridge","http://opendatacommunities.org/doc/london-borough-council/redbridge","3BNONSCHFUND","Non-School Funding","","","REV","Revenue","R2031","Pedagogy Ed Team DSG","04-SUPPLIES","Supplies And Services","04B","Catering","5603","Hospitality (Catering)","60136392","201110",16/12/2010 00:00:00,507,"17020","Charities & Voluntary Organisations","REDACTED DATA","VISION REDBRIDGE CULTURE AND LEISURE","6032714","http://opencorporates.com/companies/gb/6032714","906429031"
"London Borough of Redbridge","http://opendatacommunities.org/doc/london-borough-council/redbridge","6BSOCIALSERV","Social Services","","","REV","Revenue","R2158","Albert Road - Integrated Team Social Care","05-THIRD","Third Party Payments","05H","Private contractors","6919","Child Care Provision","60135252","201110",14/01/2011 00:00:00,507,"59760","Playgroups & Pre-School Education","REDACTED DATA","PLAYDAYS NURSERY","",,""
"London Borough of Redbridge","http://opendatacommunities.org/doc/london-borough-council/redbridge","6BSOCIALSERV","Social Services","","","REV","Revenue","R2117","SEN and CD Care and Support Packages Social Care","06-TRANSFER","Transfer Payments","06B","Social Services Clients","7050","Agency Homecare","3165905","201110",30/12/2010 00:00:00,432,"31230","Employment & Recruitment Agencies","REDACTED DATA","SERVICESCALE T/A THE PERSONNEL BANK","2707580","http://opencorporates.com/companies/gb/2707580","587172605"
"London Borough of Redbridge","http://opendatacommunities.org/doc/london-borough-council/redbridge","5BGFHOUSING","General Fund Housing","5CHOUSADVICE","Housing Advice","REV","Revenue","R5530","HAC Temporary Accomodation","05-THIRD","Third Party Payments","05H","Private contractors","6912","Bed & Breakfast Charges","3169358","201110",12/12/2010 00:00:00,432,"47846","Letting Agents","REDACTED DATA","OMEGA LETTINGS LTD","3662604","http://opencorporates.com/companies/gb/3662604","735892103"
"London Borough of Redbridge","http://opendatacommunities.org/doc/london-borough-council/redbridge","5BGFHOUSING","General Fund Housing","5CHOUSADVICE","Housing Advice","REV","Revenue","R5530","HAC Temporary Accomodation","05-THIRD","Third Party Payments","05H","Private contractors","6912","Bed & Breakfast Charges","3169382","201110",12/12/2010 00:00:00,432,"47846","Letting Agents","REDACTED DATA","OMEGA LETTINGS LTD","3662604","http://opencorporates.com/companies/gb/3662604","735892103"
"London Borough of Redbridge","http://opendatacommunities.org/doc/london-borough-council/redbridge","2BCULTUR&REL","Cultural & Related Services","2CLIBRARY","Library Service","REV","Revenue","R2522","Wanstead Branch Lib","01-EMPLOYEES","Employees","01A","Direct employee expenses","409","Agency Staff Pay","60135012","201110",09/01/2011 00:00:00,423,"31230","Employment & Recruitment Agencies","REDACTED DATA","PLAN PERSONNEL","",,""
"London Borough of Redbridge","http://opendatacommunities.org/doc/london-borough-council/redbridge","1BOTHEROPI&E","Other Operating Income & Expenditure","1CTRADSURDEF","Trading Account Surpluses & Deficits","REV","Revenue","R9605","497-499 Ley Street","02-PREMISES","Premises","02E","Water services","4320","Water Charges & Sewerage","70022828","201110",21/01/2011 00:00:00,508,"83682","Water Companies","REDACTED DATA","ESSEX & SUFFOLK WATER PLC","",,"499980359"
"London Borough of Redbridge","http://opendatacommunities.org/doc/london-borough-council/redbridge","1BCENTRALPUB","Central Services to the Public","1CLOCALTAXCO","Local Tax Collection","REV","Revenue","R5760","Council Tax Collection","04-SUPPLIES","Supplies And Services","04K","Miscellaneous expenses","6204","Bankruptcy","60135383","201110",31/12/2010 00:00:00,462,"72460","Solicitors","REDACTED DATA","WILKIN CHAPMAN SOLICITORS","",,"127942455"
"London Borough of Redbridge","http://opendatacommunities.org/doc/london-borough-council/redbridge","6BADULTSOCIA","Adult Social Care","6CADPHYSDIS","Adults Under 65 with Phys Disab or Sensory Impair","REV","Revenue","R4214","PD Direct Payments","06-TRANSFER","Transfer Payments","06B","Social Services Clients","7053","Direct Payments","3167209","201110",17/01/2011 00:00:00,509,"56800","Payroll Services","REDACTED DATA","HUMAN MANAGEMENT ASSISTANCE-CLIENT ACCOUNT","4752026","http://opencorporates.com/companies/gb/4752026","815230071"
"London Borough of Redbridge","http://opendatacommunities.org/doc/london-borough-council/redbridge","9BNONBVO","Outside the BVACOP Objective Structure","9CNONBVO","Outside the BVACOP Objective Structure","REV","Revenue","R5132","Repairs and Maintenance - Other","02-PREMISES","Premises","02A","Repairs, alteration and maintenance of buildings","3038","Service Repairs","70021951","201110",01/12/2010 00:00:00,433,"16111","Catering Equipment","REDACTED DATA","J SCOTT & SONS LTD","",,"354241082"
"London Borough of Redbridge","http://opendatacommunities.org/doc/london-borough-council/redbridge","2BCULTUR&REL","Cultural & Related Services","2CREC&SPORT","Recreation & Sport","REV","Revenue","R9591","Sir James Hawkey Hall","02-PREMISES","Premises","02A","Repairs, alteration and maintenance of buildings","3026","Minor Maintenance","782682","201110",31/12/2010 00:00:00,433,"30580","Electricians & Electrical Contractors","REDACTED DATA","EVANS & SHEA LTD","1505197","http://opencorporates.com/companies/gb/1505197","246224574"
"London Borough of Redbridge","http://opendatacommunities.org/doc/london-borough-council/redbridge","6BADULTSOCIA","Adult Social Care","6COLDINCMENT","Older People (65 or over) incl. Older Mentally Ill","REV","Revenue","R4211","Older People Direct Payments","09-INCOME","Income","09C","Customer & Client Receipts","8553","Care Package Charges","3167043","201110",17/01/2011 00:00:00,-135,"90005","Home Care Services DP","REDACTED DATA","REDACTED DATA","",,""
"London Borough of Redbridge","http://opendatacommunities.org/doc/london-borough-council/redbridge","6BADULTSOCIA","Adult Social Care","6COLDINCMENT","Older People (65 or over) incl. Older Mentally Ill","REV","Revenue","R4211","Older People Direct Payments","06-TRANSFER","Transfer Payments","06B","Social Services Clients","7053","Direct Payments","3167043","201110",17/01/2011 00:00:00,644,"90005","Home Care Services DP","REDACTED DATA","REDACTED DATA","",,""
"London Borough of Redbridge","http://opendatacommunities.org/doc/london-borough-council/redbridge","4BMANGT&SUPP","Management & Support Services","4CHIGHRDSTR","Highways/Roads (Structural)","REV","Revenue","R7092","Footway Crossing Works","05-THIRD","Third Party Payments","05H","Private contractors","6915","Contractor Payments","3169100","201110",26/01/2011 00:00:00,425,"18632","Civil Engineers","REDACTED DATA","KENSON CONTRACTORS BENINGTON LTD","1314691","http://opencorporates.com/companies/gb/1314691","301629589"
"London Borough of Redbridge","http://opendatacommunities.org/doc/london-borough-council/redbridge","6BADULTSOCIA","Adult Social Care","6COLDINCMENT","Older People (65 or over) incl. Older Mentally Ill","REV","Revenue","R4391","OP Home Care","05-THIRD","Third Party Payments","05A","Independent units within the council","6502","Agency Homecare (Payments To Independent Units)","90196097","201110",22/01/2011 00:00:00,511,"53350","Nursing Homes","REDACTED DATA","ELEANOR NURSING & HOMECARE LTD","4393038","http://opencorporates.com/companies/gb/4393038",""
"London Borough of Redbridge","http://opendatacommunities.org/doc/london-borough-council/redbridge","2BCULTUR&REL","Cultural & Related Services","2CLIBRARY","Library Service","REV","Revenue","R2500","Libraries Executive","04-SUPPLIES","Supplies And Services","04K","Miscellaneous expenses","6251","Resource Fund","3167764","201110",06/01/2011 00:00:00,512,"9849","Booksellers","REDACTED DATA","COUTTS LIBRARY SERVICES UK","2574299","http://opencorporates.com/companies/gb/2574299","818302250"
"London Borough of Redbridge","http://opendatacommunities.org/doc/london-borough-council/redbridge","6BSOCIALSERV","Social Services","","","REV","Revenue","R2117","SEN and CD Care and Support Packages Social Care","06-TRANSFER","Transfer Payments","06B","Social Services Clients","7050","Agency Homecare","3166148","201110",26/12/2010 00:00:00,513,"17020","Charities & Voluntary Organisations","REDACTED DATA","REDBRIDGE CROSSROADS CAS","2647932","http://opencorporates.com/companies/gb/2647932",""
"London Borough of Redbridge","http://opendatacommunities.org/doc/london-borough-council/redbridge","3BLEACENTFND","LEA Centrally Held School Funds","3CSUPPORTSEN","Supporting Special Education Needs","REV","Revenue","R3022","Home Tuition","01-EMPLOYEES","Employees","01A","Direct employee expenses","4","Agency Staff - Pay","60136121","201110",20/01/2011 00:00:00,428,"31230","Employment & Recruitment Agencies","REDACTED DATA","OFFICE ANGELS","1985032","http://opencorporates.com/companies/gb/1985032","524020109"
"London Borough of Redbridge","http://opendatacommunities.org/doc/london-borough-council/redbridge","2BCULTUR&REL","Cultural & Related Services","2COPENSPACES","Open Spaces","REV","Revenue","R6297","Valentines Park","02-PREMISES","Premises","02B","Energy costs","4000","Electricity","60134863","201110",04/01/2011 00:00:00,437,"30586","Electricity Companies","REDACTED DATA","EDF ENERGY 1 LTD (PO BOX 3956 PLYMOUTH)","",,"523041202"
"London Borough of Redbridge","http://opendatacommunities.org/doc/london-borough-council/redbridge","3BLEACENTFND","LEA Centrally Held School Funds","","","REV","Revenue","R2006","SEN Assessment Team DSG","04-SUPPLIES","Supplies And Services","04D","Printing, stationery and general office expenses","5705","Postage","60136020","201110",26/11/2010 00:00:00,16,"50810","Meter Mnfrs & Suppliers","REDACTED DATA","PURCHASE POWER","182037","http://opencorporates.com/companies/gb/182037","213329300"
"London Borough of Redbridge","http://opendatacommunities.org/doc/london-borough-council/redbridge","3BOPTIONHLDG","Optional Holding Accounts","3CYOUTH","Youth Service","REV","Revenue","R3371","LBR Costs","04-SUPPLIES","Supplies And Services","04D","Printing, stationery and general office expenses","5705","Postage","60136020","201110",26/11/2010 00:00:00,114,"50810","Meter Mnfrs & Suppliers","REDACTED DATA","PURCHASE POWER","182037","http://opencorporates.com/companies/gb/182037","213329300"
"London Borough of Redbridge","http://opendatacommunities.org/doc/london-borough-council/redbridge","6BSOCIALSERV","Social Services","6CCHILCOMSNG","Children's Services - Commissioning & Social Work","REV","Revenue","R2121","CLAFH - Business and Finance Social Care","04-SUPPLIES","Supplies And Services","04D","Printing, stationery and general office expenses","5705","Postage","60136020","201110",26/11/2010 00:00:00,164,"50810","Meter Mnfrs & Suppliers","REDACTED DATA","PURCHASE POWER","182037","http://opencorporates.com/companies/gb/182037","213329300"
"London Borough of Redbridge","http://opendatacommunities.org/doc/london-borough-council/redbridge","6BSOCIALSERV","Social Services","","","REV","Revenue","R2135","SEN and CD - Aiming High For Disabled Children","04-SUPPLIES","Supplies And Services","04D","Printing, stationery and general office expenses","5705","Postage","60136020","201110",26/11/2010 00:00:00,217,"50810","Meter Mnfrs & Suppliers","REDACTED DATA","PURCHASE POWER","182037","http://opencorporates.com/companies/gb/182037","213329300"
"London Borough of Redbridge","http://opendatacommunities.org/doc/london-borough-council/redbridge","6BADULTSOCIA","Adult Social Care","6CADLEARNDIS","Adults Under 65 with Learning Disabilities","REV","Revenue","R4394","LD - Homecare","05-THIRD","Third Party Payments","05A","Independent units within the council","6502","Agency Homecare (Payments To Independent Units)","90188307","201110",22/12/2010 00:00:00,514,"31230","Employment & Recruitment Agencies","REDACTED DATA","SHARED CARE SERVICES LTD","4704680","http://opencorporates.com/companies/gb/4704680",""
"London Borough of Redbridge","http://opendatacommunities.org/doc/london-borough-council/redbridge","6BADULTSOCIA","Adult Social Care","6CADLEARNDIS","Adults Under 65 with Learning Disabilities","REV","Revenue","R4394","LD - Homecare","05-THIRD","Third Party Payments","05A","Independent units within the council","6502","Agency Homecare (Payments To Independent Units)","90188320","201110",23/12/2010 00:00:00,514,"31230","Employment & Recruitment Agencies","REDACTED DATA","SHARED CARE SERVICES LTD","4704680","http://opencorporates.com/companies/gb/4704680",""
"London Borough of Redbridge","http://opendatacommunities.org/doc/london-borough-council/redbridge","3BOPTIONHLDG","Optional Holding Accounts","3CYOUTH","Youth Service","REV","Revenue","R3268","Youth Opportunity Fund","04-SUPPLIES","Supplies And Services","04A","Equipment, furniture and materials","5502","Equipment Purchase","60134603","201110",10/01/2011 00:00:00,428,"72815","Sports Goods Shops","REDACTED DATA","BISHOP SPORTS & LEISURE","842463","http://opencorporates.com/companies/gb/842463",""
"London Borough of Redbridge","http://opendatacommunities.org/doc/london-borough-council/redbridge","9BNONBVO","Outside the BVACOP Objective Structure","9CNONBVO","Outside the BVACOP Objective Structure","CAP","Capital","C2009","Decent Homes/Energy Efficiency","99-NONBV","Capital, Balance Sheet and Control","50E","Capital - Contract Payments","9150","Main Contract","70021788","201110",19/10/2009 00:00:00,490,"39610","Gas Service Engineers","REDACTED DATA","TEAM GAS SERVICES LTD(GRANT WORK ONLY)","4551463","http://opencorporates.com/companies/gb/4551463","749024232"
"London Borough of Redbridge","http://opendatacommunities.org/doc/london-borough-council/redbridge","2BCULTUR&REL","Cultural & Related Services","2COPENSPACES","Open Spaces","REV","Revenue","R6250","H Forest-Formal Area","01-EMPLOYEES","Employees","01A","Direct employee expenses","409","Agency Staff Pay","60134231","201110",29/12/2010 00:00:00,438,"31230","Employment & Recruitment Agencies","REDACTED DATA","PREMIER WORK SUPPORT LTD","5139457","http://opencorporates.com/companies/gb/5139457","345787906"
"London Borough of Redbridge","http://opendatacommunities.org/doc/london-borough-council/redbridge","2BCULTUR&REL","Cultural & Related Services","2COPENSPACES","Open Spaces","REV","Revenue","R6250","H Forest-Formal Area","01-EMPLOYEES","Employees","01A","Direct employee expenses","409","Agency Staff Pay","60134232","201110",29/12/2010 00:00:00,438,"31230","Employment & Recruitment Agencies","REDACTED DATA","PREMIER WORK SUPPORT LTD","5139457","http://opencorporates.com/companies/gb/5139457","345787906"
"London Borough of Redbridge","http://opendatacommunities.org/doc/london-borough-council/redbridge","2BCULTUR&REL","Cultural & Related Services","2COPENSPACES","Open Spaces","REV","Revenue","R6250","H Forest-Formal Area","01-EMPLOYEES","Employees","01A","Direct employee expenses","409","Agency Staff Pay","60134078","201110",22/12/2010 00:00:00,438,"31230","Employment & Recruitment Agencies","REDACTED DATA","PREMIER WORK SUPPORT LTD","5139457","http://opencorporates.com/companies/gb/5139457","345787906"
"London Borough of Redbridge","http://opendatacommunities.org/doc/london-borough-council/redbridge","3BNONSCHFUND","Non-School Funding","","","REV","Revenue","R2047","Sure Start Centre DSG","04-SUPPLIES","Supplies And Services","04K","Miscellaneous expenses","6227","Furniture Removal & Storage","60134711","201110",22/12/2010 00:00:00,516,"74100","Storage Services","REDACTED DATA","BIG YELLOW SELF STORAGE CO LTD","",,"915892884"
"London Borough of Redbridge","http://opendatacommunities.org/doc/london-borough-council/redbridge","2BCULTUR&REL","Cultural & Related Services","2CREC&SPORT","Recreation & Sport","REV","Revenue","R6380","Resources","04-SUPPLIES","Supplies And Services","04K","Miscellaneous expenses","6251","Resource Fund","60135161","201110",11/01/2011 00:00:00,431,"4490","Art & Craft Materials","REDACTED DATA","PRESERVATION EQUIPMENT LTD","",,""
"London Borough of Redbridge","http://opendatacommunities.org/doc/london-borough-council/redbridge","6BADULTSOCIA","Adult Social Care","6CADLEARNDIS","Adults Under 65 with Learning Disabilities","REV","Revenue","R4296","Mulberry Lodge","01-EMPLOYEES","Employees","01A","Direct employee expenses","4","Agency Staff - Pay","60134053","201110",26/12/2010 00:00:00,440,"31230","Employment & Recruitment Agencies","REDACTED DATA","PLAN PERSONNEL","",,""
"London Borough of Redbridge","http://opendatacommunities.org/doc/london-borough-council/redbridge","6BSOCIALSERV","Social Services","6CSUPPSERMGT","Support Service & Management Costs","REV","Revenue","R2133","MD Children's Trust","04-SUPPLIES","Supplies And Services","04H","Grants and subscriptions","5954","Professional Fees","60136851","201110",09/09/2010 00:00:00,450,"6700","Barristers","REDACTED DATA","MICHAEL GRATION","",,"978979610"
"London Borough of Redbridge","http://opendatacommunities.org/doc/london-borough-council/redbridge","3BLEACENTFND","LEA Centrally Held School Funds","3CASSURACCES","Assuring Access to Schools","REV","Revenue","R3265","Drama Centre Del","02-PREMISES","Premises","02A","Repairs, alteration and maintenance of buildings","3037","Service Contracts","782670","201110",13/01/2011 00:00:00,432,"35290","Fire Alarm Systems","REDACTED DATA","MULTI-ALARM SYSTEMS (GB) LTD","1020755","http://opencorporates.com/companies/gb/1020755","358056637"
"London Borough of Redbridge","http://opendatacommunities.org/doc/london-borough-council/redbridge","3BOPTIONHLDG","Optional Holding Accounts","3CADULT","Adult Education","REV","Revenue","R3486","RIAE Marketing","04-SUPPLIES","Supplies And Services","04A","Equipment, furniture and materials","5502","Equipment Purchase","3168237","201110",15/01/2011 00:00:00,432,"52860","Newspaper & Magazine Publishers","REDACTED DATA","ARCHANT REGIONAL LIMITED","19300","http://opencorporates.com/companies/gb/19300","711518562"
"London Borough of Redbridge","http://opendatacommunities.org/doc/london-borough-council/redbridge","2BENVIRONMEN","Environmental Services","2CENVTLHEALT","Environmental Health","REV","Revenue","R6020","Public Conveniences","02-PREMISES","Premises","02A","Repairs, alteration and maintenance of buildings","3011","Fixed Wiring Elec Testing (H&S)","782588","201110",28/10/2010 00:00:00,442,"30350","Electrical Testing & Inspecting","REDACTED DATA","RGE SERVICES LTD","3305853","http://opencorporates.com/companies/gb/3305853","919118812"
"London Borough of Redbridge","http://opendatacommunities.org/doc/london-borough-council/redbridge","6BADULTSOCIA","Adult Social Care","6CADPHYSDIS","Adults Under 65 with Phys Disab or Sensory Impair","REV","Revenue","R4214","PD Direct Payments","06-TRANSFER","Transfer Payments","06B","Social Services Clients","7053","Direct Payments","3167084","201110",17/01/2011 00:00:00,520,"56800","Payroll Services","REDACTED DATA","HUMAN MANAGEMENT ASSISTANCE-CLIENT ACCOUNT","4752026","http://opencorporates.com/companies/gb/4752026","815230071"
"London Borough of Redbridge","http://opendatacommunities.org/doc/london-borough-council/redbridge","6BADULTSOCIA","Adult Social Care","6COLDINCMENT","Older People (65 or over) incl. Older Mentally Ill","REV","Revenue","R4211","Older People Direct Payments","06-TRANSFER","Transfer Payments","06B","Social Services Clients","7053","Direct Payments","3167324","201110",17/01/2011 00:00:00,520,"56800","Payroll Services","REDACTED DATA","HUMAN MANAGEMENT ASSISTANCE-CLIENT ACCOUNT","4752026","http://opencorporates.com/companies/gb/4752026","815230071"
"London Borough of Redbridge","http://opendatacommunities.org/doc/london-borough-council/redbridge","6BADULTSOCIA","Adult Social Care","6COLDINCMENT","Older People (65 or over) incl. Older Mentally Ill","REV","Revenue","R4211","Older People Direct Payments","06-TRANSFER","Transfer Payments","06B","Social Services Clients","7053","Direct Payments","3167184","201110",17/01/2011 00:00:00,520,"56800","Payroll Services","REDACTED DATA","HUMAN MANAGEMENT ASSISTANCE-CLIENT ACCOUNT","4752026","http://opencorporates.com/companies/gb/4752026","815230071"
"London Borough of Redbridge","http://opendatacommunities.org/doc/london-borough-council/redbridge","5BGFHOUSING","General Fund Housing","5CHOUSADVICE","Housing Advice","REV","Revenue","R5530","HAC Temporary Accomodation","05-THIRD","Third Party Payments","05H","Private contractors","6912","Bed & Breakfast Charges","3167572","201110",16/11/2010 00:00:00,520,"47846","Letting Agents","REDACTED DATA","LETTING INTERNATIONAL LTD","3425414","http://opencorporates.com/companies/gb/3425414","710849440"
"London Borough of Redbridge","http://opendatacommunities.org/doc/london-borough-council/redbridge","6BSOCIALSERV","Social Services","","","REV","Revenue","R2117","SEN and CD Care and Support Packages Social Care","06-TRANSFER","Transfer Payments","06B","Social Services Clients","7050","Agency Homecare","3169538","201110",26/01/2011 00:00:00,520,"31230","Employment & Recruitment Agencies","REDACTED DATA","SHARED CARE SERVICES LTD","4704680","http://opencorporates.com/companies/gb/4704680",""
"London Borough of Redbridge","http://opendatacommunities.org/doc/london-borough-council/redbridge","6BADULTSOCIA","Adult Social Care","6CCHILLOOKED","Children Looked After","REV","Revenue","R2118","CLAFH - 2-4 Bathurst Road","01-EMPLOYEES","Employees","01A","Direct employee expenses","4","Agency Staff - Pay","60136505","201110",21/01/2011 00:00:00,443,"31230","Employment & Recruitment Agencies","REDACTED DATA","CAPITA SHG RESOURCING","",,"618184140"
"London Borough of Redbridge","http://opendatacommunities.org/doc/london-borough-council/redbridge","6BADULTSOCIA","Adult Social Care","6COLDINCMENT","Older People (65 or over) incl. Older Mentally Ill","REV","Revenue","R4391","OP Home Care","05-THIRD","Third Party Payments","05A","Independent units within the council","6502","Agency Homecare (Payments To Independent Units)","90190587","201110",06/01/2011 00:00:00,521,"53280","Nursing Agencies","REDACTED DATA","IMMACULATE HEALTHCARE SERVICES LIMITED","",,""
"London Borough of Redbridge","http://opendatacommunities.org/doc/london-borough-council/redbridge","9BNONBVO","Outside the BVACOP Objective Structure","9CNONBVO","Outside the BVACOP Objective Structure","REV","Revenue","R5132","Repairs and Maintenance - Other","02-PREMISES","Premises","02A","Repairs, alteration and maintenance of buildings","3038","Service Repairs","70022650","201110",31/12/2010 00:00:00,444,"11700","Burglar & Intruder Alarm Systems","REDACTED DATA","CARTEL SECURITY SYSTEMS LTD","3376202","http://opencorporates.com/companies/gb/3376202","696815967"
"London Borough of Redbridge","http://opendatacommunities.org/doc/london-borough-council/redbridge","9BNONBVO","Outside the BVACOP Objective Structure","9CNONBVO","Outside the BVACOP Objective Structure","REV","Revenue","R5032","Staircase Lighting HRA","02-PREMISES","Premises","02A","Repairs, alteration and maintenance of buildings","3024","Lighting Staircases and Corridors","3166971","201110",22/12/2010 00:00:00,497,"30586","Electricity Companies","REDACTED DATA","EDF ENERGY 1 LTD (PO BOX 3956 PLYMOUTH)","",,"523041202"
"London Borough of Redbridge","http://opendatacommunities.org/doc/london-borough-council/redbridge","2BCULTUR&REL","Cultural & Related Services","2CLIBRARY","Library Service","REV","Revenue","R2500","Libraries Executive","04-SUPPLIES","Supplies And Services","04K","Miscellaneous expenses","6251","Resource Fund","3168404","201110",04/01/2011 00:00:00,522,"62710","Purchasing Services","REDACTED DATA","STAR BOOKS INTERNATIONAL","",,""
"London Borough of Redbridge","http://opendatacommunities.org/doc/london-borough-council/redbridge","9BNONBVO","Outside the BVACOP Objective Structure","9CNONBVO","Outside the BVACOP Objective Structure","CAP","Capital","C9036","R and R Capital Exp DSO Leases","99-NONBV","Capital, Balance Sheet and Control","50F","Capital - Equipment, Furniture & Fittings","9172","Vehicles","625266","201110",19/01/2011 00:00:00,75,"13330","Car Body Repairs","REDACTED DATA","BARKING PANELCRAFT","",,""
"London Borough of Redbridge","http://opendatacommunities.org/doc/london-borough-council/redbridge","9BNONBVO","Outside the BVACOP Objective Structure","9CNONBVO","Outside the BVACOP Objective Structure","CAP","Capital","C9036","R and R Capital Exp DSO Leases","99-NONBV","Capital, Balance Sheet and Control","50F","Capital - Equipment, Furniture & Fittings","9172","Vehicles","625266","201110",19/01/2011 00:00:00,360,"13330","Car Body Repairs","REDACTED DATA","BARKING PANELCRAFT","",,""
"London Borough of Redbridge","http://opendatacommunities.org/doc/london-borough-council/redbridge","6BADULTSOCIA","Adult Social Care","6CADLEARNDIS","Adults Under 65 with Learning Disabilities","REV","Revenue","R4293","Woodbine Club House","01-EMPLOYEES","Employees","01A","Direct employee expenses","4","Agency Staff - Pay","60136222","201110",16/01/2011 00:00:00,435,"31230","Employment & Recruitment Agencies","REDACTED DATA","PLAN PERSONNEL","",,""
"London Borough of Redbridge","http://opendatacommunities.org/doc/london-borough-council/redbridge","","","","","REV","Revenue","R1033","Hursley Road Traffic Management","05-THIRD","Third Party Payments","05H","Private contractors","6915","Contractor Payments","3166417","201110",10/01/2011 00:00:00,436,"18632","Civil Engineers","REDACTED DATA","KENSON CONTRACTORS BENINGTON LTD","1314691","http://opencorporates.com/companies/gb/1314691","301629589"
"London Borough of Redbridge","http://opendatacommunities.org/doc/london-borough-council/redbridge","","","","","REV","Revenue","R1033","Hursley Road Traffic Management","05-THIRD","Third Party Payments","05H","Private contractors","6915","Contractor Payments","3166419","201110",10/01/2011 00:00:00,436,"18632","Civil Engineers","REDACTED DATA","KENSON CONTRACTORS BENINGTON LTD","1314691","http://opencorporates.com/companies/gb/1314691","301629589"
"London Borough of Redbridge","http://opendatacommunities.org/doc/london-borough-council/redbridge","","","","","REV","Revenue","R1033","Hursley Road Traffic Management","05-THIRD","Third Party Payments","05H","Private contractors","6915","Contractor Payments","3166420","201110",10/01/2011 00:00:00,436,"18632","Civil Engineers","REDACTED DATA","KENSON CONTRACTORS BENINGTON LTD","1314691","http://opencorporates.com/companies/gb/1314691","301629589"
"London Borough of Redbridge","http://opendatacommunities.org/doc/london-borough-council/redbridge","6BADULTSOCIA","Adult Social Care","6CADLEARNDIS","Adults Under 65 with Learning Disabilities","REV","Revenue","R4394","LD - Homecare","05-THIRD","Third Party Payments","05A","Independent units within the council","6502","Agency Homecare (Payments To Independent Units)","90188306","201110",17/12/2010 00:00:00,523,"31230","Employment & Recruitment Agencies","REDACTED DATA","SHARED CARE SERVICES LTD","4704680","http://opencorporates.com/companies/gb/4704680",""
"London Borough of Redbridge","http://opendatacommunities.org/doc/london-borough-council/redbridge","3BNONSCHFUND","Non-School Funding","","","REV","Revenue","R2043","North Childrens Centre","02-PREMISES","Premises","02H","Cleaning and domestic supplies","4620","Cleaning Contract Payments","60133807","201110",31/12/2010 00:00:00,445,"15269","Cleaning Services - Commercial","REDACTED DATA","KETRAY CONTRACT CLEANING LTD","3431457","http://opencorporates.com/companies/gb/3431457","681517328"
"London Borough of Redbridge","http://opendatacommunities.org/doc/london-borough-council/redbridge","3BLEACENTFND","LEA Centrally Held School Funds","3CFACILIMPRO","Facilitating School Improvement","REV","Revenue","R3229","Extending and increasing flex 3-4 yrs.","04-SUPPLIES","Supplies And Services","04H","Grants and subscriptions","5950","Grants","3169442","201110",08/12/2010 00:00:00,524,"59760","Playgroups & Pre-School Education","REDACTED DATA","CLAYHALL NURSERY","",,""
"London Borough of Redbridge","http://opendatacommunities.org/doc/london-borough-council/redbridge","3BOPTIONHLDG","Optional Holding Accounts","3CYOUTH","Youth Service","REV","Revenue","R3427","Fairlop Sailing Centre","04-SUPPLIES","Supplies And Services","04A","Equipment, furniture and materials","5504","Equipment Repairs & Maintenance","60134152","201110",08/12/2010 00:00:00,447,"78210","Timber Merchants, Importers & Agents","REDACTED DATA","FRANK R PRATT LTD","",,"752635230"
"London Borough of Redbridge","http://opendatacommunities.org/doc/london-borough-council/redbridge","6BADULTSOCIA","Adult Social Care","6COLDINCMENT","Older People (65 or over) incl. Older Mentally Ill","REV","Revenue","R4391","OP Home Care","05-THIRD","Third Party Payments","05A","Independent units within the council","6502","Agency Homecare (Payments To Independent Units)","90190323","201110",04/01/2011 00:00:00,525,"43419","Home Care Services","REDACTED DATA","HOMECARE & DOMESTIC SERV. LTD.","3161761","http://opencorporates.com/companies/gb/3161761",""
"London Borough of Redbridge","http://opendatacommunities.org/doc/london-borough-council/redbridge","6BADULTSOCIA","Adult Social Care","6COLDINCMENT","Older People (65 or over) incl. Older Mentally Ill","REV","Revenue","R4391","OP Home Care","05-THIRD","Third Party Payments","05A","Independent units within the council","6502","Agency Homecare (Payments To Independent Units)","90190327","201110",07/01/2011 00:00:00,525,"43419","Home Care Services","REDACTED DATA","HOMECARE & DOMESTIC SERV. LTD.","3161761","http://opencorporates.com/companies/gb/3161761",""
"London Borough of Redbridge","http://opendatacommunities.org/doc/london-borough-council/redbridge","2BCULTUR&REL","Cultural & Related Services","2COPENSPACES","Open Spaces","REV","Revenue","R6250","H Forest-Formal Area","01-EMPLOYEES","Employees","01A","Direct employee expenses","9","Agency Staff Sickness Cover","60136329","201110",18/01/2011 00:00:00,438,"31230","Employment & Recruitment Agencies","REDACTED DATA","PREMIER WORK SUPPORT LTD","5139457","http://opencorporates.com/companies/gb/5139457","345787906"
"London Borough of Redbridge","http://opendatacommunities.org/doc/london-borough-council/redbridge","2BCULTUR&REL","Cultural & Related Services","2COPENSPACES","Open Spaces","REV","Revenue","R6250","H Forest-Formal Area","01-EMPLOYEES","Employees","01A","Direct employee expenses","409","Agency Staff Pay","60136249","201110",12/01/2011 00:00:00,438,"31230","Employment & Recruitment Agencies","REDACTED DATA","PREMIER WORK SUPPORT LTD","5139457","http://opencorporates.com/companies/gb/5139457","345787906"
"London Borough of Redbridge","http://opendatacommunities.org/doc/london-borough-council/redbridge","2BCULTUR&REL","Cultural & Related Services","2COPENSPACES","Open Spaces","REV","Revenue","R6250","H Forest-Formal Area","01-EMPLOYEES","Employees","01A","Direct employee expenses","409","Agency Staff Pay","60137028","201110",25/01/2011 00:00:00,438,"31230","Employment & Recruitment Agencies","REDACTED DATA","PREMIER WORK SUPPORT LTD","5139457","http://opencorporates.com/companies/gb/5139457","345787906"
"London Borough of Redbridge","http://opendatacommunities.org/doc/london-borough-council/redbridge","2BCULTUR&REL","Cultural & Related Services","2COPENSPACES","Open Spaces","REV","Revenue","R6250","H Forest-Formal Area","01-EMPLOYEES","Employees","01A","Direct employee expenses","409","Agency Staff Pay","60137029","201110",25/01/2011 00:00:00,438,"31230","Employment & Recruitment Agencies","REDACTED DATA","PREMIER WORK SUPPORT LTD","5139457","http://opencorporates.com/companies/gb/5139457","345787906"
"London Borough of Redbridge","http://opendatacommunities.org/doc/london-borough-council/redbridge","2BCULTUR&REL","Cultural & Related Services","2COPENSPACES","Open Spaces","REV","Revenue","R6250","H Forest-Formal Area","01-EMPLOYEES","Employees","01A","Direct employee expenses","409","Agency Staff Pay","60136252","201110",12/01/2011 00:00:00,438,"31230","Employment & Recruitment Agencies","REDACTED DATA","PREMIER WORK SUPPORT LTD","5139457","http://opencorporates.com/companies/gb/5139457","345787906"
"London Borough of Redbridge","http://opendatacommunities.org/doc/london-borough-council/redbridge","2BCULTUR&REL","Cultural & Related Services","2COPENSPACES","Open Spaces","REV","Revenue","R6250","H Forest-Formal Area","01-EMPLOYEES","Employees","01A","Direct employee expenses","409","Agency Staff Pay","60136328","201110",18/01/2011 00:00:00,438,"31230","Employment & Recruitment Agencies","REDACTED DATA","PREMIER WORK SUPPORT LTD","5139457","http://opencorporates.com/companies/gb/5139457","345787906"
"London Borough of Redbridge","http://opendatacommunities.org/doc/london-borough-council/redbridge","2BCULTUR&REL","Cultural & Related Services","2COPENSPACES","Open Spaces","REV","Revenue","R6250","H Forest-Formal Area","01-EMPLOYEES","Employees","01A","Direct employee expenses","409","Agency Staff Pay","60136337","201110",18/01/2011 00:00:00,438,"31230","Employment & Recruitment Agencies","REDACTED DATA","PREMIER WORK SUPPORT LTD","5139457","http://opencorporates.com/companies/gb/5139457","345787906"
"London Borough of Redbridge","http://opendatacommunities.org/doc/london-borough-council/redbridge","2BCULTUR&REL","Cultural & Related Services","2COPENSPACES","Open Spaces","REV","Revenue","R6250","H Forest-Formal Area","01-EMPLOYEES","Employees","01A","Direct employee expenses","409","Agency Staff Pay","60134792","201110",05/01/2011 00:00:00,438,"31230","Employment & Recruitment Agencies","REDACTED DATA","PREMIER WORK SUPPORT LTD","5139457","http://opencorporates.com/companies/gb/5139457","345787906"
"London Borough of Redbridge","http://opendatacommunities.org/doc/london-borough-council/redbridge","1BOTHEROPI&E","Other Operating Income & Expenditure","1CTRADSURDEF","Trading Account Surpluses & Deficits","REV","Revenue","R9253","Network and Exchange Line","04-SUPPLIES","Supplies And Services","04F","Communications and computing","5854","Exchange Line Rental","3168455","201110",19/01/2011 00:00:00,439,"76510","Telecommunication Services","REDACTED DATA","NTL/VIRGIN MEDIA PAYMENTS LTD(MAIN ACCT)","1785381","http://opencorporates.com/companies/gb/1785381","591819014"
"London Borough of Redbridge","http://opendatacommunities.org/doc/london-borough-council/redbridge","6BADULTSOCIA","Adult Social Care","6COLDINCMENT","Older People (65 or over) incl. Older Mentally Ill","REV","Revenue","R4391","OP Home Care","05-THIRD","Third Party Payments","05A","Independent units within the council","6502","Agency Homecare (Payments To Independent Units)","90190601","201110",06/01/2011 00:00:00,527,"53280","Nursing Agencies","REDACTED DATA","IMMACULATE HEALTHCARE SERVICES LIMITED","",,""
"London Borough of Redbridge","http://opendatacommunities.org/doc/london-borough-council/redbridge","9BNONBVO","Outside the BVACOP Objective Structure","9CNONBVO","Outside the BVACOP Objective Structure","REV","Revenue","R7702","Vehicle Workshop","04-SUPPLIES","Supplies And Services","04A","Equipment, furniture and materials","5510","Materials","625132","201110",29/12/2010 00:00:00,449,"20390","Commercial Vehicle Servicing, Repairs, Parts & Acc","REDACTED DATA","HARRIS COMMERCIAL REPAIRS LTD","1154158","http://opencorporates.com/companies/gb/1154158",""
"London Borough of Redbridge","http://opendatacommunities.org/doc/london-borough-council/redbridge","4BMANGT&SUPP","Management & Support Services","2CSERVMGTSUP","Service Management & Support Services","REV","Revenue","R9155","Director of Finance and Resources","04-SUPPLIES","Supplies And Services","04H","Grants and subscriptions","5954","Professional Fees","60134481","201110",07/01/2011 00:00:00,450,"35240","Financial Services","REDACTED DATA","LOCAL GOVERNMENT FUTURES GROUP LTD","5308266","http://opencorporates.com/companies/gb/5308266","855940493"
"London Borough of Redbridge","http://opendatacommunities.org/doc/london-borough-council/redbridge","9BNONBVO","Outside the BVACOP Objective Structure","9CNONBVO","Outside the BVACOP Objective Structure","CAP","Capital","C4085","Christchurch - Add Primary Sch Places","99-NONBV","Capital, Balance Sheet and Control","50B","Capital - Contracted Works","9078","Transport Consultant & Survey","60134019","201110",21/12/2010 00:00:00,450,"12100","Business & Management Consultants","REDACTED DATA","ROBERT WEST CONSULTING LTD","2901674","http://opencorporates.com/companies/gb/2901674","646114257"
"London Borough of Redbridge","http://opendatacommunities.org/doc/london-borough-council/redbridge","1BOTHEROPI&E","Other Operating Income & Expenditure","1CTRADSURDEF","Trading Account Surpluses & Deficits","REV","Revenue","R9252","IT Services","04-SUPPLIES","Supplies And Services","04A","Equipment, furniture and materials","5503","Equipment Rentals","60133957","201110",21/12/2010 00:00:00,450,"57614","Photocopiers","REDACTED DATA","CANON UK LTD","1264300","http://opencorporates.com/companies/gb/1264300","523797128"
"London Borough of Redbridge","http://opendatacommunities.org/doc/london-borough-council/redbridge","6BADULTSOCIA","Adult Social Care","6COLDINCMENT","Older People (65 or over) incl. Older Mentally Ill","REV","Revenue","R4211","Older People Direct Payments","09-INCOME","Income","09C","Customer & Client Receipts","8553","Care Package Charges","3167101","201110",17/01/2011 00:00:00,-13,"43419","Home Care Services","REDACTED DATA","CARMEL M J FENECH","",,""
"London Borough of Redbridge","http://opendatacommunities.org/doc/london-borough-council/redbridge","6BADULTSOCIA","Adult Social Care","6COLDINCMENT","Older People (65 or over) incl. Older Mentally Ill","REV","Revenue","R4211","Older People Direct Payments","06-TRANSFER","Transfer Payments","06B","Social Services Clients","7053","Direct Payments","3167101","201110",17/01/2011 00:00:00,542,"43419","Home Care Services","REDACTED DATA","CARMEL M J FENECH","",,""
"London Borough of Redbridge","http://opendatacommunities.org/doc/london-borough-council/redbridge","6BADULTSOCIA","Adult Social Care","6CADPHYSDIS","Adults Under 65 with Phys Disab or Sensory Impair","REV","Revenue","R4138","Integrated Community Equipment Services (ICES)","02-PREMISES","Premises","02A","Repairs, alteration and maintenance of buildings","3040","Tenant Maintenance","782571","201110",21/12/2010 00:00:00,451,"73190","Stairlifts - Mnfrs & Installers","REDACTED DATA","STANNAH LIFT SERVICES","1189799","http://opencorporates.com/companies/gb/1189799",""
"London Borough of Redbridge","http://opendatacommunities.org/doc/london-borough-council/redbridge","6BSOCIALSERV","Social Services","","","REV","Revenue","R2157","Albert Road - Business and Finance Social Care","04-SUPPLIES","Supplies And Services","04D","Printing, stationery and general office expenses","5710","Stationery","60135872","201110",15/01/2011 00:00:00,442,"53770","Office Stationery Supplies","REDACTED DATA","CTS SALES AND SERVICES","",,""
"London Borough of Redbridge","http://opendatacommunities.org/doc/london-borough-council/redbridge","6BSOCIALSERV","Social Services","6CCHILCOMSNG","Children's Services - Commissioning & Social Work","REV","Revenue","R2121","CLAFH - Business and Finance Social Care","04-SUPPLIES","Supplies And Services","04D","Printing, stationery and general office expenses","5710","Stationery","60135645","201110",18/01/2011 00:00:00,2,"53770","Office Stationery Supplies","REDACTED DATA","CTS SALES AND SERVICES","",,""
"London Borough of Redbridge","http://opendatacommunities.org/doc/london-borough-council/redbridge","6BSOCIALSERV","Social Services","6CCHILCOMSNG","Children's Services - Commissioning & Social Work","REV","Revenue","R2121","CLAFH - Business and Finance Social Care","04-SUPPLIES","Supplies And Services","04D","Printing, stationery and general office expenses","5710","Stationery","60135645","201110",18/01/2011 00:00:00,41,"53770","Office Stationery Supplies","REDACTED DATA","CTS SALES AND SERVICES","",,""
"London Borough of Redbridge","http://opendatacommunities.org/doc/london-borough-council/redbridge","6BSOCIALSERV","Social Services","6CCHILCOMSNG","Children's Services - Commissioning & Social Work","REV","Revenue","R2121","CLAFH - Business and Finance Social Care","04-SUPPLIES","Supplies And Services","04D","Printing, stationery and general office expenses","5710","Stationery","60135645","201110",18/01/2011 00:00:00,43,"53770","Office Stationery Supplies","REDACTED DATA","CTS SALES AND SERVICES","",,""
"London Borough of Redbridge","http://opendatacommunities.org/doc/london-borough-council/redbridge","6BSOCIALSERV","Social Services","6CCHILCOMSNG","Children's Services - Commissioning & Social Work","REV","Revenue","R2121","CLAFH - Business and Finance Social Care","04-SUPPLIES","Supplies And Services","04D","Printing, stationery and general office expenses","5710","Stationery","60135645","201110",18/01/2011 00:00:00,97,"53770","Office Stationery Supplies","REDACTED DATA","CTS SALES AND SERVICES","",,""
"London Borough of Redbridge","http://opendatacommunities.org/doc/london-borough-council/redbridge","6BSOCIALSERV","Social Services","6CCHILCOMSNG","Children's Services - Commissioning & Social Work","REV","Revenue","R2121","CLAFH - Business and Finance Social Care","04-SUPPLIES","Supplies And Services","04D","Printing, stationery and general office expenses","5710","Stationery","60135645","201110",18/01/2011 00:00:00,260,"53770","Office Stationery Supplies","REDACTED DATA","CTS SALES AND SERVICES","",,""
"London Borough of Redbridge","http://opendatacommunities.org/doc/london-borough-council/redbridge","3BLEACENTFND","LEA Centrally Held School Funds","3CASSURACCES","Assuring Access to Schools","REV","Revenue","R3832","Primary Free Sch Meals","04-SUPPLIES","Supplies And Services","04A","Equipment, furniture and materials","5504","Equipment Repairs & Maintenance","782699","201110",19/01/2011 00:00:00,442,"16111","Catering Equipment","REDACTED DATA","J SCOTT & SONS LTD","",,"354241082"
"London Borough of Redbridge","http://opendatacommunities.org/doc/london-borough-council/redbridge","9BNONBVO","Outside the BVACOP Objective Structure","9CNONBVO","Outside the BVACOP Objective Structure","REV","Revenue","R7702","Vehicle Workshop","04-SUPPLIES","Supplies And Services","04A","Equipment, furniture and materials","5510","Materials","625096","201110",31/12/2010 00:00:00,75,"13330","Car Body Repairs","REDACTED DATA","BARKING PANELCRAFT","",,""
"London Borough of Redbridge","http://opendatacommunities.org/doc/london-borough-council/redbridge","9BNONBVO","Outside the BVACOP Objective Structure","9CNONBVO","Outside the BVACOP Objective Structure","REV","Revenue","R7702","Vehicle Workshop","04-SUPPLIES","Supplies And Services","04A","Equipment, furniture and materials","5510","Materials","625096","201110",31/12/2010 00:00:00,133,"13330","Car Body Repairs","REDACTED DATA","BARKING PANELCRAFT","",,""
"London Borough of Redbridge","http://opendatacommunities.org/doc/london-borough-council/redbridge","9BNONBVO","Outside the BVACOP Objective Structure","9CNONBVO","Outside the BVACOP Objective Structure","REV","Revenue","R7702","Vehicle Workshop","04-SUPPLIES","Supplies And Services","04A","Equipment, furniture and materials","5510","Materials","625096","201110",31/12/2010 00:00:00,244,"13330","Car Body Repairs","REDACTED DATA","BARKING PANELCRAFT","",,""
"London Borough of Redbridge","http://opendatacommunities.org/doc/london-borough-council/redbridge","6BADULTSOCIA","Adult Social Care","6CADPHYSDIS","Adults Under 65 with Phys Disab or Sensory Impair","REV","Revenue","R4214","PD Direct Payments","06-TRANSFER","Transfer Payments","06B","Social Services Clients","7053","Direct Payments","3167349","201110",17/01/2011 00:00:00,531,"56800","Payroll Services","REDACTED DATA","HUMAN MANAGEMENT ASSISTANCE-CLIENT ACCOUNT","4752026","http://opencorporates.com/companies/gb/4752026","815230071"
"London Borough of Redbridge","http://opendatacommunities.org/doc/london-borough-council/redbridge","6BADULTSOCIA","Adult Social Care","6CADPHYSDIS","Adults Under 65 with Phys Disab or Sensory Impair","REV","Revenue","R4214","PD Direct Payments","06-TRANSFER","Transfer Payments","06B","Social Services Clients","7053","Direct Payments","3167062","201110",17/01/2011 00:00:00,531,"56800","Payroll Services","REDACTED DATA","HUMAN MANAGEMENT ASSISTANCE-CLIENT ACCOUNT","4752026","http://opencorporates.com/companies/gb/4752026","815230071"
"London Borough of Redbridge","http://opendatacommunities.org/doc/london-borough-council/redbridge","6BADULTSOCIA","Adult Social Care","6CADPHYSDIS","Adults Under 65 with Phys Disab or Sensory Impair","REV","Revenue","R4214","PD Direct Payments","06-TRANSFER","Transfer Payments","06B","Social Services Clients","7053","Direct Payments","3167156","201110",17/01/2011 00:00:00,531,"90005","Home Care Services DP","REDACTED DATA","REDACTED DATA","",,""
"London Borough of Redbridge","http://opendatacommunities.org/doc/london-borough-council/redbridge","6BADULTSOCIA","Adult Social Care","6CADMENHLTH","Adults Under 65 with Mental Health Needs","REV","Revenue","R4213","MH Direct Payments","09-INCOME","Income","09C","Customer & Client Receipts","8553","Care Package Charges","3167194","201110",17/01/2011 00:00:00,-105,"56800","Payroll Services","REDACTED DATA","HUMAN MANAGEMENT ASSISTANCE-CLIENT ACCOUNT","4752026","http://opencorporates.com/companies/gb/4752026","815230071"
"London Borough of Redbridge","http://opendatacommunities.org/doc/london-borough-council/redbridge","6BADULTSOCIA","Adult Social Care","6CADMENHLTH","Adults Under 65 with Mental Health Needs","REV","Revenue","R4213","MH Direct Payments","06-TRANSFER","Transfer Payments","06B","Social Services Clients","7053","Direct Payments","3167194","201110",17/01/2011 00:00:00,636,"56800","Payroll Services","REDACTED DATA","HUMAN MANAGEMENT ASSISTANCE-CLIENT ACCOUNT","4752026","http://opencorporates.com/companies/gb/4752026","815230071"
"London Borough of Redbridge","http://opendatacommunities.org/doc/london-borough-council/redbridge","2BCULTUR&REL","Cultural & Related Services","2CLIBRARY","Library Service","REV","Revenue","R2500","Libraries Executive","04-SUPPLIES","Supplies And Services","04K","Miscellaneous expenses","6251","Resource Fund","3165862","201110",09/12/2010 00:00:00,531,"9849","Booksellers","REDACTED DATA","COUTTS LIBRARY SERVICES UK","2574299","http://opencorporates.com/companies/gb/2574299","818302250"
"London Borough of Redbridge","http://opendatacommunities.org/doc/london-borough-council/redbridge","2BCULTUR&REL","Cultural & Related Services","2COPENSPACES","Open Spaces","REV","Revenue","R6250","H Forest-Formal Area","01-EMPLOYEES","Employees","01A","Direct employee expenses","409","Agency Staff Pay","60134079","201110",22/12/2010 00:00:00,454,"31230","Employment & Recruitment Agencies","REDACTED DATA","PREMIER WORK SUPPORT LTD","5139457","http://opencorporates.com/companies/gb/5139457","345787906"
"London Borough of Redbridge","http://opendatacommunities.org/doc/london-borough-council/redbridge","1BOTHEROPI&E","Other Operating Income & Expenditure","1CTRADSURDEF","Trading Account Surpluses & Deficits","REV","Revenue","R9831","Design Team","04-SUPPLIES","Supplies And Services","04A","Equipment, furniture and materials","5510","Materials","60134489","201110",31/12/2010 00:00:00,454,"40220","Giftware - Wholesale","REDACTED DATA","HUSSEY & GREAVES LTD","597508","http://opencorporates.com/companies/gb/597508",""
"London Borough of Redbridge","http://opendatacommunities.org/doc/london-borough-council/redbridge","6BADULTSOCIA","Adult Social Care","6CADLEARNDIS","Adults Under 65 with Learning Disabilities","REV","Revenue","R4383","LD - External Day Care","05-THIRD","Third Party Payments","05H","Private contractors","6904","Day Centres","90196548","201110",26/01/2011 00:00:00,-134,"25820","Disability & Special Needs - Services","REDACTED DATA","BR3AK FREE LTD","6274766","http://opencorporates.com/companies/gb/6274766",""
"London Borough of Redbridge","http://opendatacommunities.org/doc/london-borough-council/redbridge","6BADULTSOCIA","Adult Social Care","6CADLEARNDIS","Adults Under 65 with Learning Disabilities","REV","Revenue","R4383","LD - External Day Care","05-THIRD","Third Party Payments","05H","Private contractors","6904","Day Centres","90196548","201110",26/01/2011 00:00:00,668,"25820","Disability & Special Needs - Services","REDACTED DATA","BR3AK FREE LTD","6274766","http://opencorporates.com/companies/gb/6274766",""
"London Borough of Redbridge","http://opendatacommunities.org/doc/london-borough-council/redbridge","4BTRANSPORT","Transport Planning, Policy & Strategy","4CMANGT&SUPP","Management & Support Services","REV","Revenue","R7000","Highways Executive","04-SUPPLIES","Supplies And Services","04C","Clothes, uniform and laundry","5651","Protective Clothing","60132319","201110",02/12/2010 00:00:00,455,"66190","Safety Equipment & Clothing","REDACTED DATA","ARCO GROUP","133804","http://opencorporates.com/companies/gb/133804","166911546"
"London Borough of Redbridge","http://opendatacommunities.org/doc/london-borough-council/redbridge","2BENVIRONMEN","Environmental Services","2CENVTLHEALT","Environmental Health","REV","Revenue","R6777","Community Protection","04-SUPPLIES","Supplies And Services","04D","Printing, stationery and general office expenses","5700","Books","60136495","201110",17/12/2010 00:00:00,491,"45170","Information Services","REDACTED DATA","LEXISNEXIS BUTTERWORTHS","2746621","http://opencorporates.com/companies/gb/2746621","730859520"
"London Borough of Redbridge","http://opendatacommunities.org/doc/london-borough-council/redbridge","6BADULTSOCIA","Adult Social Care","6COLDINCMENT","Older People (65 or over) incl. Older Mentally Ill","REV","Revenue","R4391","OP Home Care","05-THIRD","Third Party Payments","05A","Independent units within the council","6502","Agency Homecare (Payments To Independent Units)","90195352","201110",08/01/2011 00:00:00,536,"31230","Employment & Recruitment Agencies","REDACTED DATA","PLAN PERSONNEL","",,""
"London Borough of Redbridge","http://opendatacommunities.org/doc/london-borough-council/redbridge","4BMANGT&SUPP","Management & Support Services","4CHIGHRDROUT","Highways/Roads (Routine)","REV","Revenue","R7070","Reactive Maintenance","05-THIRD","Third Party Payments","05H","Private contractors","6915","Contractor Payments","3166568","201110",12/01/2011 00:00:00,447,"18632","Civil Engineers","REDACTED DATA","KENSON CONTRACTORS BENINGTON LTD","1314691","http://opencorporates.com/companies/gb/1314691","301629589"
"London Borough of Redbridge","http://opendatacommunities.org/doc/london-borough-council/redbridge","2BCULTUR&REL","Cultural & Related Services","2CREC&SPORT","Recreation & Sport","REV","Revenue","R6377","Ray House","02-PREMISES","Premises","02B","Energy costs","4000","Electricity","60134869","201110",14/10/2010 00:00:00,456,"30586","Electricity Companies","REDACTED DATA","EDF ENERGY 1 LTD (PO BOX 3956 PLYMOUTH)","",,"523041202"
"London Borough of Redbridge","http://opendatacommunities.org/doc/london-borough-council/redbridge","3BLEACENTFND","LEA Centrally Held School Funds","3CFACILIMPRO","Facilitating School Improvement","REV","Revenue","R3229","Extending and increasing flex 3-4 yrs.","04-SUPPLIES","Supplies And Services","04H","Grants and subscriptions","5950","Grants","3169482","201110",05/01/2011 00:00:00,537,"59760","Playgroups & Pre-School Education","REDACTED DATA","ST ANDREWS PLAYGROUP","",,""
"London Borough of Redbridge","http://opendatacommunities.org/doc/london-borough-council/redbridge","2BCULTUR&REL","Cultural & Related Services","2CLIBRARY","Library Service","REV","Revenue","R2500","Libraries Executive","04-SUPPLIES","Supplies And Services","04K","Miscellaneous expenses","6251","Resource Fund","3166313","201110",23/11/2010 00:00:00,537,"62710","Purchasing Services","REDACTED DATA","STAR BOOKS INTERNATIONAL","",,""
"London Borough of Redbridge","http://opendatacommunities.org/doc/london-borough-council/redbridge","6BSOCIALSERV","Social Services","","","REV","Revenue","R2113","SEN and CD - Section 5 and 6 Care Packages","05-THIRD","Third Party Payments","05A","Independent units within the council","6502","Agency Homecare (Payments To Independent Units)","3165960","201110",20/12/2010 00:00:00,537,"43419","Home Care Services","REDACTED DATA","FASTFLOW DE VERE CARE","",,""
"London Borough of Redbridge","http://opendatacommunities.org/doc/london-borough-council/redbridge","6BADULTSOCIA","Adult Social Care","6COLDINCMENT","Older People (65 or over) incl. Older Mentally Ill","REV","Revenue","R4391","OP Home Care","05-THIRD","Third Party Payments","05A","Independent units within the council","6502","Agency Homecare (Payments To Independent Units)","90196059","201110",15/01/2011 00:00:00,537,"53350","Nursing Homes","REDACTED DATA","ELEANOR NURSING & HOMECARE LTD","4393038","http://opencorporates.com/companies/gb/4393038",""
"London Borough of Redbridge","http://opendatacommunities.org/doc/london-borough-council/redbridge","2BCULTUR&REL","Cultural & Related Services","2CLIBRARY","Library Service","REV","Revenue","R2510","Central Lending Libry","01-EMPLOYEES","Employees","01A","Direct employee expenses","409","Agency Staff Pay","60136474","201110",03/11/2010 00:00:00,458,"31230","Employment & Recruitment Agencies","REDACTED DATA","BROOK STREET (UK) LTD","459637","http://opencorporates.com/companies/gb/459637","238595131"
"London Borough of Redbridge","http://opendatacommunities.org/doc/london-borough-council/redbridge","6BSOCIALSERV","Social Services","","","REV","Revenue","R2113","SEN and CD - Section 5 and 6 Care Packages","05-THIRD","Third Party Payments","05A","Independent units within the council","6502","Agency Homecare (Payments To Independent Units)","70021802","201110",23/12/2011 00:00:00,538,"43419","Home Care Services","REDACTED DATA","REDSPOT HOMECARE LTD","3966475","http://opencorporates.com/companies/gb/3966475",""
"London Borough of Redbridge","http://opendatacommunities.org/doc/london-borough-council/redbridge","6BSOCIALSERV","Social Services","","","REV","Revenue","R2113","SEN and CD - Section 5 and 6 Care Packages","05-THIRD","Third Party Payments","05A","Independent units within the council","6502","Agency Homecare (Payments To Independent Units)","70022953","201110",21/01/2011 00:00:00,538,"43419","Home Care Services","REDACTED DATA","REDSPOT HOMECARE LTD","3966475","http://opencorporates.com/companies/gb/3966475",""
"London Borough of Redbridge","http://opendatacommunities.org/doc/london-borough-council/redbridge","6BSOCIALSERV","Social Services","","","REV","Revenue","R2113","SEN and CD - Section 5 and 6 Care Packages","05-THIRD","Third Party Payments","05A","Independent units within the council","6502","Agency Homecare (Payments To Independent Units)","70022954","201110",13/01/2011 00:00:00,538,"43419","Home Care Services","REDACTED DATA","REDSPOT HOMECARE LTD","3966475","http://opencorporates.com/companies/gb/3966475",""
"London Borough of Redbridge","http://opendatacommunities.org/doc/london-borough-council/redbridge","3BLEACENTFND","LEA Centrally Held School Funds","3CFACILIMPRO","Facilitating School Improvement","REV","Revenue","R3229","Extending and increasing flex 3-4 yrs.","04-SUPPLIES","Supplies And Services","04H","Grants and subscriptions","5950","Grants","3169477","201110",05/01/2011 00:00:00,538,"53088","Nurseries & Creches","REDACTED DATA","MIDAS (SOUTH WOODFORD)LTD T/A PLAYDAYS NURSERY","5990590","http://opencorporates.com/companies/gb/5990590",""
"London Borough of Redbridge","http://opendatacommunities.org/doc/london-borough-council/redbridge","1BOTHEROPI&E","Other Operating Income & Expenditure","1CTRADSURDEF","Trading Account Surpluses & Deficits","REV","Revenue","R9603","17-23 Clements Rd","02-PREMISES","Premises","02B","Energy costs","4000","Electricity","70022275","201110",13/12/2010 00:00:00,458,"39564","Gas Companies","REDACTED DATA","KENT COUNTY COUNCIL (GAS & ELECTRIC)","",,"204269191"
"London Borough of Redbridge","http://opendatacommunities.org/doc/london-borough-council/redbridge","6BADULTSOCIA","Adult Social Care","6CADPHYSDIS","Adults Under 65 with Phys Disab or Sensory Impair","REV","Revenue","R4214","PD Direct Payments","09-INCOME","Income","09C","Customer & Client Receipts","8553","Care Package Charges","3167261","201110",17/01/2011 00:00:00,-2,"90005","Home Care Services DP","REDACTED DATA","REDACTED DATA","",,""
"London Borough of Redbridge","http://opendatacommunities.org/doc/london-borough-council/redbridge","2BCULTUR&REL","Cultural & Related Services","2CLIBRARY","Library Service","REV","Revenue","R2500","Libraries Executive","04-SUPPLIES","Supplies And Services","04K","Miscellaneous expenses","6251","Resource Fund","3167868","201110",31/12/2010 00:00:00,460,"9450","Book Publishers","REDACTED DATA","ULVERSCROFT LARGE PRT BKS LTD","",,""
"London Borough of Redbridge","http://opendatacommunities.org/doc/london-borough-council/redbridge","6BADULTSOCIA","Adult Social Care","6CADPHYSDIS","Adults Under 65 with Phys Disab or Sensory Impair","REV","Revenue","R4214","PD Direct Payments","06-TRANSFER","Transfer Payments","06B","Social Services Clients","7053","Direct Payments","3167261","201110",17/01/2011 00:00:00,542,"90005","Home Care Services DP","REDACTED DATA","REDACTED DATA","",,""
"London Borough of Redbridge","http://opendatacommunities.org/doc/london-borough-council/redbridge","6BADULTSOCIA","Adult Social Care","6COLDINCMENT","Older People (65 or over) incl. Older Mentally Ill","REV","Revenue","R4391","OP Home Care","05-THIRD","Third Party Payments","05A","Independent units within the council","6502","Agency Homecare (Payments To Independent Units)","90189999","201110",30/12/2010 00:00:00,541,"43419","Home Care Services","REDACTED DATA","FASTFLOW DE VERE CARE","",,""
"London Borough of Redbridge","http://opendatacommunities.org/doc/london-borough-council/redbridge","6BADULTSOCIA","Adult Social Care","6COLDINCMENT","Older People (65 or over) incl. Older Mentally Ill","REV","Revenue","R4325","Fuller Hall Kitchen","02-PREMISES","Premises","02B","Energy costs","4002","Gas","70022751","201110",12/01/2011 00:00:00,26,"39564","Gas Companies","REDACTED DATA","KENT COUNTY COUNCIL (GAS & ELECTRIC)","",,"204269191"
"London Borough of Redbridge","http://opendatacommunities.org/doc/london-borough-council/redbridge","6BADULTSOCIA","Adult Social Care","6COLDINCMENT","Older People (65 or over) incl. Older Mentally Ill","REV","Revenue","R4325","Fuller Hall Kitchen","02-PREMISES","Premises","02B","Energy costs","4002","Gas","70022751","201110",12/01/2011 00:00:00,425,"39564","Gas Companies","REDACTED DATA","KENT COUNTY COUNCIL (GAS & ELECTRIC)","",,"204269191"
"London Borough of Redbridge","http://opendatacommunities.org/doc/london-borough-council/redbridge","6BADULTSOCIA","Adult Social Care","6CADPHYSDIS","Adults Under 65 with Phys Disab or Sensory Impair","REV","Revenue","R4393","PD Home Care","05-THIRD","Third Party Payments","05A","Independent units within the council","6502","Agency Homecare (Payments To Independent Units)","90189520","201110",08/01/2011 00:00:00,542,"31230","Employment & Recruitment Agencies","REDACTED DATA","PLAN PERSONNEL","",,""
"London Borough of Redbridge","http://opendatacommunities.org/doc/london-borough-council/redbridge","6BADULTSOCIA","Adult Social Care","6CADPHYSDIS","Adults Under 65 with Phys Disab or Sensory Impair","REV","Revenue","R4393","PD Home Care","05-THIRD","Third Party Payments","05A","Independent units within the council","6502","Agency Homecare (Payments To Independent Units)","90193333","201110",17/01/2011 00:00:00,542,"31230","Employment & Recruitment Agencies","REDACTED DATA","PLAN PERSONNEL","",,""
"London Borough of Redbridge","http://opendatacommunities.org/doc/london-borough-council/redbridge","6BADULTSOCIA","Adult Social Care","6CADPHYSDIS","Adults Under 65 with Phys Disab or Sensory Impair","REV","Revenue","R4393","PD Home Care","05-THIRD","Third Party Payments","05A","Independent units within the council","6502","Agency Homecare (Payments To Independent Units)","90189218","201110",24/12/2010 00:00:00,542,"31230","Employment & Recruitment Agencies","REDACTED DATA","PLAN PERSONNEL","",,""
"London Borough of Redbridge","http://opendatacommunities.org/doc/london-borough-council/redbridge","6BADULTSOCIA","Adult Social Care","6CADPHYSDIS","Adults Under 65 with Phys Disab or Sensory Impair","REV","Revenue","R4393","PD Home Care","05-THIRD","Third Party Payments","05A","Independent units within the council","6502","Agency Homecare (Payments To Independent Units)","90189374","201110",31/12/2010 00:00:00,542,"31230","Employment & Recruitment Agencies","REDACTED DATA","PLAN PERSONNEL","",,""
"London Borough of Redbridge","http://opendatacommunities.org/doc/london-borough-council/redbridge","6BADULTSOCIA","Adult Social Care","6CADPHYSDIS","Adults Under 65 with Phys Disab or Sensory Impair","REV","Revenue","R4393","PD Home Care","05-THIRD","Third Party Payments","05A","Independent units within the council","6502","Agency Homecare (Payments To Independent Units)","90189057","201110",21/12/2010 00:00:00,542,"31230","Employment & Recruitment Agencies","REDACTED DATA","PLAN PERSONNEL","",,""
"London Borough of Redbridge","http://opendatacommunities.org/doc/london-borough-council/redbridge","6BADULTSOCIA","Adult Social Care","6CADLEARNDIS","Adults Under 65 with Learning Disabilities","REV","Revenue","R4215","LD Direct Payments","06-TRANSFER","Transfer Payments","06B","Social Services Clients","7053","Direct Payments","3167381","201110",17/01/2011 00:00:00,181,"56800","Payroll Services","REDACTED DATA","HUMAN MANAGEMENT ASSISTANCE-CLIENT ACCOUNT","4752026","http://opencorporates.com/companies/gb/4752026","815230071"
"London Borough of Redbridge","http://opendatacommunities.org/doc/london-borough-council/redbridge","6BADULTSOCIA","Adult Social Care","6CADLEARNDIS","Adults Under 65 with Learning Disabilities","REV","Revenue","R4215","LD Direct Payments","09-INCOME","Income","09C","Customer & Client Receipts","8553","Care Package Charges","3167381","201110",17/01/2011 00:00:00,362,"56800","Payroll Services","REDACTED DATA","HUMAN MANAGEMENT ASSISTANCE-CLIENT ACCOUNT","4752026","http://opencorporates.com/companies/gb/4752026","815230071"
"London Borough of Redbridge","http://opendatacommunities.org/doc/london-borough-council/redbridge","6BADULTSOCIA","Adult Social Care","6COLDINCMENT","Older People (65 or over) incl. Older Mentally Ill","REV","Revenue","R4391","OP Home Care","05-THIRD","Third Party Payments","05A","Independent units within the council","6502","Agency Homecare (Payments To Independent Units)","90193567","201110",17/01/2011 00:00:00,542,"43419","Home Care Services","REDACTED DATA","HOMECARE & DOMESTIC SERV. LTD.","3161761","http://opencorporates.com/companies/gb/3161761",""
"London Borough of Redbridge","http://opendatacommunities.org/doc/london-borough-council/redbridge","6BSOCIALSERV","Social Services","","","REV","Revenue","R2113","SEN and CD - Section 5 and 6 Care Packages","05-THIRD","Third Party Payments","05A","Independent units within the council","6502","Agency Homecare (Payments To Independent Units)","3167660","201110",26/12/2010 00:00:00,543,"17020","Charities & Voluntary Organisations","REDACTED DATA","REDBRIDGE CROSSROADS CAS","2647932","http://opencorporates.com/companies/gb/2647932",""
"London Borough of Redbridge","http://opendatacommunities.org/doc/london-borough-council/redbridge","5BGFHOUSING","General Fund Housing","5CHOUSADVICE","Housing Advice","REV","Revenue","R5530","HAC Temporary Accomodation","05-THIRD","Third Party Payments","05H","Private contractors","6912","Bed & Breakfast Charges","3169208","201110",30/09/2010 00:00:00,462,"47846","Letting Agents","REDACTED DATA","ATLANTIC LODGE LTD","3562171","http://opencorporates.com/companies/gb/3562171",""
"London Borough of Redbridge","http://opendatacommunities.org/doc/london-borough-council/redbridge","2BCULTUR&REL","Cultural & Related Services","2CCULTUR&HER","Culture & Heritage","REV","Revenue","R6329","Valentines Mansion","02-PREMISES","Premises","02A","Repairs, alteration and maintenance of buildings","3019","Heating","60133915","201110",21/12/2010 00:00:00,517,"48675","Logs, Firewood & Peat Fuel","REDACTED DATA","HARVEST WOOD FUELS LTD","1926981","http://opencorporates.com/companies/gb/1926981","564211561"
"London Borough of Redbridge","http://opendatacommunities.org/doc/london-borough-council/redbridge","6BADULTSOCIA","Adult Social Care","6COLDINCMENT","Older People (65 or over) incl. Older Mentally Ill","REV","Revenue","R4391","OP Home Care","05-THIRD","Third Party Payments","05A","Independent units within the council","6502","Agency Homecare (Payments To Independent Units)","90193794","201110",13/01/2011 00:00:00,543,"53280","Nursing Agencies","REDACTED DATA","IMMACULATE HEALTHCARE SERVICES LIMITED","",,""
"London Borough of Redbridge","http://opendatacommunities.org/doc/london-borough-council/redbridge","6BADULTSOCIA","Adult Social Care","6COLDINCMENT","Older People (65 or over) incl. Older Mentally Ill","REV","Revenue","R4391","OP Home Care","05-THIRD","Third Party Payments","05A","Independent units within the council","6502","Agency Homecare (Payments To Independent Units)","90193801","201110",13/01/2011 00:00:00,543,"53280","Nursing Agencies","REDACTED DATA","IMMACULATE HEALTHCARE SERVICES LIMITED","",,""
"London Borough of Redbridge","http://opendatacommunities.org/doc/london-borough-council/redbridge","6BADULTSOCIA","Adult Social Care","6COTHADSERV","Other Adult Services","REV","Revenue","R4389","PCT Older Person Home Care","05-THIRD","Third Party Payments","05A","Independent units within the council","6502","Agency Homecare (Payments To Independent Units)","90193793","201110",13/01/2011 00:00:00,543,"53280","Nursing Agencies","REDACTED DATA","IMMACULATE HEALTHCARE SERVICES LIMITED","",,""
"London Borough of Redbridge","http://opendatacommunities.org/doc/london-borough-council/redbridge","6BADULTSOCIA","Adult Social Care","6CADPHYSDIS","Adults Under 65 with Phys Disab or Sensory Impair","REV","Revenue","R4214","PD Direct Payments","09-INCOME","Income","09C","Customer & Client Receipts","8553","Care Package Charges","90192485","201110",07/01/2011 00:00:00,-270,"90005","Home Care Services DP","REDACTED DATA","REDACTED DATA","",,""
"London Borough of Redbridge","http://opendatacommunities.org/doc/london-borough-council/redbridge","6BADULTSOCIA","Adult Social Care","6CADPHYSDIS","Adults Under 65 with Phys Disab or Sensory Impair","REV","Revenue","R4214","PD Direct Payments","06-TRANSFER","Transfer Payments","06B","Social Services Clients","7053","Direct Payments","90192485","201110",07/01/2011 00:00:00,814,"90005","Home Care Services DP","REDACTED DATA","REDACTED DATA","",,""
"London Borough of Redbridge","http://opendatacommunities.org/doc/london-borough-council/redbridge","2BCULTUR&REL","Cultural & Related Services","2CLIBRARY","Library Service","REV","Revenue","R2500","Libraries Executive","04-SUPPLIES","Supplies And Services","04K","Miscellaneous expenses","6251","Resource Fund","3167762","201110",07/01/2011 00:00:00,545,"9849","Booksellers","REDACTED DATA","HOLT-JACKSON BOOK CO LTD","267825","http://opencorporates.com/companies/gb/267825","636420257"
"London Borough of Redbridge","http://opendatacommunities.org/doc/london-borough-council/redbridge","9BNONBVO","Outside the BVACOP Objective Structure","9CNONBVO","Outside the BVACOP Objective Structure","REV","Revenue","R7751","Catering Service","04-SUPPLIES","Supplies And Services","04B","Catering","5601","Catering Provisions (Food & Drink)","60136452","201110",24/01/2011 00:00:00,234,"16250","Catering Food & Drink Suppliers","REDACTED DATA","BRAKE BROS FOODSERVICE LTD","",,""
"London Borough of Redbridge","http://opendatacommunities.org/doc/london-borough-council/redbridge","9BNONBVO","Outside the BVACOP Objective Structure","9CNONBVO","Outside the BVACOP Objective Structure","REV","Revenue","R7751","Catering Service","04-SUPPLIES","Supplies And Services","04B","Catering","5601","Catering Provisions (Food & Drink)","60136452","201110",24/01/2011 00:00:00,265,"16250","Catering Food & Drink Suppliers","REDACTED DATA","BRAKE BROS FOODSERVICE LTD","",,""
"London Borough of Redbridge","http://opendatacommunities.org/doc/london-borough-council/redbridge","3BLEACENTFND","LEA Centrally Held School Funds","","","REV","Revenue","R2006","SEN Assessment Team DSG","04-SUPPLIES","Supplies And Services","04D","Printing, stationery and general office expenses","5705","Postage","60135513","201110",26/12/2010 00:00:00,14,"50810","Meter Mnfrs & Suppliers","REDACTED DATA","PURCHASE POWER","182037","http://opencorporates.com/companies/gb/182037","213329300"
"London Borough of Redbridge","http://opendatacommunities.org/doc/london-borough-council/redbridge","6BSOCIALSERV","Social Services","","","REV","Revenue","R2135","SEN and CD - Aiming High For Disabled Children","04-SUPPLIES","Supplies And Services","04D","Printing, stationery and general office expenses","5705","Postage","60135513","201110",26/12/2010 00:00:00,104,"50810","Meter Mnfrs & Suppliers","REDACTED DATA","PURCHASE POWER","182037","http://opencorporates.com/companies/gb/182037","213329300"
"London Borough of Redbridge","http://opendatacommunities.org/doc/london-borough-council/redbridge","3BOPTIONHLDG","Optional Holding Accounts","3CYOUTH","Youth Service","REV","Revenue","R3371","LBR Costs","04-SUPPLIES","Supplies And Services","04D","Printing, stationery and general office expenses","5705","Postage","60135513","201110",26/12/2010 00:00:00,152,"50810","Meter Mnfrs & Suppliers","REDACTED DATA","PURCHASE POWER","182037","http://opencorporates.com/companies/gb/182037","213329300"
"London Borough of Redbridge","http://opendatacommunities.org/doc/london-borough-council/redbridge","6BSOCIALSERV","Social Services","6CCHILCOMSNG","Children's Services - Commissioning & Social Work","REV","Revenue","R2121","CLAFH - Business and Finance Social Care","04-SUPPLIES","Supplies And Services","04D","Printing, stationery and general office expenses","5705","Postage","60135513","201110",26/12/2010 00:00:00,272,"50810","Meter Mnfrs & Suppliers","REDACTED DATA","PURCHASE POWER","182037","http://opencorporates.com/companies/gb/182037","213329300"
"London Borough of Redbridge","http://opendatacommunities.org/doc/london-borough-council/redbridge","6BADULTSOCIA","Adult Social Care","6CADLEARNDIS","Adults Under 65 with Learning Disabilities","REV","Revenue","R4218","Individualised Budgets","06-TRANSFER","Transfer Payments","06B","Social Services Clients","7053","Direct Payments","90195122","201110",31/12/2010 00:00:00,-260,"24200","Day Centres","REDACTED DATA","INCLUSIVE COMMUNITIES LTD","6642491","http://opencorporates.com/companies/gb/6642491",""
"London Borough of Redbridge","http://opendatacommunities.org/doc/london-borough-council/redbridge","6BADULTSOCIA","Adult Social Care","6CADLEARNDIS","Adults Under 65 with Learning Disabilities","REV","Revenue","R4218","Individualised Budgets","06-TRANSFER","Transfer Payments","06B","Social Services Clients","7053","Direct Payments","90195122","201110",31/12/2010 00:00:00,806,"24200","Day Centres","REDACTED DATA","INCLUSIVE COMMUNITIES LTD","6642491","http://opencorporates.com/companies/gb/6642491",""
"London Borough of Redbridge","http://opendatacommunities.org/doc/london-borough-council/redbridge","1BOTHEROPI&E","Other Operating Income & Expenditure","1CTRADSURDEF","Trading Account Surpluses & Deficits","REV","Revenue","R9148","Contracts Holding Account","02-PREMISES","Premises","02I","Grounds maintenance costs","4753","Trees / Recreational","60135993","201110",10/01/2011 00:00:00,455,"53090","Nurseries - Wholesale","REDACTED DATA","BARCHAM TREES","",,""
"London Borough of Redbridge","http://opendatacommunities.org/doc/london-borough-council/redbridge","3BNONSCHFUND","Non-School Funding","","","REV","Revenue","R2064","The Learning Centre Redbridge College","01-EMPLOYEES","Employees","01A","Direct employee expenses","4","Agency Staff - Pay","60136357","201110",17/12/2010 00:00:00,465,"31230","Employment & Recruitment Agencies","REDACTED DATA","RANDSTAD EDUCATION LTD","3403530","http://opencorporates.com/companies/gb/3403530","492435726"
"London Borough of Redbridge","http://opendatacommunities.org/doc/london-borough-council/redbridge","6BSOCIALSERV","Social Services","","","REV","Revenue","R2177","Albert Road - Public Law Outline","04-SUPPLIES","Supplies And Services","04H","Grants and subscriptions","5954","Professional Fees","60135450","201110",06/12/2010 00:00:00,465,"50345","Medical & Dental Laboratories","REDACTED DATA","ORCHID CELLMARK LTD","4045527","http://opencorporates.com/companies/gb/4045527","750029264"
"London Borough of Redbridge","http://opendatacommunities.org/doc/london-borough-council/redbridge","6BADULTSOCIA","Adult Social Care","6CADLEARNDIS","Adults Under 65 with Learning Disabilities","REV","Revenue","R4293","Woodbine Club House","01-EMPLOYEES","Employees","01A","Direct employee expenses","4","Agency Staff - Pay","60136010","201110",05/12/2010 00:00:00,465,"31230","Employment & Recruitment Agencies","REDACTED DATA","PLAN PERSONNEL","",,""
"London Borough of Redbridge","http://opendatacommunities.org/doc/london-borough-council/redbridge","6BSOCIALSERV","Social Services","","","REV","Revenue","R2176","Ray Lodge (N) - Integrated Team Social Care","01-EMPLOYEES","Employees","01A","Direct employee expenses","4","Agency Staff - Pay","60134146","201110",22/12/2010 00:00:00,466,"31230","Employment & Recruitment Agencies","REDACTED DATA","BROOK STREET (UK) LTD","459637","http://opencorporates.com/companies/gb/459637","238595131"
"London Borough of Redbridge","http://opendatacommunities.org/doc/london-borough-council/redbridge","6BSOCIALSERV","Social Services","","","REV","Revenue","R2176","Ray Lodge (N) - Integrated Team Social Care","01-EMPLOYEES","Employees","01A","Direct employee expenses","4","Agency Staff - Pay","60133959","201110",15/12/2010 00:00:00,466,"31230","Employment & Recruitment Agencies","REDACTED DATA","BROOK STREET (UK) LTD","459637","http://opencorporates.com/companies/gb/459637","238595131"
"London Borough of Redbridge","http://opendatacommunities.org/doc/london-borough-council/redbridge","6BSOCIALSERV","Social Services","","","REV","Revenue","R2176","Ray Lodge (N) - Integrated Team Social Care","01-EMPLOYEES","Employees","01A","Direct employee expenses","4","Agency Staff - Pay","60135330","201110",29/12/2010 00:00:00,466,"31230","Employment & Recruitment Agencies","REDACTED DATA","BROOK STREET (UK) LTD","459637","http://opencorporates.com/companies/gb/459637","238595131"
"London Borough of Redbridge","http://opendatacommunities.org/doc/london-borough-council/redbridge","6BSOCIALSERV","Social Services","","","REV","Revenue","R2176","Ray Lodge (N) - Integrated Team Social Care","01-EMPLOYEES","Employees","01A","Direct employee expenses","4","Agency Staff - Pay","60134130","201110",22/12/2010 00:00:00,466,"31230","Employment & Recruitment Agencies","REDACTED DATA","BROOK STREET (UK) LTD","459637","http://opencorporates.com/companies/gb/459637","238595131"
"London Borough of Redbridge","http://opendatacommunities.org/doc/london-borough-council/redbridge","6BSOCIALSERV","Social Services","","","REV","Revenue","R2176","Ray Lodge (N) - Integrated Team Social Care","01-EMPLOYEES","Employees","01A","Direct employee expenses","4","Agency Staff - Pay","60134131","201110",22/12/2010 00:00:00,466,"31230","Employment & Recruitment Agencies","REDACTED DATA","BROOK STREET (UK) LTD","459637","http://opencorporates.com/companies/gb/459637","238595131"
"London Borough of Redbridge","http://opendatacommunities.org/doc/london-borough-council/redbridge","6BSOCIALSERV","Social Services","","","REV","Revenue","R2176","Ray Lodge (N) - Integrated Team Social Care","01-EMPLOYEES","Employees","01A","Direct employee expenses","4","Agency Staff - Pay","60134133","201110",22/12/2010 00:00:00,466,"31230","Employment & Recruitment Agencies","REDACTED DATA","BROOK STREET (UK) LTD","459637","http://opencorporates.com/companies/gb/459637","238595131"
"London Borough of Redbridge","http://opendatacommunities.org/doc/london-borough-council/redbridge","7BCDC","Corporate & Democratic Core","7CCORPMGT","Corporate Management","REV","Revenue","R9805","Members Support","04-SUPPLIES","Supplies And Services","04A","Equipment, furniture and materials","5502","Equipment Purchase","60135034","201110",08/01/2011 00:00:00,456,"57614","Photocopiers","REDACTED DATA","CANON UK LTD","1264300","http://opencorporates.com/companies/gb/1264300","523797128"
"London Borough of Redbridge","http://opendatacommunities.org/doc/london-borough-council/redbridge","6BADULTSOCIA","Adult Social Care","6COLDINCMENT","Older People (65 or over) incl. Older Mentally Ill","REV","Revenue","R4211","Older People Direct Payments","09-INCOME","Income","09C","Customer & Client Receipts","8553","Care Package Charges","90195138","201110",20/01/2011 00:00:00,-18,"90005","Home Care Services DP","REDACTED DATA","REDACTED DATA","",,""
"London Borough of Redbridge","http://opendatacommunities.org/doc/london-borough-council/redbridge","6BADULTSOCIA","Adult Social Care","6COLDINCMENT","Older People (65 or over) incl. Older Mentally Ill","REV","Revenue","R4211","Older People Direct Payments","06-TRANSFER","Transfer Payments","06B","Social Services Clients","7053","Direct Payments","90195138","201110",20/01/2011 00:00:00,565,"90005","Home Care Services DP","REDACTED DATA","REDACTED DATA","",,""
"London Borough of Redbridge","http://opendatacommunities.org/doc/london-borough-council/redbridge","6BADULTSOCIA","Adult Social Care","6COLDINCMENT","Older People (65 or over) incl. Older Mentally Ill","REV","Revenue","R4391","OP Home Care","05-THIRD","Third Party Payments","05A","Independent units within the council","6502","Agency Homecare (Payments To Independent Units)","90190588","201110",06/01/2011 00:00:00,547,"53280","Nursing Agencies","REDACTED DATA","IMMACULATE HEALTHCARE SERVICES LIMITED","",,""
"London Borough of Redbridge","http://opendatacommunities.org/doc/london-borough-council/redbridge","6BADULTSOCIA","Adult Social Care","6COLDINCMENT","Older People (65 or over) incl. Older Mentally Ill","REV","Revenue","R4391","OP Home Care","05-THIRD","Third Party Payments","05A","Independent units within the council","6502","Agency Homecare (Payments To Independent Units)","90190596","201110",06/01/2011 00:00:00,547,"53280","Nursing Agencies","REDACTED DATA","IMMACULATE HEALTHCARE SERVICES LIMITED","",,""
"London Borough of Redbridge","http://opendatacommunities.org/doc/london-borough-council/redbridge","6BADULTSOCIA","Adult Social Care","6CADLEARNDIS","Adults Under 65 with Learning Disabilities","REV","Revenue","R4215","LD Direct Payments","09-INCOME","Income","09C","Customer & Client Receipts","8553","Care Package Charges","3167226","201110",17/01/2011 00:00:00,-52,"56800","Payroll Services","REDACTED DATA","HUMAN MANAGEMENT ASSISTANCE-CLIENT ACCOUNT","4752026","http://opencorporates.com/companies/gb/4752026","815230071"
"London Borough of Redbridge","http://opendatacommunities.org/doc/london-borough-council/redbridge","6BADULTSOCIA","Adult Social Care","6CADLEARNDIS","Adults Under 65 with Learning Disabilities","REV","Revenue","R4215","LD Direct Payments","06-TRANSFER","Transfer Payments","06B","Social Services Clients","7053","Direct Payments","3167226","201110",17/01/2011 00:00:00,600,"56800","Payroll Services","REDACTED DATA","HUMAN MANAGEMENT ASSISTANCE-CLIENT ACCOUNT","4752026","http://opencorporates.com/companies/gb/4752026","815230071"
"London Borough of Redbridge","http://opendatacommunities.org/doc/london-borough-council/redbridge","6BSOCIALSERV","Social Services","","","REV","Revenue","R2164","Albert Road - Assessment and Contact","03-TRANSPORT","Transport","03C","Contract hire and operating leases","5204","Taxis - General","60134435","201110",27/12/2010 00:00:00,467,"51180","Mini Buses - Hire & Leasing","REDACTED DATA","DILSHAN TRANSPORT GROUP LIMITED","5880601","http://opencorporates.com/companies/gb/5880601","832974502"
"London Borough of Redbridge","http://opendatacommunities.org/doc/london-borough-council/redbridge","6BSOCIALSERV","Social Services","","","REV","Revenue","R2164","Albert Road - Assessment and Contact","03-TRANSPORT","Transport","03C","Contract hire and operating leases","5204","Taxis - General","60134403","201110",29/11/2010 00:00:00,467,"51180","Mini Buses - Hire & Leasing","REDACTED DATA","DILSHAN TRANSPORT GROUP LIMITED","5880601","http://opencorporates.com/companies/gb/5880601","832974502"
"London Borough of Redbridge","http://opendatacommunities.org/doc/london-borough-council/redbridge","2BCULTUR&REL","Cultural & Related Services","2CLIBRARY","Library Service","REV","Revenue","R2510","Central Lending Libry","01-EMPLOYEES","Employees","01A","Direct employee expenses","409","Agency Staff Pay","60135479","201110",12/01/2011 00:00:00,458,"31230","Employment & Recruitment Agencies","REDACTED DATA","BROOK STREET (UK) LTD","459637","http://opencorporates.com/companies/gb/459637","238595131"
"London Borough of Redbridge","http://opendatacommunities.org/doc/london-borough-council/redbridge","5BGFHOUSING","General Fund Housing","5CHOUSADVICE","Housing Advice","REV","Revenue","R5530","HAC Temporary Accomodation","05-THIRD","Third Party Payments","05H","Private contractors","6912","Bed & Breakfast Charges","3169383","201110",11/11/2010 00:00:00,468,"47846","Letting Agents","REDACTED DATA","OMEGA LETTINGS LTD","3662604","http://opencorporates.com/companies/gb/3662604","735892103"
"London Borough of Redbridge","http://opendatacommunities.org/doc/london-borough-council/redbridge","3BNONSCHFUND","Non-School Funding","","","REV","Revenue","R2037","TLC Loxford DSG","01-EMPLOYEES","Employees","01A","Direct employee expenses","4","Agency Staff - Pay","60134195","201110",19/11/2010 00:00:00,468,"31230","Employment & Recruitment Agencies","REDACTED DATA","RANDSTAD EDUCATION LTD","3403530","http://opencorporates.com/companies/gb/3403530","492435726"
"London Borough of Redbridge","http://opendatacommunities.org/doc/london-borough-council/redbridge","3BNONSCHFUND","Non-School Funding","","","REV","Revenue","R2064","The Learning Centre Redbridge College","01-EMPLOYEES","Employees","01A","Direct employee expenses","4","Agency Staff - Pay","60134194","201110",19/11/2010 00:00:00,468,"31230","Employment & Recruitment Agencies","REDACTED DATA","RANDSTAD EDUCATION LTD","3403530","http://opencorporates.com/companies/gb/3403530","492435726"
"London Borough of Redbridge","http://opendatacommunities.org/doc/london-borough-council/redbridge","3BNONSCHFUND","Non-School Funding","","","REV","Revenue","R2064","The Learning Centre Redbridge College","01-EMPLOYEES","Employees","01A","Direct employee expenses","4","Agency Staff - Pay","60136363","201110",10/12/2010 00:00:00,468,"31230","Employment & Recruitment Agencies","REDACTED DATA","RANDSTAD EDUCATION LTD","3403530","http://opencorporates.com/companies/gb/3403530","492435726"
"London Borough of Redbridge","http://opendatacommunities.org/doc/london-borough-council/redbridge","6BSOCIALSERV","Social Services","","","REV","Revenue","R2135","SEN and CD - Aiming High For Disabled Children","05-THIRD","Third Party Payments","05H","Private contractors","6903","Respite Care Block Contracts","60134738","201110",30/11/2011 00:00:00,550,"17020","Charities & Voluntary Organisations","REDACTED DATA","ELHAP","",,""
"London Borough of Redbridge","http://opendatacommunities.org/doc/london-borough-council/redbridge","9BNONBVO","Outside the BVACOP Objective Structure","9CNONBVO","Outside the BVACOP Objective Structure","REV","Revenue","R7702","Vehicle Workshop","04-SUPPLIES","Supplies And Services","04A","Equipment, furniture and materials","5510","Materials","625385","201110",17/01/2011 00:00:00,45,"20375","Commercial Vehicle Mnfrs","REDACTED DATA","PLAXTON LTD","5101150","http://opencorporates.com/companies/gb/5101150","886696149"
"London Borough of Redbridge","http://opendatacommunities.org/doc/london-borough-council/redbridge","9BNONBVO","Outside the BVACOP Objective Structure","9CNONBVO","Outside the BVACOP Objective Structure","REV","Revenue","R7702","Vehicle Workshop","04-SUPPLIES","Supplies And Services","04A","Equipment, furniture and materials","5510","Materials","625385","201110",17/01/2011 00:00:00,207,"20375","Commercial Vehicle Mnfrs","REDACTED DATA","PLAXTON LTD","5101150","http://opencorporates.com/companies/gb/5101150","886696149"
"London Borough of Redbridge","http://opendatacommunities.org/doc/london-borough-council/redbridge","9BNONBVO","Outside the BVACOP Objective Structure","9CNONBVO","Outside the BVACOP Objective Structure","REV","Revenue","R7702","Vehicle Workshop","04-SUPPLIES","Supplies And Services","04A","Equipment, furniture and materials","5510","Materials","625385","201110",17/01/2011 00:00:00,207,"20375","Commercial Vehicle Mnfrs","REDACTED DATA","PLAXTON LTD","5101150","http://opencorporates.com/companies/gb/5101150","886696149"
"London Borough of Redbridge","http://opendatacommunities.org/doc/london-borough-council/redbridge","2BENVIRONMEN","Environmental Services","2CCONSPROT","Consumer Protection","REV","Revenue","R6771","Consumer Support","04-SUPPLIES","Supplies And Services","04K","Miscellaneous expenses","6256","Samples","60135299","201110",11/01/2011 00:00:00,460,"48583","Local Government","REDACTED DATA","HAMPSHIRE COUNTY COUNCIL (THE CASTLE)","",,""
"London Borough of Redbridge","http://opendatacommunities.org/doc/london-borough-council/redbridge","6BSOCIALSERV","Social Services","","","REV","Revenue","R2114","SEN and CD - Integrated Team 0-9 Social Care","06-TRANSFER","Transfer Payments","06B","Social Services Clients","7050","Agency Homecare","70022452","201110",05/01/2011 00:00:00,552,"64710","Residential Care Homes","REDACTED DATA","FERN CARE SERVICES LTD","6371509","http://opencorporates.com/companies/gb/6371509",""
"London Borough of Redbridge","http://opendatacommunities.org/doc/london-borough-council/redbridge","5BGFHOUSING","General Fund Housing","","","REV","Revenue","R5529","HAC Assessment","04-SUPPLIES","Supplies And Services","04K","Miscellaneous expenses","6282","Prevention & Procurement","70022263","201110",11/01/2011 00:00:00,552,"22415","Corrosion Prevention & Control","REDACTED DATA","MASOOD UL-HASAN","",,""
"London Borough of Redbridge","http://opendatacommunities.org/doc/london-borough-council/redbridge","6BADULTSOCIA","Adult Social Care","6COLDINCMENT","Older People (65 or over) incl. Older Mentally Ill","REV","Revenue","R4211","Older People Direct Payments","06-TRANSFER","Transfer Payments","06B","Social Services Clients","7053","Direct Payments","3167243","201110",17/01/2011 00:00:00,79,"56800","Payroll Services","REDACTED DATA","HUMAN MANAGEMENT ASSISTANCE-CLIENT ACCOUNT","4752026","http://opencorporates.com/companies/gb/4752026","815230071"
"London Borough of Redbridge","http://opendatacommunities.org/doc/london-borough-council/redbridge","6BADULTSOCIA","Adult Social Care","6COLDINCMENT","Older People (65 or over) incl. Older Mentally Ill","REV","Revenue","R4211","Older People Direct Payments","06-TRANSFER","Transfer Payments","06B","Social Services Clients","7053","Direct Payments","3167243","201110",17/01/2011 00:00:00,475,"56800","Payroll Services","REDACTED DATA","HUMAN MANAGEMENT ASSISTANCE-CLIENT ACCOUNT","4752026","http://opencorporates.com/companies/gb/4752026","815230071"
"London Borough of Redbridge","http://opendatacommunities.org/doc/london-borough-council/redbridge","6BADULTSOCIA","Adult Social Care","6COLDINCMENT","Older People (65 or over) incl. Older Mentally Ill","REV","Revenue","R4211","Older People Direct Payments","06-TRANSFER","Transfer Payments","06B","Social Services Clients","7053","Direct Payments","3167038","201110",17/01/2011 00:00:00,554,"56800","Payroll Services","REDACTED DATA","HUMAN MANAGEMENT ASSISTANCE-CLIENT ACCOUNT","4752026","http://opencorporates.com/companies/gb/4752026","815230071"
"London Borough of Redbridge","http://opendatacommunities.org/doc/london-borough-council/redbridge","6BSOCIALSERV","Social Services","","","REV","Revenue","R2164","Albert Road - Assessment and Contact","01-EMPLOYEES","Employees","01A","Direct employee expenses","4","Agency Staff - Pay","60133947","201110",04/01/2011 00:00:00,554,"1880","Adoption & Fostering","REDACTED DATA","QUALITY FOSTER CARE LTD","4464943","http://opencorporates.com/companies/gb/4464943",""
"London Borough of Redbridge","http://opendatacommunities.org/doc/london-borough-council/redbridge","6BSOCIALSERV","Social Services","6CASYLUMSEEK","Asylum Seekers","REV","Revenue","R2128","CLAFH - Leaving Care Asylum Seekers","06-TRANSFER","Transfer Payments","06B","Social Services Clients","7051","Asylum Seekers","3168154","201110",31/12/2010 00:00:00,471,"43419","Home Care Services","REDACTED DATA","LONDON CARE SOLUTIONS","",,"858539276"
"London Borough of Redbridge","http://opendatacommunities.org/doc/london-borough-council/redbridge","5BGFHOUSING","General Fund Housing","5CHOUSADVICE","Housing Advice","REV","Revenue","R5530","HAC Temporary Accomodation","05-THIRD","Third Party Payments","05H","Private contractors","6916","Leasing Payments To Landlords","70022484","201110",08/11/2010 00:00:00,555,"47846","Letting Agents","REDACTED DATA","REGENTS PROPERTY SERVICES","2759288506","http://opencorporates.com/companies/gb/2759288506",""
"London Borough of Redbridge","http://opendatacommunities.org/doc/london-borough-council/redbridge","6BADULTSOCIA","Adult Social Care","6CADMENHLTH","Adults Under 65 with Mental Health Needs","REV","Revenue","R4213","MH Direct Payments","09-INCOME","Income","09C","Customer & Client Receipts","8553","Care Package Charges","3167035","201110",17/01/2011 00:00:00,-10,"56800","Payroll Services","REDACTED DATA","HUMAN MANAGEMENT ASSISTANCE-CLIENT ACCOUNT","4752026","http://opencorporates.com/companies/gb/4752026","815230071"
"London Borough of Redbridge","http://opendatacommunities.org/doc/london-borough-council/redbridge","6BADULTSOCIA","Adult Social Care","6CADMENHLTH","Adults Under 65 with Mental Health Needs","REV","Revenue","R4213","MH Direct Payments","06-TRANSFER","Transfer Payments","06B","Social Services Clients","7053","Direct Payments","3167035","201110",17/01/2011 00:00:00,565,"56800","Payroll Services","REDACTED DATA","HUMAN MANAGEMENT ASSISTANCE-CLIENT ACCOUNT","4752026","http://opencorporates.com/companies/gb/4752026","815230071"
"London Borough of Redbridge","http://opendatacommunities.org/doc/london-borough-council/redbridge","9BNONBVO","Outside the BVACOP Objective Structure","9CNONBVO","Outside the BVACOP Objective Structure","REV","Revenue","R5115","West Patch 1","02-PREMISES","Premises","02A","Repairs, alteration and maintenance of buildings","3040","Tenant Maintenance","60134036","201110",20/12/2010 00:00:00,473,"55550","Paint Mnfrs","REDACTED DATA","ICI CONTRACT DIRECT","2881641","http://opencorporates.com/companies/gb/2881641","238458241"
"London Borough of Redbridge","http://opendatacommunities.org/doc/london-borough-council/redbridge","6BADULTSOCIA","Adult Social Care","6CADLEARNDIS","Adults Under 65 with Learning Disabilities","REV","Revenue","R4296","Mulberry Lodge","01-EMPLOYEES","Employees","01A","Direct employee expenses","4","Agency Staff - Pay","60134052","201110",12/12/2010 00:00:00,473,"31230","Employment & Recruitment Agencies","REDACTED DATA","PLAN PERSONNEL","",,""
"London Borough of Redbridge","http://opendatacommunities.org/doc/london-borough-council/redbridge","6BADULTSOCIA","Adult Social Care","6CCHILLOOKED","Children Looked After","REV","Revenue","R2119","CLAFH - Supportive Accommodation","05-THIRD","Third Party Payments","05H","Private contractors","6910","Care Packages","3168212","201110",31/12/2010 00:00:00,474,"43419","Home Care Services","REDACTED DATA","LONDON CARE SOLUTIONS","",,"858539276"
"London Borough of Redbridge","http://opendatacommunities.org/doc/london-borough-council/redbridge","6BADULTSOCIA","Adult Social Care","6CCHILLOOKED","Children Looked After","REV","Revenue","R2119","CLAFH - Supportive Accommodation","05-THIRD","Third Party Payments","05H","Private contractors","6910","Care Packages","3168166","201110",30/11/2010 00:00:00,474,"43419","Home Care Services","REDACTED DATA","LONDON CARE SOLUTIONS","",,"858539276"
"London Borough of Redbridge","http://opendatacommunities.org/doc/london-borough-council/redbridge","6BADULTSOCIA","Adult Social Care","6CCHILLOOKED","Children Looked After","REV","Revenue","R2119","CLAFH - Supportive Accommodation","05-THIRD","Third Party Payments","05H","Private contractors","6910","Care Packages","3168147","201110",16/12/2010 00:00:00,474,"43419","Home Care Services","REDACTED DATA","LONDON CARE SOLUTIONS","",,"858539276"
"London Borough of Redbridge","http://opendatacommunities.org/doc/london-borough-council/redbridge","6BADULTSOCIA","Adult Social Care","6COLDINCMENT","Older People (65 or over) incl. Older Mentally Ill","REV","Revenue","R4378","OP - Care Purchasing","09-INCOME","Income","09C","Customer & Client Receipts","8555","Accommodation Charges","90192926","201110",06/01/2011 00:00:00,-1104,"64710","Residential Care Homes","REDACTED DATA","KATHRYN HOMES LTD (THE WHITECROFT)","6016281","http://opencorporates.com/companies/gb/6016281",""
"London Borough of Redbridge","http://opendatacommunities.org/doc/london-borough-council/redbridge","6BADULTSOCIA","Adult Social Care","6COLDINCMENT","Older People (65 or over) incl. Older Mentally Ill","REV","Revenue","R4378","OP - Care Purchasing","05-THIRD","Third Party Payments","05F","Voluntary associations","6802","Residential Homes","90192926","201110",06/01/2011 00:00:00,1660,"64710","Residential Care Homes","REDACTED DATA","KATHRYN HOMES LTD (THE WHITECROFT)","6016281","http://opencorporates.com/companies/gb/6016281",""
"London Borough of Redbridge","http://opendatacommunities.org/doc/london-borough-council/redbridge","2BCULTUR&REL","Cultural & Related Services","2CLIBRARY","Library Service","REV","Revenue","R2521","Sth Woodford Bnch Lib","02-PREMISES","Premises","02A","Repairs, alteration and maintenance of buildings","3037","Service Contracts","782684","201110",28/10/2010 00:00:00,475,"30350","Electrical Testing & Inspecting","REDACTED DATA","RGE SERVICES LTD","3305853","http://opencorporates.com/companies/gb/3305853","919118812"
"London Borough of Redbridge","http://opendatacommunities.org/doc/london-borough-council/redbridge","6BADULTSOCIA","Adult Social Care","6CADLEARNDIS","Adults Under 65 with Learning Disabilities","REV","Revenue","R4070","Head of Learning Disability","04-SUPPLIES","Supplies And Services","04E","Services","5754","Consultancy","60134915","201110",03/12/2010 00:00:00,475,"12100","Business & Management Consultants","REDACTED DATA","KEVIN HARRINGTON ASSOCIATES LTD","",,"809683886"
"London Borough of Redbridge","http://opendatacommunities.org/doc/london-borough-council/redbridge","6BSOCIALSERV","Social Services","6CSUPPSERMGT","Support Service & Management Costs","REV","Revenue","R2133","MD Children's Trust","04-SUPPLIES","Supplies And Services","04E","Services","5754","Consultancy","60134492","201110",02/01/2011 00:00:00,475,"12100","Business & Management Consultants","REDACTED DATA","KEVIN HARRINGTON ASSOCIATES LTD","",,"809683886"
"London Borough of Redbridge","http://opendatacommunities.org/doc/london-borough-council/redbridge","9BNONBVO","Outside the BVACOP Objective Structure","9CNONBVO","Outside the BVACOP Objective Structure","REV","Revenue","R7702","Vehicle Workshop","04-SUPPLIES","Supplies And Services","04A","Equipment, furniture and materials","5504","Equipment Repairs & Maintenance","625263","201110",16/12/2010 00:00:00,476,"20390","Commercial Vehicle Servicing, Repairs, Parts & Acc","REDACTED DATA","TIMEPLAN FUEL SOLUTIONS LIMITED","2941742","http://opencorporates.com/companies/gb/2941742","987993815"
"London Borough of Redbridge","http://opendatacommunities.org/doc/london-borough-council/redbridge","6BSOCIALSERV","Social Services","","","REV","Revenue","R2117","SEN and CD Care and Support Packages Social Care","06-TRANSFER","Transfer Payments","06B","Social Services Clients","7050","Agency Homecare","3169544","201110",15/01/2011 00:00:00,560,"31230","Employment & Recruitment Agencies","REDACTED DATA","SHARED CARE SERVICES LTD","4704680","http://opencorporates.com/companies/gb/4704680",""
"London Borough of Redbridge","http://opendatacommunities.org/doc/london-borough-council/redbridge","6BADULTSOCIA","Adult Social Care","6CCHILLOOKED","Children Looked After","REV","Revenue","R2118","CLAFH - 2-4 Bathurst Road","01-EMPLOYEES","Employees","01A","Direct employee expenses","4","Agency Staff - Pay","60136678","201110",12/11/2010 00:00:00,478,"31230","Employment & Recruitment Agencies","REDACTED DATA","REED EMPLOYMENT PLC","",,"216357765"
"London Borough of Redbridge","http://opendatacommunities.org/doc/london-borough-council/redbridge","9BNONBVO","Outside the BVACOP Objective Structure","9CNONBVO","Outside the BVACOP Objective Structure","REV","Revenue","R7751","Catering Service","04-SUPPLIES","Supplies And Services","04B","Catering","5601","Catering Provisions (Food & Drink)","60135135","201110",10/01/2011 00:00:00,133,"16250","Catering Food & Drink Suppliers","REDACTED DATA","BRAKE BROS FOODSERVICE LTD","",,""
"London Borough of Redbridge","http://opendatacommunities.org/doc/london-borough-council/redbridge","9BNONBVO","Outside the BVACOP Objective Structure","9CNONBVO","Outside the BVACOP Objective Structure","REV","Revenue","R7751","Catering Service","04-SUPPLIES","Supplies And Services","04B","Catering","5601","Catering Provisions (Food & Drink)","60135135","201110",10/01/2011 00:00:00,357,"16250","Catering Food & Drink Suppliers","REDACTED DATA","BRAKE BROS FOODSERVICE LTD","",,""
"London Borough of Redbridge","http://opendatacommunities.org/doc/london-borough-council/redbridge","6BADULTSOCIA","Adult Social Care","6COLDINCMENT","Older People (65 or over) incl. Older Mentally Ill","REV","Revenue","R4169","Intermediate Care","04-SUPPLIES","Supplies And Services","04D","Printing, stationery and general office expenses","5705","Postage","60136829","201110",24/01/2011 00:00:00,468,"60230","Post Office Services","REDACTED DATA","NEOPOST FINANCE LTD","2658324","http://opencorporates.com/companies/gb/2658324","597265489"
"London Borough of Redbridge","http://opendatacommunities.org/doc/london-borough-council/redbridge","6BADULTSOCIA","Adult Social Care","6CCHILLOOKED","Children Looked After","REV","Revenue","R2118","CLAFH - 2-4 Bathurst Road","01-EMPLOYEES","Employees","01A","Direct employee expenses","4","Agency Staff - Pay","60134813","201110",07/01/2011 00:00:00,468,"31230","Employment & Recruitment Agencies","REDACTED DATA","CAPITA SHG RESOURCING","",,"618184140"
"London Borough of Redbridge","http://opendatacommunities.org/doc/london-borough-council/redbridge","3BLEACENTFND","LEA Centrally Held School Funds","3CSUPPORTSEN","Supporting Special Education Needs","REV","Revenue","R3434","Pupil Referral Unit (KS3)","02-PREMISES","Premises","02H","Cleaning and domestic supplies","4620","Cleaning Contract Payments","60133660","201110",28/12/2010 00:00:00,478,"15269","Cleaning Services - Commercial","REDACTED DATA","VENTURE FINANCE PLC RE MATT HYGIENE LTD","6656371","http://opencorporates.com/companies/gb/6656371","769902186"
"London Borough of Redbridge","http://opendatacommunities.org/doc/london-borough-council/redbridge","9BNONBVO","Outside the BVACOP Objective Structure","9CNONBVO","Outside the BVACOP Objective Structure","CAP","Capital","C2208","20 MPH Zones","99-NONBV","Capital, Balance Sheet and Control","50E","Capital - Contract Payments","9150","Main Contract","60134609","201110",22/12/2010 00:00:00,479,"1961","Advertising -Agencies","REDACTED DATA","TMP (UK) LTD","5648039","http://opencorporates.com/companies/gb/5648039","872904502"
"London Borough of Redbridge","http://opendatacommunities.org/doc/london-borough-council/redbridge","6BADULTSOCIA","Adult Social Care","6COLDINCMENT","Older People (65 or over) incl. Older Mentally Ill","REV","Revenue","R4211","Older People Direct Payments","06-TRANSFER","Transfer Payments","06B","Social Services Clients","7053","Direct Payments","3167242","201110",17/01/2011 00:00:00,563,"56800","Payroll Services","REDACTED DATA","HUMAN MANAGEMENT ASSISTANCE-CLIENT ACCOUNT","4752026","http://opencorporates.com/companies/gb/4752026","815230071"
"London Borough of Redbridge","http://opendatacommunities.org/doc/london-borough-council/redbridge","6BADULTSOCIA","Adult Social Care","6CADLEARNDIS","Adults Under 65 with Learning Disabilities","REV","Revenue","R4383","LD - External Day Care","05-THIRD","Third Party Payments","05H","Private contractors","6904","Day Centres","90195201","201110",06/01/2011 00:00:00,563,"17020","Charities & Voluntary Organisations","REDACTED DATA","MENCAP H & S REGION 2 (R.S.M.H.C.& A)","550457","http://opencorporates.com/companies/gb/550457","791483106"
"London Borough of Redbridge","http://opendatacommunities.org/doc/london-borough-council/redbridge","4BMANGT&SUPP","Management & Support Services","4CHIGHRDSTR","Highways/Roads (Structural)","REV","Revenue","R7092","Footway Crossing Works","05-THIRD","Third Party Payments","05H","Private contractors","6915","Contractor Payments","3169081","201110",26/01/2011 00:00:00,469,"18632","Civil Engineers","REDACTED DATA","KENSON CONTRACTORS BENINGTON LTD","1314691","http://opencorporates.com/companies/gb/1314691","301629589"
"London Borough of Redbridge","http://opendatacommunities.org/doc/london-borough-council/redbridge","6BADULTSOCIA","Adult Social Care","6COTHADSERV","Other Adult Services","REV","Revenue","R4395","Alcohol Day Care and Other","05-THIRD","Third Party Payments","05F","Voluntary associations","6800","Voluntary Organisations","90188248","201110",22/12/2010 00:00:00,563,"17020","Charities & Voluntary Organisations","REDACTED DATA","DRUGSLINE-CHADBAD LTD","",,""
"London Borough of Redbridge","http://opendatacommunities.org/doc/london-borough-council/redbridge","4BMANGT&SUPP","Management & Support Services","4CHIGHRDROUT","Highways/Roads (Routine)","REV","Revenue","R7070","Reactive Maintenance","05-THIRD","Third Party Payments","05H","Private contractors","6915","Contractor Payments","3166512","201110",12/01/2011 00:00:00,470,"18632","Civil Engineers","REDACTED DATA","KENSON CONTRACTORS BENINGTON LTD","1314691","http://opencorporates.com/companies/gb/1314691","301629589"
"London Borough of Redbridge","http://opendatacommunities.org/doc/london-borough-council/redbridge","1BOTHEROPI&E","Other Operating Income & Expenditure","1CTRADSURDEF","Trading Account Surpluses & Deficits","REV","Revenue","R7207","Building Services","04-SUPPLIES","Supplies And Services","04F","Communications and computing","5852","Computer Equipment - Repairs & Maintenance","60134150","201110",27/12/2010 00:00:00,480,"0","Not Classified","REDACTED DATA","LEGAL ESCROW & ARBITRATION SERVICES LTD","5306309","http://opencorporates.com/companies/gb/5306309","861390815"
"London Borough of Redbridge","http://opendatacommunities.org/doc/london-borough-council/redbridge","3BLEACENTFND","LEA Centrally Held School Funds","","","REV","Revenue","R3854","SDG Finance Training 1","04-SUPPLIES","Supplies And Services","04H","Grants and subscriptions","5950","Grants","60136622","201110",04/12/2010 00:00:00,480,"17020","Charities & Voluntary Organisations","REDACTED DATA","FRENFORD CLUBS LIMITED (ARDLEIGH GREEN)","3226473","http://opencorporates.com/companies/gb/3226473",""
"London Borough of Redbridge","http://opendatacommunities.org/doc/london-borough-council/redbridge","3BLEACENTFND","LEA Centrally Held School Funds","3CSUPPORTSEN","Supporting Special Education Needs","REV","Revenue","R3431","Pupil Referral Unit (KS4)","01-EMPLOYEES","Employees","01A","Direct employee expenses","4","Agency Staff - Pay","60134369","201110",04/01/2011 00:00:00,480,"31230","Employment & Recruitment Agencies","REDACTED DATA","TOTAL ASSIST EDUCATION LTD","5368892","http://opencorporates.com/companies/gb/5368892","946069692"
"London Borough of Redbridge","http://opendatacommunities.org/doc/london-borough-council/redbridge","4BTRANSPORT","Transport Planning, Policy & Strategy","4CMANGT&SUPP","Management & Support Services","REV","Revenue","R7000","Highways Executive","04-SUPPLIES","Supplies And Services","04F","Communications and computing","5852","Computer Equipment - Repairs & Maintenance","60134149","201110",27/12/2010 00:00:00,480,"0","Not Classified","REDACTED DATA","LEGAL ESCROW & ARBITRATION SERVICES LTD","5306309","http://opencorporates.com/companies/gb/5306309","861390815"
"London Borough of Redbridge","http://opendatacommunities.org/doc/london-borough-council/redbridge","9BNONBVO","Outside the BVACOP Objective Structure","9CNONBVO","Outside the BVACOP Objective Structure","REV","Revenue","R7702","Vehicle Workshop","04-SUPPLIES","Supplies And Services","04A","Equipment, furniture and materials","5510","Materials","625325","201110",24/12/2010 00:00:00,480,"20360","Commercial Vehicle Breakdown & Recovery Services","REDACTED DATA","ALBERT ROAD RECOVERY LTD (CANUTE HAULAGE GROUP)","",,"507329944"
"London Borough of Redbridge","http://opendatacommunities.org/doc/london-borough-council/redbridge","9BNONBVO","Outside the BVACOP Objective Structure","9CNONBVO","Outside the BVACOP Objective Structure","REV","Revenue","R7702","Vehicle Workshop","04-SUPPLIES","Supplies And Services","04A","Equipment, furniture and materials","5510","Materials","625157","201110",10/01/2011 00:00:00,68,"13330","Car Body Repairs","REDACTED DATA","BARKING PANELCRAFT","",,""
"London Borough of Redbridge","http://opendatacommunities.org/doc/london-borough-council/redbridge","9BNONBVO","Outside the BVACOP Objective Structure","9CNONBVO","Outside the BVACOP Objective Structure","REV","Revenue","R7702","Vehicle Workshop","04-SUPPLIES","Supplies And Services","04A","Equipment, furniture and materials","5510","Materials","625157","201110",10/01/2011 00:00:00,110,"13330","Car Body Repairs","REDACTED DATA","BARKING PANELCRAFT","",,""
"London Borough of Redbridge","http://opendatacommunities.org/doc/london-borough-council/redbridge","9BNONBVO","Outside the BVACOP Objective Structure","9CNONBVO","Outside the BVACOP Objective Structure","REV","Revenue","R7702","Vehicle Workshop","04-SUPPLIES","Supplies And Services","04A","Equipment, furniture and materials","5510","Materials","625157","201110",10/01/2011 00:00:00,292,"13330","Car Body Repairs","REDACTED DATA","BARKING PANELCRAFT","",,""
"London Borough of Redbridge","http://opendatacommunities.org/doc/london-borough-council/redbridge","6BADULTSOCIA","Adult Social Care","6CADMENHLTH","Adults Under 65 with Mental Health Needs","REV","Revenue","R4213","MH Direct Payments","06-TRANSFER","Transfer Payments","06B","Social Services Clients","7053","Direct Payments","3167183","201110",17/01/2011 00:00:00,565,"56800","Payroll Services","REDACTED DATA","HUMAN MANAGEMENT ASSISTANCE-CLIENT ACCOUNT","4752026","http://opencorporates.com/companies/gb/4752026","815230071"
"London Borough of Redbridge","http://opendatacommunities.org/doc/london-borough-council/redbridge","6BADULTSOCIA","Adult Social Care","6CADPHYSDIS","Adults Under 65 with Phys Disab or Sensory Impair","REV","Revenue","R4214","PD Direct Payments","06-TRANSFER","Transfer Payments","06B","Social Services Clients","7053","Direct Payments","3167336","201110",17/01/2011 00:00:00,565,"56800","Payroll Services","REDACTED DATA","HUMAN MANAGEMENT ASSISTANCE-CLIENT ACCOUNT","4752026","http://opencorporates.com/companies/gb/4752026","815230071"
"London Borough of Redbridge","http://opendatacommunities.org/doc/london-borough-council/redbridge","6BADULTSOCIA","Adult Social Care","6CADPHYSDIS","Adults Under 65 with Phys Disab or Sensory Impair","REV","Revenue","R4214","PD Direct Payments","06-TRANSFER","Transfer Payments","06B","Social Services Clients","7053","Direct Payments","3167200","201110",17/01/2011 00:00:00,565,"56800","Payroll Services","REDACTED DATA","HUMAN MANAGEMENT ASSISTANCE-CLIENT ACCOUNT","4752026","http://opencorporates.com/companies/gb/4752026","815230071"
"London Borough of Redbridge","http://opendatacommunities.org/doc/london-borough-council/redbridge","6BADULTSOCIA","Adult Social Care","6CADPHYSDIS","Adults Under 65 with Phys Disab or Sensory Impair","REV","Revenue","R4214","PD Direct Payments","06-TRANSFER","Transfer Payments","06B","Social Services Clients","7053","Direct Payments","3167278","201110",17/01/2011 00:00:00,565,"56800","Payroll Services","REDACTED DATA","HUMAN MANAGEMENT ASSISTANCE-CLIENT ACCOUNT","4752026","http://opencorporates.com/companies/gb/4752026","815230071"
"London Borough of Redbridge","http://opendatacommunities.org/doc/london-borough-council/redbridge","6BADULTSOCIA","Adult Social Care","6CADPHYSDIS","Adults Under 65 with Phys Disab or Sensory Impair","REV","Revenue","R4214","PD Direct Payments","06-TRANSFER","Transfer Payments","06B","Social Services Clients","7053","Direct Payments","3167255","201110",17/01/2011 00:00:00,565,"90005","Home Care Services DP","REDACTED DATA","REDACTED DATA","",,""
"London Borough of Redbridge","http://opendatacommunities.org/doc/london-borough-council/redbridge","6BADULTSOCIA","Adult Social Care","6CADPHYSDIS","Adults Under 65 with Phys Disab or Sensory Impair","REV","Revenue","R4214","PD Direct Payments","06-TRANSFER","Transfer Payments","06B","Social Services Clients","7053","Direct Payments","3167067","201110",17/01/2011 00:00:00,565,"90005","Home Care Services DP","REDACTED DATA","REDACTED DATA","",,""
"London Borough of Redbridge","http://opendatacommunities.org/doc/london-borough-council/redbridge","6BADULTSOCIA","Adult Social Care","6COLDINCMENT","Older People (65 or over) incl. Older Mentally Ill","REV","Revenue","R4211","Older People Direct Payments","06-TRANSFER","Transfer Payments","06B","Social Services Clients","7053","Direct Payments","3167068","201110",17/01/2011 00:00:00,565,"90005","Home Care Services DP","REDACTED DATA","REDACTED DATA","",,""
"London Borough of Redbridge","http://opendatacommunities.org/doc/london-borough-council/redbridge","9BNONBVO","Outside the BVACOP Objective Structure","9CNONBVO","Outside the BVACOP Objective Structure","REV","Revenue","R7751","Catering Service","04-SUPPLIES","Supplies And Services","04B","Catering","5601","Catering Provisions (Food & Drink)","60134805","201110",06/01/2011 00:00:00,171,"16250","Catering Food & Drink Suppliers","REDACTED DATA","BRAKE BROS FOODSERVICE LTD","",,""
"London Borough of Redbridge","http://opendatacommunities.org/doc/london-borough-council/redbridge","9BNONBVO","Outside the BVACOP Objective Structure","9CNONBVO","Outside the BVACOP Objective Structure","REV","Revenue","R7751","Catering Service","04-SUPPLIES","Supplies And Services","04B","Catering","5601","Catering Provisions (Food & Drink)","60134805","201110",06/01/2011 00:00:00,360,"16250","Catering Food & Drink Suppliers","REDACTED DATA","BRAKE BROS FOODSERVICE LTD","",,""
"London Borough of Redbridge","http://opendatacommunities.org/doc/london-borough-council/redbridge","1BOTHEROPI&E","Other Operating Income & Expenditure","1CTRADSURDEF","Trading Account Surpluses & Deficits","REV","Revenue","R9578","Misc Properties","02-PREMISES","Premises","02A","Repairs, alteration and maintenance of buildings","3026","Minor Maintenance","60134724","201110",10/01/2011 00:00:00,472,"32695","Estate Agents","REDACTED DATA","SPENCER CRAIG PARTNERSHIP","5500269","http://opencorporates.com/companies/gb/5500269",""
"London Borough of Redbridge","http://opendatacommunities.org/doc/london-borough-council/redbridge","6BSOCIALSERV","Social Services","","","REV","Revenue","R2171","Ray Lodge (W) - Integrated Team Social Care","01-EMPLOYEES","Employees","01A","Direct employee expenses","4","Agency Staff - Pay","60135808","201110",12/01/2011 00:00:00,472,"31230","Employment & Recruitment Agencies","REDACTED DATA","PROTOCOL EDUCATION LTD","2926583","http://opencorporates.com/companies/gb/2926583","764390315"
"London Borough of Redbridge","http://opendatacommunities.org/doc/london-borough-council/redbridge","2BCULTUR&REL","Cultural & Related Services","2CLIBRARY","Library Service","REV","Revenue","R2500","Libraries Executive","04-SUPPLIES","Supplies And Services","04K","Miscellaneous expenses","6251","Resource Fund","3166250","201110",04/01/2011 00:00:00,54,"9849","Booksellers","REDACTED DATA","BERTRAM LIBRARY SERVICES","",,"698483561"
"London Borough of Redbridge","http://opendatacommunities.org/doc/london-borough-council/redbridge","2BCULTUR&REL","Cultural & Related Services","2CLIBRARY","Library Service","REV","Revenue","R2500","Libraries Executive","04-SUPPLIES","Supplies And Services","04K","Miscellaneous expenses","6251","Resource Fund","3166250","201110",04/01/2011 00:00:00,515,"9849","Booksellers","REDACTED DATA","BERTRAM LIBRARY SERVICES","",,"698483561"
"London Borough of Redbridge","http://opendatacommunities.org/doc/london-borough-council/redbridge","6BADULTSOCIA","Adult Social Care","6CADPHYSDIS","Adults Under 65 with Phys Disab or Sensory Impair","REV","Revenue","R4206","PCT Physical Disability and Sensory Home Care","05-THIRD","Third Party Payments","05A","Independent units within the council","6502","Agency Homecare (Payments To Independent Units)","90190321","201110",04/01/2011 00:00:00,569,"43419","Home Care Services","REDACTED DATA","HOMECARE & DOMESTIC SERV. LTD.","3161761","http://opencorporates.com/companies/gb/3161761",""
"London Borough of Redbridge","http://opendatacommunities.org/doc/london-borough-council/redbridge","3BOPTIONHLDG","Optional Holding Accounts","3CYOUTH","Youth Service","REV","Revenue","R3409","Loxford YC Delegated","02-PREMISES","Premises","02B","Energy costs","4000","Electricity","60135209","201110",22/12/2010 00:00:00,484,"30586","Electricity Companies","REDACTED DATA","EDF ENERGY 1 LTD (PO BOX 3956 PLYMOUTH)","",,"523041202"
"London Borough of Redbridge","http://opendatacommunities.org/doc/london-borough-council/redbridge","3BNONSCHFUND","Non-School Funding","","","REV","Revenue","R2054","Psych - Management LEA","04-SUPPLIES","Supplies And Services","04G","Expenses","5901","Conference Expenses","60134119","201110",04/01/2011 00:00:00,485,"17020","Charities & Voluntary Organisations","REDACTED DATA","THE BRITISH PSYCHOLOGICAL SOCIETY","CHARITY229642","http://opencorporates.com/companies/gb/CHARITY229642","240393776"
"London Borough of Redbridge","http://opendatacommunities.org/doc/london-borough-council/redbridge","3BLEACENTFND","LEA Centrally Held School Funds","3CFACILIMPRO","Facilitating School Improvement","REV","Revenue","R3229","Extending and increasing flex 3-4 yrs.","04-SUPPLIES","Supplies And Services","04H","Grants and subscriptions","5950","Grants","3169574","201110",05/01/2011 00:00:00,570,"17020","Charities & Voluntary Organisations","REDACTED DATA","HAINAULT FOREST COMMUNITY ASSN","",,""
"London Borough of Redbridge","http://opendatacommunities.org/doc/london-borough-council/redbridge","2BCULTUR&REL","Cultural & Related Services","2CLIBRARY","Library Service","REV","Revenue","R2500","Libraries Executive","04-SUPPLIES","Supplies And Services","04K","Miscellaneous expenses","6251","Resource Fund","3166251","201110",04/01/2011 00:00:00,570,"9849","Booksellers","REDACTED DATA","BERTRAM LIBRARY SERVICES","",,"698483561"
"London Borough of Redbridge","http://opendatacommunities.org/doc/london-borough-council/redbridge","6BADULTSOCIA","Adult Social Care","6CADLEARNDIS","Adults Under 65 with Learning Disabilities","REV","Revenue","R4215","LD Direct Payments","06-TRANSFER","Transfer Payments","06B","Social Services Clients","7053","Direct Payments","3167328","201110",17/01/2011 00:00:00,570,"56800","Payroll Services","REDACTED DATA","HUMAN MANAGEMENT ASSISTANCE-CLIENT ACCOUNT","4752026","http://opencorporates.com/companies/gb/4752026","815230071"
"London Borough of Redbridge","http://opendatacommunities.org/doc/london-borough-council/redbridge","6BADULTSOCIA","Adult Social Care","6CADPHYSDIS","Adults Under 65 with Phys Disab or Sensory Impair","REV","Revenue","R4206","PCT Physical Disability and Sensory Home Care","05-THIRD","Third Party Payments","05A","Independent units within the council","6502","Agency Homecare (Payments To Independent Units)","90190318","201110",20/12/2010 00:00:00,571,"43419","Home Care Services","REDACTED DATA","HOMECARE & DOMESTIC SERV. LTD.","3161761","http://opencorporates.com/companies/gb/3161761",""
"London Borough of Redbridge","http://opendatacommunities.org/doc/london-borough-council/redbridge","6BADULTSOCIA","Adult Social Care","6CADPHYSDIS","Adults Under 65 with Phys Disab or Sensory Impair","REV","Revenue","R4206","PCT Physical Disability and Sensory Home Care","05-THIRD","Third Party Payments","05A","Independent units within the council","6502","Agency Homecare (Payments To Independent Units)","90190326","201110",07/01/2011 00:00:00,571,"43419","Home Care Services","REDACTED DATA","HOMECARE & DOMESTIC SERV. LTD.","3161761","http://opencorporates.com/companies/gb/3161761",""
"London Borough of Redbridge","http://opendatacommunities.org/doc/london-borough-council/redbridge","2BCULTUR&REL","Cultural & Related Services","2CLIBRARY","Library Service","REV","Revenue","R2510","Central Lending Libry","01-EMPLOYEES","Employees","01A","Direct employee expenses","409","Agency Staff Pay","60134069","201110",29/12/2010 00:00:00,486,"31230","Employment & Recruitment Agencies","REDACTED DATA","BROOK STREET (UK) LTD","459637","http://opencorporates.com/companies/gb/459637","238595131"
"London Borough of Redbridge","http://opendatacommunities.org/doc/london-borough-council/redbridge","6BADULTSOCIA","Adult Social Care","6CADLEARNDIS","Adults Under 65 with Learning Disabilities","REV","Revenue","R4296","Mulberry Lodge","01-EMPLOYEES","Employees","01A","Direct employee expenses","4","Agency Staff - Pay","60136810","201110",16/01/2011 00:00:00,476,"31230","Employment & Recruitment Agencies","REDACTED DATA","PLAN PERSONNEL","",,""
"London Borough of Redbridge","http://opendatacommunities.org/doc/london-borough-council/redbridge","1BOTHEROPI&E","Other Operating Income & Expenditure","1CTRADSURDEF","Trading Account Surpluses & Deficits","REV","Revenue","R9606","Perth Terrace","02-PREMISES","Premises","02B","Energy costs","4000","Electricity","70022268","201110",13/12/2010 00:00:00,487,"39564","Gas Companies","REDACTED DATA","KENT COUNTY COUNCIL (GAS & ELECTRIC)","",,"204269191"
"London Borough of Redbridge","http://opendatacommunities.org/doc/london-borough-council/redbridge","6BSOCIALSERV","Social Services","","","REV","Revenue","R2114","SEN and CD - Integrated Team 0-9 Social Care","06-TRANSFER","Transfer Payments","06B","Social Services Clients","7050","Agency Homecare","3166119","201110",22/11/2010 00:00:00,572,"43419","Home Care Services","REDACTED DATA","FASTFLOW DE VERE CARE","",,""
"London Borough of Redbridge","http://opendatacommunities.org/doc/london-borough-council/redbridge","2BCULTUR&REL","Cultural & Related Services","2CLIBRARY","Library Service","REV","Revenue","R2500","Libraries Executive","04-SUPPLIES","Supplies And Services","04K","Miscellaneous expenses","6251","Resource Fund","3167759","201110",07/01/2011 00:00:00,574,"9849","Booksellers","REDACTED DATA","HOLT-JACKSON BOOK CO LTD","267825","http://opencorporates.com/companies/gb/267825","636420257"
"London Borough of Redbridge","http://opendatacommunities.org/doc/london-borough-council/redbridge","9BNONBVO","Outside the BVACOP Objective Structure","9CNONBVO","Outside the BVACOP Objective Structure","REV","Revenue","R7702","Vehicle Workshop","04-SUPPLIES","Supplies And Services","04A","Equipment, furniture and materials","5510","Materials","625363","201110",11/01/2011 00:00:00,478,"39070","Garage Equipment","REDACTED DATA","J FITZSIMONS T/A FITZ AIR","5382772761","http://opencorporates.com/companies/gb/5382772761","872451516"
"London Borough of Redbridge","http://opendatacommunities.org/doc/london-borough-council/redbridge","2BCULTUR&REL","Cultural & Related Services","2CREC&SPORT","Recreation & Sport","REV","Revenue","R6377","Ray House","02-PREMISES","Premises","02B","Energy costs","4000","Electricity","60133463","201110",13/12/2010 00:00:00,489,"30586","Electricity Companies","REDACTED DATA","EDF ENERGY 1 LTD (PO BOX 3956 PLYMOUTH)","",,"523041202"
"London Borough of Redbridge","http://opendatacommunities.org/doc/london-borough-council/redbridge","3BLEACENTFND","LEA Centrally Held School Funds","3CASSURACCES","Assuring Access to Schools","REV","Revenue","R3290","Mus Sch - Delegated","04-SUPPLIES","Supplies And Services","04A","Equipment, furniture and materials","5501","Equipment Provision","60133804","201110",15/12/2010 00:00:00,489,"52510","Musical Instruments & Sheet Music","REDACTED DATA","JOHN PACKER LTD","2964334","http://opencorporates.com/companies/gb/2964334","634556136"
"London Borough of Redbridge","http://opendatacommunities.org/doc/london-borough-council/redbridge","6BADULTSOCIA","Adult Social Care","6COLDINCMENT","Older People (65 or over) incl. Older Mentally Ill","REV","Revenue","R4378","OP - Care Purchasing","09-INCOME","Income","09C","Customer & Client Receipts","8555","Accommodation Charges","90192870","201110",06/01/2011 00:00:00,-1284,"64710","Residential Care Homes","REDACTED DATA","CAREMORE LTD (STUART HOUSR RESIDENTIAL HOME)","",,""
"London Borough of Redbridge","http://opendatacommunities.org/doc/london-borough-council/redbridge","6BADULTSOCIA","Adult Social Care","6COLDINCMENT","Older People (65 or over) incl. Older Mentally Ill","REV","Revenue","R4378","OP - Care Purchasing","09-INCOME","Income","09C","Customer & Client Receipts","8555","Accommodation Charges","90192870","201110",06/01/2011 00:00:00,-448,"64710","Residential Care Homes","REDACTED DATA","CAREMORE LTD (STUART HOUSR RESIDENTIAL HOME)","",,""
"London Borough of Redbridge","http://opendatacommunities.org/doc/london-borough-council/redbridge","6BADULTSOCIA","Adult Social Care","6COLDINCMENT","Older People (65 or over) incl. Older Mentally Ill","REV","Revenue","R4378","OP - Care Purchasing","05-THIRD","Third Party Payments","05F","Voluntary associations","6802","Residential Homes","90192870","201110",06/01/2011 00:00:00,448,"64710","Residential Care Homes","REDACTED DATA","CAREMORE LTD (STUART HOUSR RESIDENTIAL HOME)","",,""
"London Borough of Redbridge","http://opendatacommunities.org/doc/london-borough-council/redbridge","6BADULTSOCIA","Adult Social Care","6COLDINCMENT","Older People (65 or over) incl. Older Mentally Ill","REV","Revenue","R4378","OP - Care Purchasing","05-THIRD","Third Party Payments","05F","Voluntary associations","6802","Residential Homes","90192870","201110",06/01/2011 00:00:00,1859,"64710","Residential Care Homes","REDACTED DATA","CAREMORE LTD (STUART HOUSR RESIDENTIAL HOME)","",,""
"London Borough of Redbridge","http://opendatacommunities.org/doc/london-borough-council/redbridge","6BADULTSOCIA","Adult Social Care","6COLDINCMENT","Older People (65 or over) incl. Older Mentally Ill","REV","Revenue","R4378","OP - Care Purchasing","09-INCOME","Income","09C","Customer & Client Receipts","8555","Accommodation Charges","90192858","201110",06/01/2011 00:00:00,-1565,"64760","Rest & Retirement Homes","REDACTED DATA","ST JOSEPH'S REST HOME","",,""
"London Borough of Redbridge","http://opendatacommunities.org/doc/london-borough-council/redbridge","6BADULTSOCIA","Adult Social Care","6COLDINCMENT","Older People (65 or over) incl. Older Mentally Ill","REV","Revenue","R4378","OP - Care Purchasing","05-THIRD","Third Party Payments","05F","Voluntary associations","6802","Residential Homes","90192858","201110",06/01/2011 00:00:00,2140,"64760","Rest & Retirement Homes","REDACTED DATA","ST JOSEPH'S REST HOME","",,""
"London Borough of Redbridge","http://opendatacommunities.org/doc/london-borough-council/redbridge","6BADULTSOCIA","Adult Social Care","6CADLEARNDIS","Adults Under 65 with Learning Disabilities","REV","Revenue","R4241","RPCT - Continuing Care - Spots","05-THIRD","Third Party Payments","05H","Private contractors","6904","Day Centres","90195300","201110",17/01/2011 00:00:00,5,"17020","Charities & Voluntary Organisations","REDACTED DATA","NORWOOD RAVENWOOD SERVICES LTD","",,""
"London Borough of Redbridge","http://opendatacommunities.org/doc/london-borough-council/redbridge","6BADULTSOCIA","Adult Social Care","6CADLEARNDIS","Adults Under 65 with Learning Disabilities","REV","Revenue","R4241","RPCT - Continuing Care - Spots","05-THIRD","Third Party Payments","05H","Private contractors","6904","Day Centres","90192462","201110",10/12/2010 00:00:00,5,"17020","Charities & Voluntary Organisations","REDACTED DATA","NORWOOD RAVENWOOD SERVICES LTD","",,""
"London Borough of Redbridge","http://opendatacommunities.org/doc/london-borough-council/redbridge","6BADULTSOCIA","Adult Social Care","6CADLEARNDIS","Adults Under 65 with Learning Disabilities","REV","Revenue","R4241","RPCT - Continuing Care - Spots","05-THIRD","Third Party Payments","05H","Private contractors","6904","Day Centres","90192462","201110",10/12/2010 00:00:00,485,"17020","Charities & Voluntary Organisations","REDACTED DATA","NORWOOD RAVENWOOD SERVICES LTD","",,""
"London Borough of Redbridge","http://opendatacommunities.org/doc/london-borough-council/redbridge","6BADULTSOCIA","Adult Social Care","6CADLEARNDIS","Adults Under 65 with Learning Disabilities","REV","Revenue","R4241","RPCT - Continuing Care - Spots","05-THIRD","Third Party Payments","05H","Private contractors","6904","Day Centres","90195300","201110",17/01/2011 00:00:00,485,"17020","Charities & Voluntary Organisations","REDACTED DATA","NORWOOD RAVENWOOD SERVICES LTD","",,""
"London Borough of Redbridge","http://opendatacommunities.org/doc/london-borough-council/redbridge","5BGFHOUSING","General Fund Housing","5CHOUSADVICE","Housing Advice","REV","Revenue","R5530","HAC Temporary Accomodation","05-THIRD","Third Party Payments","05H","Private contractors","6912","Bed & Breakfast Charges","70021866","201110",30/11/2010 00:00:00,490,"44100","Hotels","REDACTED DATA","MCCREADIE HOTEL","",,""
"London Borough of Redbridge","http://opendatacommunities.org/doc/london-borough-council/redbridge","2BCULTUR&REL","Cultural & Related Services","2CCULTUR&HER","Culture & Heritage","REV","Revenue","R6329","Valentines Mansion","04-SUPPLIES","Supplies And Services","04D","Printing, stationery and general office expenses","5710","Stationery","60135586","201110",25/11/2010 00:00:00,490,"57614","Photocopiers","REDACTED DATA","CANON UK LTD","1264300","http://opencorporates.com/companies/gb/1264300","523797128"
"London Borough of Redbridge","http://opendatacommunities.org/doc/london-borough-council/redbridge","6BADULTSOCIA","Adult Social Care","6CADLEARNDIS","Adults Under 65 with Learning Disabilities","REV","Revenue","R4218","Individualised Budgets","06-TRANSFER","Transfer Payments","06B","Social Services Clients","7053","Direct Payments","90192872","201110",06/01/2011 00:00:00,576,"64710","Residential Care Homes","REDACTED DATA","THE BEECHES","",,""
"London Borough of Redbridge","http://opendatacommunities.org/doc/london-borough-council/redbridge","6BADULTSOCIA","Adult Social Care","6CADLEARNDIS","Adults Under 65 with Learning Disabilities","REV","Revenue","R4218","Individualised Budgets","06-TRANSFER","Transfer Payments","06B","Social Services Clients","7053","Direct Payments","90192873","201110",06/01/2011 00:00:00,576,"64710","Residential Care Homes","REDACTED DATA","THE BEECHES","",,""
"London Borough of Redbridge","http://opendatacommunities.org/doc/london-borough-council/redbridge","6BADULTSOCIA","Adult Social Care","6CADLEARNDIS","Adults Under 65 with Learning Disabilities","REV","Revenue","R4218","Individualised Budgets","06-TRANSFER","Transfer Payments","06B","Social Services Clients","7053","Direct Payments","90192874","201110",06/01/2011 00:00:00,576,"64710","Residential Care Homes","REDACTED DATA","THE BEECHES","",,""
"London Borough of Redbridge","http://opendatacommunities.org/doc/london-borough-council/redbridge","6BADULTSOCIA","Adult Social Care","6CADLEARNDIS","Adults Under 65 with Learning Disabilities","REV","Revenue","R4218","Individualised Budgets","06-TRANSFER","Transfer Payments","06B","Social Services Clients","7053","Direct Payments","90192875","201110",06/01/2011 00:00:00,576,"64710","Residential Care Homes","REDACTED DATA","THE BEECHES","",,""
"London Borough of Redbridge","http://opendatacommunities.org/doc/london-borough-council/redbridge","6BADULTSOCIA","Adult Social Care","6COLDINCMENT","Older People (65 or over) incl. Older Mentally Ill","REV","Revenue","R4391","OP Home Care","05-THIRD","Third Party Payments","05A","Independent units within the council","6502","Agency Homecare (Payments To Independent Units)","90194483","201110",11/01/2011 00:00:00,577,"43419","Home Care Services","REDACTED DATA","CAREWATCH CARE SERVVICES LTD","2949558","http://opencorporates.com/companies/gb/2949558","927457005"
"London Borough of Redbridge","http://opendatacommunities.org/doc/london-borough-council/redbridge","6BADULTSOCIA","Adult Social Care","6CADPHYSDIS","Adults Under 65 with Phys Disab or Sensory Impair","REV","Revenue","R4214","PD Direct Payments","09-INCOME","Income","09C","Customer & Client Receipts","8553","Care Package Charges","3167214","201110",17/01/2011 00:00:00,-56,"90005","Home Care Services DP","REDACTED DATA","REDACTED DATA","",,""
"London Borough of Redbridge","http://opendatacommunities.org/doc/london-borough-council/redbridge","6BADULTSOCIA","Adult Social Care","6CADPHYSDIS","Adults Under 65 with Phys Disab or Sensory Impair","REV","Revenue","R4214","PD Direct Payments","06-TRANSFER","Transfer Payments","06B","Social Services Clients","7053","Direct Payments","3167214","201110",17/01/2011 00:00:00,633,"90005","Home Care Services DP","REDACTED DATA","REDACTED DATA","",,""
"London Borough of Redbridge","http://opendatacommunities.org/doc/london-borough-council/redbridge","4BMANGT&SUPP","Management & Support Services","4CHIGHRDROUT","Highways/Roads (Routine)","REV","Revenue","R7070","Reactive Maintenance","05-THIRD","Third Party Payments","05H","Private contractors","6915","Contractor Payments","3166434","201110",07/01/2011 00:00:00,481,"18632","Civil Engineers","REDACTED DATA","KENSON CONTRACTORS BENINGTON LTD","1314691","http://opencorporates.com/companies/gb/1314691","301629589"
"London Borough of Redbridge","http://opendatacommunities.org/doc/london-borough-council/redbridge","6BADULTSOCIA","Adult Social Care","6COLDINCMENT","Older People (65 or over) incl. Older Mentally Ill","REV","Revenue","R4391","OP Home Care","05-THIRD","Third Party Payments","05A","Independent units within the council","6502","Agency Homecare (Payments To Independent Units)","90191522","201110",23/12/2010 00:00:00,578,"43419","Home Care Services","REDACTED DATA","CAREWATCH CARE SERVVICES LTD","2949558","http://opencorporates.com/companies/gb/2949558","927457005"
"London Borough of Redbridge","http://opendatacommunities.org/doc/london-borough-council/redbridge","5BGFHOUSING","General Fund Housing","5CHOUSADVICE","Housing Advice","REV","Revenue","R5530","HAC Temporary Accomodation","05-THIRD","Third Party Payments","05H","Private contractors","6912","Bed & Breakfast Charges","3167580","201110",31/12/2010 00:00:00,578,"47846","Letting Agents","REDACTED DATA","LETTING INTERNATIONAL LTD","3425414","http://opencorporates.com/companies/gb/3425414","710849440"
"London Borough of Redbridge","http://opendatacommunities.org/doc/london-borough-council/redbridge","9BNONBVO","Outside the BVACOP Objective Structure","9CNONBVO","Outside the BVACOP Objective Structure","REV","Revenue","R7701","Veh Admin O'Head A/C","04-SUPPLIES","Supplies And Services","04D","Printing, stationery and general office expenses","5710","Stationery","625256","201110",11/01/2011 00:00:00,0,"79980","Training Services","REDACTED DATA","NOVADATA TACHOGRAPH ANALYSIS BUREAU LTD","2817899","http://opencorporates.com/companies/gb/2817899","623148755"
"London Borough of Redbridge","http://opendatacommunities.org/doc/london-borough-council/redbridge","9BNONBVO","Outside the BVACOP Objective Structure","9CNONBVO","Outside the BVACOP Objective Structure","REV","Revenue","R7701","Veh Admin O'Head A/C","04-SUPPLIES","Supplies And Services","04D","Printing, stationery and general office expenses","5710","Stationery","625256","201110",11/01/2011 00:00:00,5,"79980","Training Services","REDACTED DATA","NOVADATA TACHOGRAPH ANALYSIS BUREAU LTD","2817899","http://opencorporates.com/companies/gb/2817899","623148755"
"London Borough of Redbridge","http://opendatacommunities.org/doc/london-borough-council/redbridge","9BNONBVO","Outside the BVACOP Objective Structure","9CNONBVO","Outside the BVACOP Objective Structure","REV","Revenue","R7701","Veh Admin O'Head A/C","04-SUPPLIES","Supplies And Services","04D","Printing, stationery and general office expenses","5710","Stationery","625256","201110",11/01/2011 00:00:00,27,"79980","Training Services","REDACTED DATA","NOVADATA TACHOGRAPH ANALYSIS BUREAU LTD","2817899","http://opencorporates.com/companies/gb/2817899","623148755"
"London Borough of Redbridge","http://opendatacommunities.org/doc/london-borough-council/redbridge","9BNONBVO","Outside the BVACOP Objective Structure","9CNONBVO","Outside the BVACOP Objective Structure","REV","Revenue","R7701","Veh Admin O'Head A/C","04-SUPPLIES","Supplies And Services","04D","Printing, stationery and general office expenses","5710","Stationery","625256","201110",11/01/2011 00:00:00,28,"79980","Training Services","REDACTED DATA","NOVADATA TACHOGRAPH ANALYSIS BUREAU LTD","2817899","http://opencorporates.com/companies/gb/2817899","623148755"
"London Borough of Redbridge","http://opendatacommunities.org/doc/london-borough-council/redbridge","9BNONBVO","Outside the BVACOP Objective Structure","9CNONBVO","Outside the BVACOP Objective Structure","REV","Revenue","R7701","Veh Admin O'Head A/C","04-SUPPLIES","Supplies And Services","04D","Printing, stationery and general office expenses","5710","Stationery","625256","201110",11/01/2011 00:00:00,32,"79980","Training Services","REDACTED DATA","NOVADATA TACHOGRAPH ANALYSIS BUREAU LTD","2817899","http://opencorporates.com/companies/gb/2817899","623148755"
"London Borough of Redbridge","http://opendatacommunities.org/doc/london-borough-council/redbridge","9BNONBVO","Outside the BVACOP Objective Structure","9CNONBVO","Outside the BVACOP Objective Structure","REV","Revenue","R7701","Veh Admin O'Head A/C","04-SUPPLIES","Supplies And Services","04D","Printing, stationery and general office expenses","5710","Stationery","625256","201110",11/01/2011 00:00:00,40,"79980","Training Services","REDACTED DATA","NOVADATA TACHOGRAPH ANALYSIS BUREAU LTD","2817899","http://opencorporates.com/companies/gb/2817899","623148755"
"London Borough of Redbridge","http://opendatacommunities.org/doc/london-borough-council/redbridge","9BNONBVO","Outside the BVACOP Objective Structure","9CNONBVO","Outside the BVACOP Objective Structure","REV","Revenue","R7701","Veh Admin O'Head A/C","04-SUPPLIES","Supplies And Services","04D","Printing, stationery and general office expenses","5710","Stationery","625256","201110",11/01/2011 00:00:00,100,"79980","Training Services","REDACTED DATA","NOVADATA TACHOGRAPH ANALYSIS BUREAU LTD","2817899","http://opencorporates.com/companies/gb/2817899","623148755"
"London Borough of Redbridge","http://opendatacommunities.org/doc/london-borough-council/redbridge","9BNONBVO","Outside the BVACOP Objective Structure","9CNONBVO","Outside the BVACOP Objective Structure","REV","Revenue","R7701","Veh Admin O'Head A/C","04-SUPPLIES","Supplies And Services","04D","Printing, stationery and general office expenses","5710","Stationery","625256","201110",11/01/2011 00:00:00,125,"79980","Training Services","REDACTED DATA","NOVADATA TACHOGRAPH ANALYSIS BUREAU LTD","2817899","http://opencorporates.com/companies/gb/2817899","623148755"
"London Borough of Redbridge","http://opendatacommunities.org/doc/london-borough-council/redbridge","9BNONBVO","Outside the BVACOP Objective Structure","9CNONBVO","Outside the BVACOP Objective Structure","REV","Revenue","R7701","Veh Admin O'Head A/C","04-SUPPLIES","Supplies And Services","04D","Printing, stationery and general office expenses","5710","Stationery","625256","201110",11/01/2011 00:00:00,125,"79980","Training Services","REDACTED DATA","NOVADATA TACHOGRAPH ANALYSIS BUREAU LTD","2817899","http://opencorporates.com/companies/gb/2817899","623148755"
"London Borough of Redbridge","http://opendatacommunities.org/doc/london-borough-council/redbridge","4BMANGT&SUPP","Management & Support Services","4CHIGHRDROUT","Highways/Roads (Routine)","REV","Revenue","R7070","Reactive Maintenance","05-THIRD","Third Party Payments","05H","Private contractors","6915","Contractor Payments","3166721","201110",12/01/2011 00:00:00,483,"18632","Civil Engineers","REDACTED DATA","KENSON CONTRACTORS BENINGTON LTD","1314691","http://opencorporates.com/companies/gb/1314691","301629589"
"London Borough of Redbridge","http://opendatacommunities.org/doc/london-borough-council/redbridge","9BNONBVO","Outside the BVACOP Objective Structure","9CNONBVO","Outside the BVACOP Objective Structure","REV","Revenue","R5132","Repairs and Maintenance - Other","02-PREMISES","Premises","02A","Repairs, alteration and maintenance of buildings","3038","Service Repairs","70022310","201110",15/12/2010 00:00:00,493,"11700","Burglar & Intruder Alarm Systems","REDACTED DATA","CARTEL SECURITY SYSTEMS LTD","3376202","http://opencorporates.com/companies/gb/3376202","696815967"
"London Borough of Redbridge","http://opendatacommunities.org/doc/london-borough-council/redbridge","6BSOCIALSERV","Social Services","","","REV","Revenue","R2113","SEN and CD - Section 5 and 6 Care Packages","05-THIRD","Third Party Payments","05A","Independent units within the council","6502","Agency Homecare (Payments To Independent Units)","3165947","201110",21/12/2010 00:00:00,580,"31230","Employment & Recruitment Agencies","REDACTED DATA","HOPE SUPER JOBS LTD","",,"872555205"
"London Borough of Redbridge","http://opendatacommunities.org/doc/london-borough-council/redbridge","3BOPTIONHLDG","Optional Holding Accounts","3CSTUDENTSUP","Support for Students","REV","Revenue","R5780","Students Awards Administration","04-SUPPLIES","Supplies And Services","04A","Equipment, furniture and materials","5502","Equipment Purchase","60134639","201110",07/01/2011 00:00:00,484,"64550","Removals - Industrial & Business","REDACTED DATA","SONNY WHITE","",,""
